Organisation Code,Organisation Label,Effective Date,Organisational Unit,Service Division Label,Category Internal Name,Purpose,Detailed Expenditure Code,Payment Date,Transaction Number,Irrecoverable VAT Amount,Amount,Capital Or Revenue,Beneficiary Name,Procurement Card
Http://opendatacommunities.org/id/metropolitan-district-council/leeds,Leeds City Council,31/05/2023,Strategy and Resources,Leeds Building Services,Supplies and Services,Operational Materials,205,05/05/2023,2305-00001,0.00,231.84,R,A & A ELECTRICAL DISTRIBUTORS LTD,No
Http://opendatacommunities.org/id/metropolitan-district-council/leeds,Leeds City Council,31/05/2023,Children and Families,Social Care,Internal Recharges,Legal Disbursements,411,26/05/2023,2305-00002,0.00,3026.58,R,A & N Care Solicitors Limited,No
Http://opendatacommunities.org/id/metropolitan-district-council/leeds,Leeds City Council,31/05/2023,Adults and Health,Services For Older People Under 65 P/Dis,Agency Payments,Sheltered Accommodation,569,24/05/2023,2305-00003,0.00,5400.00,R,A & V TRANSITIONAL HOMES,No
Http://opendatacommunities.org/id/metropolitan-district-council/leeds,Leeds City Council,31/05/2023,Strategy and Resources,Leeds Building Services,Supplies and Services,Operational Materials,205,30/05/2023,2305-00004,0.00,53.51,R,A ANDREWS & SONS (MARBLES & TILES),No
Http://opendatacommunities.org/id/metropolitan-district-council/leeds,Leeds City Council,31/05/2023,Strategic Landlord,HRA Housing Leeds,Capital,OTHER COSTS,7,15/05/2023,2305-00005,0.00,80.00,C,REDACTED PERSONAL DATA,No
Http://opendatacommunities.org/id/metropolitan-district-council/leeds,Leeds City Council,31/05/2023,Children and Families,Social Care,Agency Payments,Section 17,551,23/05/2023,2305-00006,0.00,250.00,R,REDACTED PERSONAL DATA,No
Http://opendatacommunities.org/id/metropolitan-district-council/leeds,Leeds City Council,31/05/2023,Strategic Landlord,HRA Housing Leeds,Capital,CONSTRUCTION,3,03/05/2023,2305-00007,0.00,72547.64,C,A Connolly Limited,No
Http://opendatacommunities.org/id/metropolitan-district-council/leeds,Leeds City Council,31/05/2023,Strategic Landlord,HRA Housing Leeds,Capital,CONSTRUCTION,3,18/05/2023,2305-00008,0.00,9165.12,C,A Connolly Limited,No
Http://opendatacommunities.org/id/metropolitan-district-council/leeds,Leeds City Council,31/05/2023,Strategy and Resources,Leeds Building Services,Supplies and Services,Other Hired And Contracted Services,265,02/05/2023,2305-00009,0.00,25072.67,R,A Coole Electrical Ltd,No
Http://opendatacommunities.org/id/metropolitan-district-council/leeds,Leeds City Council,31/05/2023,Strategy and Resources,Leeds Building Services,Supplies and Services,Other Hired And Contracted Services,265,02/05/2023,2305-00010,0.00,4203.88,R,A Coole Electrical Ltd,No
Http://opendatacommunities.org/id/metropolitan-district-council/leeds,Leeds City Council,31/05/2023,Strategy and Resources,Leeds Building Services,Supplies and Services,Other Hired And Contracted Services,265,02/05/2023,2305-00011,0.00,4012.43,R,A Coole Electrical Ltd,No
Http://opendatacommunities.org/id/metropolitan-district-council/leeds,Leeds City Council,31/05/2023,Strategy and Resources,Leeds Building Services,Supplies and Services,Other Hired And Contracted Services,265,26/05/2023,2305-00012,0.00,7141.27,R,A Coole Electrical Ltd,No
Http://opendatacommunities.org/id/metropolitan-district-council/leeds,Leeds City Council,31/05/2023,Communities Housing and Environment,Customer Access,Supplies and Services,Bought In Professional Services,277,04/05/2023,2305-00013,0.00,18.00,R,REDACTED COMMERCIAL CONFIDENTIALITY,No
Http://opendatacommunities.org/id/metropolitan-district-council/leeds,Leeds City Council,31/05/2023,Communities Housing and Environment,Customer Access,Supplies and Services,Bought In Professional Services,277,04/05/2023,2305-00014,0.00,18.00,R,REDACTED COMMERCIAL CONFIDENTIALITY,No
Http://opendatacommunities.org/id/metropolitan-district-council/leeds,Leeds City Council,31/05/2023,Communities Housing and Environment,Customer Access,Supplies and Services,Bought In Professional Services,277,04/05/2023,2305-00015,0.00,36.00,R,REDACTED COMMERCIAL CONFIDENTIALITY,No
Http://opendatacommunities.org/id/metropolitan-district-council/leeds,Leeds City Council,31/05/2023,Communities Housing and Environment,Customer Access,Supplies and Services,Bought In Professional Services,277,11/05/2023,2305-00016,0.00,18.00,R,REDACTED COMMERCIAL CONFIDENTIALITY,No
Http://opendatacommunities.org/id/metropolitan-district-council/leeds,Leeds City Council,31/05/2023,Communities Housing and Environment,Customer Access,Supplies and Services,Bought In Professional Services,277,11/05/2023,2305-00017,0.00,18.00,R,REDACTED COMMERCIAL CONFIDENTIALITY,No
Http://opendatacommunities.org/id/metropolitan-district-council/leeds,Leeds City Council,31/05/2023,Communities Housing and Environment,Customer Access,Supplies and Services,Bought In Professional Services,277,11/05/2023,2305-00018,0.00,27.00,R,REDACTED COMMERCIAL CONFIDENTIALITY,No
Http://opendatacommunities.org/id/metropolitan-district-council/leeds,Leeds City Council,31/05/2023,Communities Housing and Environment,Customer Access,Supplies and Services,Bought In Professional Services,277,17/05/2023,2305-00019,0.00,18.00,R,REDACTED COMMERCIAL CONFIDENTIALITY,No
Http://opendatacommunities.org/id/metropolitan-district-council/leeds,Leeds City Council,31/05/2023,Communities Housing and Environment,Customer Access,Supplies and Services,Bought In Professional Services,277,17/05/2023,2305-00020,0.00,18.00,R,REDACTED COMMERCIAL CONFIDENTIALITY,No
Http://opendatacommunities.org/id/metropolitan-district-council/leeds,Leeds City Council,31/05/2023,Communities Housing and Environment,Customer Access,Supplies and Services,Bought In Professional Services,277,24/05/2023,2305-00021,0.00,36.00,R,REDACTED COMMERCIAL CONFIDENTIALITY,No
Http://opendatacommunities.org/id/metropolitan-district-council/leeds,Leeds City Council,31/05/2023,Communities Housing and Environment,Customer Access,Supplies and Services,Bought In Professional Services,277,24/05/2023,2305-00022,0.00,22.50,R,REDACTED COMMERCIAL CONFIDENTIALITY,No
Http://opendatacommunities.org/id/metropolitan-district-council/leeds,Leeds City Council,31/05/2023,Children and Families,Social Care,Agency Payments,Services Rendered By Voluntary Sector,505,03/05/2023,2305-00023,0.00,1144.65,R,REDACTED PERSONAL DATA,No
Http://opendatacommunities.org/id/metropolitan-district-council/leeds,Leeds City Council,31/05/2023,Children and Families,Social Care,Agency Payments,Services Rendered By Voluntary Sector,505,05/05/2023,2305-00024,0.00,8788.11,R,REDACTED PERSONAL DATA,No
Http://opendatacommunities.org/id/metropolitan-district-council/leeds,Leeds City Council,31/05/2023,Children and Families,Social Care,Agency Payments,Services Rendered By Voluntary Sector,505,22/05/2023,2305-00025,0.00,2900.00,R,REDACTED PERSONAL DATA,No
Http://opendatacommunities.org/id/metropolitan-district-council/leeds,Leeds City Council,31/05/2023,Children and Families,Social Care,Agency Payments,Services Rendered By Voluntary Sector,505,24/05/2023,2305-00026,0.00,750.00,R,REDACTED PERSONAL DATA,No
Http://opendatacommunities.org/id/metropolitan-district-council/leeds,Leeds City Council,31/05/2023,Children and Families,Social Care,Agency Payments,Services Rendered By Other Organisations,511,03/05/2023,2305-00027,0.00,228.93,R,REDACTED PERSONAL DATA,No
Http://opendatacommunities.org/id/metropolitan-district-council/leeds,Leeds City Council,31/05/2023,Strategic Landlord,HRA Housing Leeds,Capital,OTHER COSTS,7,05/05/2023,2305-00028,0.00,100.00,C,REDACTED PERSONAL DATA,No
Http://opendatacommunities.org/id/metropolitan-district-council/leeds,Leeds City Council,31/05/2023,Children and Families,Social Care,Agency Payments,Services Rendered By Other Organisations,511,05/05/2023,2305-00029,0.00,147.60,R,REDACTED PERSONAL DATA,No
Http://opendatacommunities.org/id/metropolitan-district-council/leeds,Leeds City Council,31/05/2023,Children and Families,Social Care,Agency Payments,Services Rendered By Other Organisations,511,05/05/2023,2305-00030,0.00,530.87,R,REDACTED PERSONAL DATA,No
Http://opendatacommunities.org/id/metropolitan-district-council/leeds,Leeds City Council,31/05/2023,Adults and Health,Other Generic Services,Agency Payments,Fees To Carers,563,05/05/2023,2305-00031,0.00,140.73,R,REDACTED PERSONAL DATA,No
Http://opendatacommunities.org/id/metropolitan-district-council/leeds,Leeds City Council,31/05/2023,Adults and Health,Other Generic Services,Agency Payments,Fees To Carers,563,05/05/2023,2305-00032,0.00,46.91,R,REDACTED PERSONAL DATA,No
Http://opendatacommunities.org/id/metropolitan-district-council/leeds,Leeds City Council,31/05/2023,Adults and Health,Other Generic Services,Agency Payments,Fees To Carers,563,16/05/2023,2305-00033,0.00,542.40,R,REDACTED PERSONAL DATA,No
Http://opendatacommunities.org/id/metropolitan-district-council/leeds,Leeds City Council,31/05/2023,Adults and Health,Other Generic Services,Agency Payments,Fees To Carers,563,16/05/2023,2305-00034,0.00,50.40,R,REDACTED PERSONAL DATA,No
Http://opendatacommunities.org/id/metropolitan-district-council/leeds,Leeds City Council,31/05/2023,Adults and Health,Other Generic Services,Agency Payments,Fees To Carers,563,19/05/2023,2305-00035,0.00,140.73,R,REDACTED PERSONAL DATA,No
Http://opendatacommunities.org/id/metropolitan-district-council/leeds,Leeds City Council,31/05/2023,Adults and Health,Other Generic Services,Agency Payments,Fees To Carers,563,19/05/2023,2305-00036,0.00,46.91,R,REDACTED PERSONAL DATA,No
Http://opendatacommunities.org/id/metropolitan-district-council/leeds,Leeds City Council,31/05/2023,Strategy and Resources,Leeds Building Services,Supplies and Services,Operational Materials,205,05/05/2023,2305-00037,0.00,3180.00,R,A J H  Pump Supply & Repair Ltd,No
Http://opendatacommunities.org/id/metropolitan-district-council/leeds,Leeds City Council,31/05/2023,Children and Families,Social Care,Agency Payments,Services Rendered By Other Organisations,511,05/05/2023,2305-00038,0.00,1151.28,R,REDACTED PERSONAL DATA,No
Http://opendatacommunities.org/id/metropolitan-district-council/leeds,Leeds City Council,31/05/2023,Communities Housing and Environment,Strategic Housing Partnership & Support,Supplies and Services,Other Hired And Contracted Services,265,17/05/2023,2305-00039,0.00,600.06,R,A Kundra,No
Http://opendatacommunities.org/id/metropolitan-district-council/leeds,Leeds City Council,31/05/2023,Children and Families,Social Care,Employees,Agency Staff,8,22/05/2023,2305-00040,0.00,780.00,R,A Little Something Extra Ltd,No
Http://opendatacommunities.org/id/metropolitan-district-council/leeds,Leeds City Council,31/05/2023,Children and Families,Social Care,Employees,Agency Staff,8,26/05/2023,2305-00041,0.00,1053.00,R,A Little Something Extra Ltd,No
Http://opendatacommunities.org/id/metropolitan-district-council/leeds,Leeds City Council,31/05/2023,Children and Families,Social Care,Employees,Agency Staff,8,26/05/2023,2305-00042,0.00,858.00,R,A Little Something Extra Ltd,No
Http://opendatacommunities.org/id/metropolitan-district-council/leeds,Leeds City Council,31/05/2023,Children and Families,Social Care,Employees,Agency Staff,8,26/05/2023,2305-00043,0.00,1404.00,R,A Little Something Extra Ltd,No
Http://opendatacommunities.org/id/metropolitan-district-council/leeds,Leeds City Council,31/05/2023,Children and Families,Social Care,Employees,Agency Staff,8,26/05/2023,2305-00044,0.00,936.00,R,A Little Something Extra Ltd,No
Http://opendatacommunities.org/id/metropolitan-district-council/leeds,Leeds City Council,31/05/2023,Children and Families,Social Care,Agency Payments,Services Rendered By Other Organisations,511,03/05/2023,2305-00045,0.00,686.79,R,REDACTED PERSONAL DATA,No
Http://opendatacommunities.org/id/metropolitan-district-council/leeds,Leeds City Council,31/05/2023,Children and Families,Social Care,Agency Payments,Services Rendered By Other Organisations,511,05/05/2023,2305-00046,0.00,1535.04,R,REDACTED PERSONAL DATA,No
Http://opendatacommunities.org/id/metropolitan-district-council/leeds,Leeds City Council,31/05/2023,Children and Families,Social Care,Agency Payments,Services Rendered By Voluntary Sector,505,22/05/2023,2305-00047,0.00,2900.00,R,REDACTED PERSONAL DATA,No
Http://opendatacommunities.org/id/metropolitan-district-council/leeds,Leeds City Council,31/05/2023,Communities Housing and Environment,Customer Access,Supplies and Services,Bought In Professional Services,277,04/05/2023,2305-00048,0.00,108.00,R,A NAMAKI,No
Http://opendatacommunities.org/id/metropolitan-district-council/leeds,Leeds City Council,31/05/2023,Communities Housing and Environment,Customer Access,Supplies and Services,Bought In Professional Services,277,04/05/2023,2305-00049,0.00,108.00,R,A NAMAKI,No
Http://opendatacommunities.org/id/metropolitan-district-council/leeds,Leeds City Council,31/05/2023,Communities Housing and Environment,Customer Access,Supplies and Services,Bought In Professional Services,277,04/05/2023,2305-00050,0.00,103.50,R,A NAMAKI,No
Http://opendatacommunities.org/id/metropolitan-district-council/leeds,Leeds City Council,31/05/2023,Communities Housing and Environment,Customer Access,Supplies and Services,Bought In Professional Services,277,11/05/2023,2305-00051,0.00,105.00,R,A NAMAKI,No
Http://opendatacommunities.org/id/metropolitan-district-council/leeds,Leeds City Council,31/05/2023,Communities Housing and Environment,Customer Access,Supplies and Services,Bought In Professional Services,277,11/05/2023,2305-00052,0.00,108.00,R,A NAMAKI,No
Http://opendatacommunities.org/id/metropolitan-district-council/leeds,Leeds City Council,31/05/2023,Communities Housing and Environment,Customer Access,Supplies and Services,Bought In Professional Services,277,11/05/2023,2305-00053,0.00,54.00,R,A NAMAKI,No
Http://opendatacommunities.org/id/metropolitan-district-council/leeds,Leeds City Council,31/05/2023,Communities Housing and Environment,Customer Access,Supplies and Services,Bought In Professional Services,277,11/05/2023,2305-00054,0.00,18.00,R,A NAMAKI,No
Http://opendatacommunities.org/id/metropolitan-district-council/leeds,Leeds City Council,31/05/2023,Communities Housing and Environment,Customer Access,Supplies and Services,Bought In Professional Services,277,17/05/2023,2305-00055,0.00,108.00,R,A NAMAKI,No
Http://opendatacommunities.org/id/metropolitan-district-council/leeds,Leeds City Council,31/05/2023,Communities Housing and Environment,Customer Access,Supplies and Services,Bought In Professional Services,277,17/05/2023,2305-00056,0.00,99.00,R,A NAMAKI,No
Http://opendatacommunities.org/id/metropolitan-district-council/leeds,Leeds City Council,31/05/2023,Communities Housing and Environment,Customer Access,Supplies and Services,Bought In Professional Services,277,17/05/2023,2305-00057,0.00,108.00,R,A NAMAKI,No
Http://opendatacommunities.org/id/metropolitan-district-council/leeds,Leeds City Council,31/05/2023,Communities Housing and Environment,Customer Access,Supplies and Services,Bought In Professional Services,277,17/05/2023,2305-00058,0.00,9.00,R,A NAMAKI,No
Http://opendatacommunities.org/id/metropolitan-district-council/leeds,Leeds City Council,31/05/2023,Communities Housing and Environment,Customer Access,Supplies and Services,Bought In Professional Services,277,17/05/2023,2305-00059,0.00,18.00,R,A NAMAKI,No
Http://opendatacommunities.org/id/metropolitan-district-council/leeds,Leeds City Council,31/05/2023,Communities Housing and Environment,Customer Access,Supplies and Services,Bought In Professional Services,277,24/05/2023,2305-00060,0.00,27.00,R,A NAMAKI,No
Http://opendatacommunities.org/id/metropolitan-district-council/leeds,Leeds City Council,31/05/2023,Communities Housing and Environment,Customer Access,Supplies and Services,Bought In Professional Services,277,24/05/2023,2305-00061,0.00,18.00,R,A NAMAKI,No
Http://opendatacommunities.org/id/metropolitan-district-council/leeds,Leeds City Council,31/05/2023,Communities Housing and Environment,Customer Access,Supplies and Services,Bought In Professional Services,277,24/05/2023,2305-00062,0.00,108.00,R,A NAMAKI,No
Http://opendatacommunities.org/id/metropolitan-district-council/leeds,Leeds City Council,31/05/2023,Communities Housing and Environment,Customer Access,Supplies and Services,Bought In Professional Services,277,24/05/2023,2305-00063,0.00,18.00,R,A NAMAKI,No
Http://opendatacommunities.org/id/metropolitan-district-council/leeds,Leeds City Council,31/05/2023,Communities Housing and Environment,Customer Access,Supplies and Services,Bought In Professional Services,277,24/05/2023,2305-00064,0.00,108.00,R,A NAMAKI,No
Http://opendatacommunities.org/id/metropolitan-district-council/leeds,Leeds City Council,31/05/2023,Communities Housing and Environment,Customer Access,Supplies and Services,Bought In Professional Services,277,24/05/2023,2305-00065,0.00,18.00,R,A NAMAKI,No
Http://opendatacommunities.org/id/metropolitan-district-council/leeds,Leeds City Council,31/05/2023,Children and Families,Social Care,Agency Payments,Services Rendered By Other Organisations,511,05/05/2023,2305-00066,0.00,383.76,R,REDACTED PERSONAL DATA,No
Http://opendatacommunities.org/id/metropolitan-district-council/leeds,Leeds City Council,31/05/2023,Communities Housing and Environment,Car Parking Services,External Income,Penalties Fines & Car Parking Charges,934,09/05/2023,2305-00067,0.00,35.00,R,REDACTED PERSONAL DATA,No
Http://opendatacommunities.org/id/metropolitan-district-council/leeds,Leeds City Council,31/05/2023,Strategic Landlord,HRA Housing Leeds,Capital,OTHER COSTS,7,18/05/2023,2305-00068,0.00,80.00,C,REDACTED PERSONAL DATA,No
Http://opendatacommunities.org/id/metropolitan-district-council/leeds,Leeds City Council,31/05/2023,Strategic Landlord,HRA Housing Leeds,Capital,OTHER COSTS,7,18/05/2023,2305-00069,0.00,80.00,C,REDACTED PERSONAL DATA,No
Http://opendatacommunities.org/id/metropolitan-district-council/leeds,Leeds City Council,31/05/2023,Children and Families,Social Care,Agency Payments,Services Rendered By Other Organisations,511,03/05/2023,2305-00070,0.00,457.86,R,REDACTED PERSONAL DATA,No
Http://opendatacommunities.org/id/metropolitan-district-council/leeds,Leeds City Council,31/05/2023,Strategy and Resources,Shared Services,Supplies and Services,Other Hired And Contracted Services,265,03/05/2023,2305-00071,0.00,40.00,R,A Star Couriers Ltd,No
Http://opendatacommunities.org/id/metropolitan-district-council/leeds,Leeds City Council,31/05/2023,Communities Housing and Environment,Waste Management,Employees,Training & Development,70,11/05/2023,2305-00072,0.00,393.00,R,A T Nerac Ltd,No
Http://opendatacommunities.org/id/metropolitan-district-council/leeds,Leeds City Council,31/05/2023,Communities Housing and Environment,Waste Management,Employees,Training & Development,70,12/05/2023,2305-00073,0.00,339.80,R,A T Nerac Ltd,No
Http://opendatacommunities.org/id/metropolitan-district-council/leeds,Leeds City Council,31/05/2023,Communities Housing and Environment,Waste Management,Employees,Training & Development,70,26/05/2023,2305-00074,0.00,275.80,R,A T Nerac Ltd,No
Http://opendatacommunities.org/id/metropolitan-district-council/leeds,Leeds City Council,31/05/2023,City Development,Economic Development,Supplies and Services,Grants To Businesses,243,05/05/2023,2305-00075,0.00,6418.35,R,A V & C Limited,No
Http://opendatacommunities.org/id/metropolitan-district-council/leeds,Leeds City Council,31/05/2023,Communities Housing and Environment,Benefits Wlefare and Poverty,Supplies and Services,Grant Related Expenditure,290,09/05/2023,2305-00076,0.00,650.00,R,REDACTED PERSONAL DATA,No
Http://opendatacommunities.org/id/metropolitan-district-council/leeds,Leeds City Council,31/05/2023,Children and Families,Social Care,Agency Payments,Services Rendered By Other Organisations,511,03/05/2023,2305-00077,0.00,228.93,R,REDACTED PERSONAL DATA,No
Http://opendatacommunities.org/id/metropolitan-district-council/leeds,Leeds City Council,31/05/2023,Strategic Landlord,Housing Management,Supplies and Services,Compensation Claims,200,30/05/2023,2305-00078,0.00,225.00,R,REDACTED PERSONAL DATA,No
Http://opendatacommunities.org/id/metropolitan-district-council/leeds,Leeds City Council,31/05/2023,Communities Housing and Environment,Waste Management,Capital,FURNITURE AND EQUIPMENT,5,12/05/2023,2305-00079,0.00,5900.00,C,A&C Weber Uk Ltd,No
Http://opendatacommunities.org/id/metropolitan-district-council/leeds,Leeds City Council,31/05/2023,Communities Housing and Environment,Waste Management,Capital,FURNITURE AND EQUIPMENT,5,12/05/2023,2305-00080,0.00,5125.00,C,A&C Weber Uk Ltd,No
Http://opendatacommunities.org/id/metropolitan-district-council/leeds,Leeds City Council,31/05/2023,Communities Housing and Environment,Waste Management,Capital,FURNITURE AND EQUIPMENT,5,25/05/2023,2305-00081,0.00,21111.18,C,A&C Weber Uk Ltd,No
Http://opendatacommunities.org/id/metropolitan-district-council/leeds,Leeds City Council,31/05/2023,City Development,Economic Development,Supplies and Services,Grants To Businesses,243,31/05/2023,2305-00082,0.00,10000.00,R,A.E.M.T.Limited,No
Http://opendatacommunities.org/id/metropolitan-district-council/leeds,Leeds City Council,31/05/2023,Strategy and Resources,Leeds Building Services,Supplies and Services,Operational Materials,205,05/05/2023,2305-00083,0.00,245.00,R,A1 STAIR LIFT SERVICES,No
Http://opendatacommunities.org/id/metropolitan-district-council/leeds,Leeds City Council,31/05/2023,Strategy and Resources,Leeds Building Services,Supplies and Services,Operational Materials,205,12/05/2023,2305-00084,0.00,27.00,R,A1 STAIR LIFT SERVICES,No
Http://opendatacommunities.org/id/metropolitan-district-council/leeds,Leeds City Council,31/05/2023,Strategy and Resources,Leeds Building Services,Supplies and Services,Operational Materials,205,17/05/2023,2305-00085,0.00,295.00,R,A1 STAIR LIFT SERVICES,No
Http://opendatacommunities.org/id/metropolitan-district-council/leeds,Leeds City Council,31/05/2023,Communities Housing and Environment,Parks and Countryside ,Transport,External Hire -Occasional,304,14/04/2023,2305-00086,0.00,112.00,R,A1mobile.Co.Uk,Yes
Http://opendatacommunities.org/id/metropolitan-district-council/leeds,Leeds City Council,31/05/2023,Communities Housing and Environment,Customer Access,Supplies and Services,Bought In Professional Services,277,04/05/2023,2305-00087,0.00,1100.00,R,AA Global Language Services Ltd,No
Http://opendatacommunities.org/id/metropolitan-district-council/leeds,Leeds City Council,31/05/2023,Communities Housing and Environment,Parks and Countryside ,Supplies and Services,Resaleable Materials,204,04/04/2023,2305-00088,0.00,252.90,R,Aagrah Foods,Yes
Http://opendatacommunities.org/id/metropolitan-district-council/leeds,Leeds City Council,31/05/2023,Adults and Health,Services For Adults Under 65 Learn/Dis,Internal Recharges,Legal Disbursements,411,03/05/2023,2305-00089,0.00,240.00,R,Aaqib Javed,No
Http://opendatacommunities.org/id/metropolitan-district-council/leeds,Leeds City Council,31/05/2023,Children and Families,Social Care ,Supplies and Services,Operational Materials,205,20/04/2023,2305-00090,0.00,6.67,R,Aardvark Archery,Yes
Http://opendatacommunities.org/id/metropolitan-district-council/leeds,Leeds City Council,31/05/2023,Adults and Health,Services For Older People - 65 And Over,Agency Payments,Residential Care Dementia,571,24/05/2023,2305-00091,0.00,3043.71,R,Aaron Court Care Home,No
Http://opendatacommunities.org/id/metropolitan-district-council/leeds,Leeds City Council as Accountable Body ,31/05/2023,Social Services Pooled Budgets,Leeds Community Equip Store Pooled Budgt,Supplies and Services,Other Equipment,203,05/05/2023,2305-00092,0.00,1624.00,R,AAT (GB) LTD,No
Http://opendatacommunities.org/id/metropolitan-district-council/leeds,Leeds City Council,31/05/2023,City Development,Economic Development,Supplies and Services,Grants To Businesses,243,10/05/2023,2305-00093,0.00,6000.00,R,Aaztec Associates Ltd,No
Http://opendatacommunities.org/id/metropolitan-district-council/leeds,Leeds City Council,31/05/2023,Communities Housing and Environment,Car Parking Services ,Supplies and Services,Postages,212,17/04/2023,2305-00094,0.00,48.50,R,Abacus Express,Yes
Http://opendatacommunities.org/id/metropolitan-district-council/leeds,Leeds City Council,31/05/2023,Adults and Health,Public Health,Agency Payments,Public Health Commissioned Services,526,03/05/2023,2305-00095,0.00,3142.88,R,Abbey Grange Medical Practice,No
Http://opendatacommunities.org/id/metropolitan-district-council/leeds,Leeds City Council,31/05/2023,Adults and Health,Services For Adults Under 65 Mental/Dis,Agency Payments,Home Care,568,12/05/2023,2305-00096,0.00,338.63,R,Abbeyfield The Dales Limited,No
Http://opendatacommunities.org/id/metropolitan-district-council/leeds,Leeds City Council,31/05/2023,Children and Families,Social Care,Agency Payments,Allowances,546,16/05/2023,2305-00097,0.00,618.45,R,Abbie O Mahony,No
Http://opendatacommunities.org/id/metropolitan-district-council/leeds,Leeds City Council,31/05/2023,Children and Families,Social Care,Agency Payments,Services Rendered By Other Organisations,511,05/05/2023,2305-00098,0.00,1343.16,R,REDACTED PERSONAL DATA,No
Http://opendatacommunities.org/id/metropolitan-district-council/leeds,Leeds City Council,31/05/2023,Communities Housing and Environment,Parks and Countryside ,Supplies and Services,Other Hired And Contracted Services,265,05/04/2023,2305-00099,0.00,6390.00,R,Abbotts Memorial Compa,Yes
Http://opendatacommunities.org/id/metropolitan-district-council/leeds,Leeds City Council,31/05/2023,Communities Housing and Environment,Parks and Countryside ,Supplies and Services,Other Hired And Contracted Services,265,17/04/2023,2305-00100,0.00,3220.00,R,Abbotts Memorial Compa,Yes
Http://opendatacommunities.org/id/metropolitan-district-council/leeds,Leeds City Council,31/05/2023,Communities Housing and Environment,Parks and Countryside ,Supplies and Services,Other Hired And Contracted Services,265,18/04/2023,2305-00101,0.00,1400.00,R,Abbotts Memorial Compa,Yes
Http://opendatacommunities.org/id/metropolitan-district-council/leeds,Leeds City Council,31/05/2023,Communities Housing and Environment,Parks and Countryside ,Supplies and Services,Other Hired And Contracted Services,265,18/04/2023,2305-00102,0.00,1200.00,R,Abbotts Memorial Compa,Yes
Http://opendatacommunities.org/id/metropolitan-district-council/leeds,Leeds City Council,31/05/2023,Communities Housing and Environment,Parks and Countryside ,Supplies and Services,Other Hired And Contracted Services,265,18/04/2023,2305-00103,0.00,1000.00,R,Abbotts Memorial Compa,Yes
Http://opendatacommunities.org/id/metropolitan-district-council/leeds,Leeds City Council,31/05/2023,Communities Housing and Environment,Parks and Countryside ,Supplies and Services,Other Hired And Contracted Services,265,19/04/2023,2305-00104,0.00,3220.00,R,Abbotts Memorial Compa,Yes
Http://opendatacommunities.org/id/metropolitan-district-council/leeds,Leeds City Council,31/05/2023,Communities Housing and Environment,Parks and Countryside ,Supplies and Services,Other Hired And Contracted Services,265,24/04/2023,2305-00105,0.00,2100.00,R,Abbotts Memorial Compa,Yes
Http://opendatacommunities.org/id/metropolitan-district-council/leeds,Leeds City Council,31/05/2023,Children and Families,Social Care,Agency Payments,General External Residential Placements,507,05/05/2023,2305-00106,0.00,4582.32,R,Abc Care And Education Ltd,No
Http://opendatacommunities.org/id/metropolitan-district-council/leeds,Leeds City Council,31/05/2023,Children and Families,Social Care,Agency Payments,General External Residential Placements,507,18/05/2023,2305-00107,0.00,3164.53,R,Abc Care And Education Ltd,No
Http://opendatacommunities.org/id/metropolitan-district-council/leeds,Leeds City Council,31/05/2023,Communities Housing and Environment,Environmental Health,Supplies and Services,Other Hired And Contracted Services,265,24/05/2023,2305-00108,0.00,2475.00,R,Abc Food Law Limited,No
Http://opendatacommunities.org/id/metropolitan-district-council/leeds,Leeds City Council,31/05/2023,Children and Families,Social Care,Agency Payments,Services Rendered By Other Organisations,511,03/05/2023,2305-00109,0.00,2747.16,R,ABC NURSERY AT LUFC,No
Http://opendatacommunities.org/id/metropolitan-district-council/leeds,Leeds City Council,31/05/2023,Children and Families,Social Care,Agency Payments,Services Rendered By Other Organisations,511,05/05/2023,2305-00110,0.00,8826.48,R,ABC NURSERY AT LUFC,No
Http://opendatacommunities.org/id/metropolitan-district-council/leeds,Leeds City Council,31/05/2023,Children and Families,Social Care,Agency Payments,Services Rendered By Other Organisations,511,03/05/2023,2305-00111,0.00,915.72,R,Abc@D'S Childcare,No
Http://opendatacommunities.org/id/metropolitan-district-council/leeds,Leeds City Council,31/05/2023,Children and Families,Social Care,Agency Payments,Services Rendered By Other Organisations,511,05/05/2023,2305-00112,0.00,7291.44,R,Abc@D'S Childcare,No
Http://opendatacommunities.org/id/metropolitan-district-council/leeds,Leeds City Council,31/05/2023,Communities Housing and Environment,Customer Access,Supplies and Services,Bought In Professional Services,277,04/05/2023,2305-00113,0.00,9.00,R,Abdalla Ahmed,No
Http://opendatacommunities.org/id/metropolitan-district-council/leeds,Leeds City Council,31/05/2023,Communities Housing and Environment,Customer Access,Supplies and Services,Bought In Professional Services,277,17/05/2023,2305-00114,0.00,36.60,R,Abdalla Ahmed,No
Http://opendatacommunities.org/id/metropolitan-district-council/leeds,Leeds City Council,31/05/2023,Communities Housing and Environment,Customer Access,Supplies and Services,Bought In Professional Services,277,17/05/2023,2305-00115,0.00,31.50,R,Abdalla Ahmed,No
Http://opendatacommunities.org/id/metropolitan-district-council/leeds,Leeds City Council,31/05/2023,Communities Housing and Environment,Customer Access,Supplies and Services,Bought In Professional Services,277,17/05/2023,2305-00116,0.00,16.50,R,Abdalla Ahmed,No
Http://opendatacommunities.org/id/metropolitan-district-council/leeds,Leeds City Council,31/05/2023,Communities Housing and Environment,Customer Access,Supplies and Services,Bought In Professional Services,277,24/05/2023,2305-00117,0.00,18.00,R,Abdalla Ahmed,No
Http://opendatacommunities.org/id/metropolitan-district-council/leeds,Leeds City Council,31/05/2023,Communities Housing and Environment,Customer Access,Supplies and Services,Bought In Professional Services,277,04/05/2023,2305-00118,0.00,18.00,R,Abdul Kalam,No
Http://opendatacommunities.org/id/metropolitan-district-council/leeds,Leeds City Council,31/05/2023,Communities Housing and Environment,Customer Access,Supplies and Services,Bought In Professional Services,277,17/05/2023,2305-00119,0.00,18.00,R,Abdul Kalam,No
Http://opendatacommunities.org/id/metropolitan-district-council/leeds,Leeds City Council,31/05/2023,Communities Housing and Environment,Customer Access,Supplies and Services,Bought In Professional Services,277,04/05/2023,2305-00120,0.00,18.00,R,Abdulahad Denha,No
Http://opendatacommunities.org/id/metropolitan-district-council/leeds,Leeds City Council,31/05/2023,Communities Housing and Environment,Customer Access,Supplies and Services,Bought In Professional Services,277,04/05/2023,2305-00121,0.00,18.00,R,Abdulahad Denha,No
Http://opendatacommunities.org/id/metropolitan-district-council/leeds,Leeds City Council,31/05/2023,Communities Housing and Environment,Customer Access,Supplies and Services,Bought In Professional Services,277,04/05/2023,2305-00122,0.00,27.00,R,Abdulahad Denha,No
Http://opendatacommunities.org/id/metropolitan-district-council/leeds,Leeds City Council,31/05/2023,Communities Housing and Environment,Customer Access,Supplies and Services,Bought In Professional Services,277,11/05/2023,2305-00123,0.00,18.00,R,Abdulahad Denha,No
Http://opendatacommunities.org/id/metropolitan-district-council/leeds,Leeds City Council,31/05/2023,Communities Housing and Environment,Customer Access,Supplies and Services,Bought In Professional Services,277,11/05/2023,2305-00124,0.00,18.00,R,Abdulahad Denha,No
Http://opendatacommunities.org/id/metropolitan-district-council/leeds,Leeds City Council,31/05/2023,Communities Housing and Environment,Customer Access,Supplies and Services,Bought In Professional Services,277,11/05/2023,2305-00125,0.00,18.00,R,Abdulahad Denha,No
Http://opendatacommunities.org/id/metropolitan-district-council/leeds,Leeds City Council,31/05/2023,Communities Housing and Environment,Customer Access,Supplies and Services,Bought In Professional Services,277,11/05/2023,2305-00126,0.00,18.00,R,Abdulahad Denha,No
Http://opendatacommunities.org/id/metropolitan-district-council/leeds,Leeds City Council,31/05/2023,Communities Housing and Environment,Customer Access,Supplies and Services,Bought In Professional Services,277,17/05/2023,2305-00127,0.00,22.50,R,Abdulahad Denha,No
Http://opendatacommunities.org/id/metropolitan-district-council/leeds,Leeds City Council,31/05/2023,Communities Housing and Environment,Customer Access,Supplies and Services,Bought In Professional Services,277,24/05/2023,2305-00128,0.00,18.00,R,Abdulahad Denha,No
Http://opendatacommunities.org/id/metropolitan-district-council/leeds,Leeds City Council,31/05/2023,Communities Housing and Environment,Customer Access,Supplies and Services,Bought In Professional Services,277,24/05/2023,2305-00129,0.00,18.00,R,Abdulahad Denha,No
Http://opendatacommunities.org/id/metropolitan-district-council/leeds,Leeds City Council,31/05/2023,City Development,Libraries Arts & Heritage,Supplies and Services,Bought In Professional Services,277,04/05/2023,2305-00130,0.00,250.00,R,Abdullah Adekola,No
Http://opendatacommunities.org/id/metropolitan-district-council/leeds,Leeds City Council,31/05/2023,Communities Housing and Environment,Customer Access,Supplies and Services,Bought In Professional Services,277,04/05/2023,2305-00131,0.00,27.00,R,Abdulrahim Dastyar,No
Http://opendatacommunities.org/id/metropolitan-district-council/leeds,Leeds City Council,31/05/2023,Communities Housing and Environment,Customer Access,Supplies and Services,Bought In Professional Services,277,11/05/2023,2305-00132,0.00,18.00,R,Abdulrahim Dastyar,No
Http://opendatacommunities.org/id/metropolitan-district-council/leeds,Leeds City Council,31/05/2023,Communities Housing and Environment,Customer Access,Supplies and Services,Bought In Professional Services,277,11/05/2023,2305-00133,0.00,13.50,R,Abdulrahim Dastyar,No
Http://opendatacommunities.org/id/metropolitan-district-council/leeds,Leeds City Council,31/05/2023,Communities Housing and Environment,Customer Access,Supplies and Services,Bought In Professional Services,277,17/05/2023,2305-00134,0.00,27.00,R,Abdulrahim Dastyar,No
Http://opendatacommunities.org/id/metropolitan-district-council/leeds,Leeds City Council,31/05/2023,Communities Housing and Environment,Elections Licensing and Registration,External Income,Admissions Booking Fees & Ticket Sales,933,18/05/2023,2305-00135,0.00,210.00,R,REDACTED PERSONAL DATA,No
Http://opendatacommunities.org/id/metropolitan-district-council/leeds,Leeds City Council,31/05/2023,Children and Families,Social Care,Agency Payments,Placement Support,550,19/05/2023,2305-00136,0.00,364.00,R,Aberford Childcare Services,No
Http://opendatacommunities.org/id/metropolitan-district-council/leeds,Leeds City Council,31/05/2023,Children and Families,Social Care,Agency Payments,Placement Support,550,19/05/2023,2305-00137,0.00,434.00,R,Aberford Childcare Services,No
Http://opendatacommunities.org/id/metropolitan-district-council/leeds,Leeds City Council,31/05/2023,Children and Families,Social Care,Agency Payments,Placement Support,550,19/05/2023,2305-00138,0.00,364.00,R,Aberford Childcare Services,No
Http://opendatacommunities.org/id/metropolitan-district-council/leeds,Leeds City Council,31/05/2023,Children and Families,Social Care,Agency Payments,Placement Support,550,19/05/2023,2305-00139,0.00,434.00,R,Aberford Childcare Services,No
Http://opendatacommunities.org/id/metropolitan-district-council/leeds,Leeds City Council,31/05/2023,Adults and Health,Services For Older People - 65 And Over,Agency Payments,Nursing Home,570,24/05/2023,2305-00140,0.00,44737.79,R,Aberford Hall,No
Http://opendatacommunities.org/id/metropolitan-district-council/leeds,Leeds City Council,31/05/2023,Adults and Health,Services For Older People - 65 And Over,Agency Payments,Residential,580,24/05/2023,2305-00141,0.00,282.34,R,Aberford Hall,No
Http://opendatacommunities.org/id/metropolitan-district-council/leeds,Leeds City Council,31/05/2023,Adults and Health,Services For Older People Under 65 P/Dis,Agency Payments,Nursing Home,570,24/05/2023,2305-00142,0.00,3016.00,R,Aberford Hall,No
Http://opendatacommunities.org/id/metropolitan-district-council/leeds,Leeds City Council,31/05/2023,Communities Housing and Environment,Elections Licensing and Registration,Premises,Rents,141,18/05/2023,2305-00143,0.00,500.00,R,Aberford Village Hall,No
Http://opendatacommunities.org/id/metropolitan-district-council/leeds,Leeds City Council,31/05/2023,Strategy and Resources,Leeds Building Services,Supplies and Services,Operational Materials,205,05/05/2023,2305-00144,0.00,10.83,R,ABI GARAGE DOORS LTD,No
Http://opendatacommunities.org/id/metropolitan-district-council/leeds,Leeds City Council,31/05/2023,Strategy and Resources,Leeds Building Services,Supplies and Services,Operational Materials,205,05/05/2023,2305-00145,0.00,10.83,R,ABI GARAGE DOORS LTD,No
Http://opendatacommunities.org/id/metropolitan-district-council/leeds,Leeds City Council,31/05/2023,Strategy and Resources,Leeds Building Services,Supplies and Services,Operational Materials,205,05/05/2023,2305-00146,0.00,10.83,R,ABI GARAGE DOORS LTD,No
Http://opendatacommunities.org/id/metropolitan-district-council/leeds,Leeds City Council,31/05/2023,Strategy and Resources,Leeds Building Services,Supplies and Services,Operational Materials,205,05/05/2023,2305-00147,0.00,10.83,R,ABI GARAGE DOORS LTD,No
Http://opendatacommunities.org/id/metropolitan-district-council/leeds,Leeds City Council,31/05/2023,Strategy and Resources,Leeds Building Services,Supplies and Services,Operational Materials,205,12/05/2023,2305-00148,0.00,390.88,R,ABI GARAGE DOORS LTD,No
Http://opendatacommunities.org/id/metropolitan-district-council/leeds,Leeds City Council,31/05/2023,Strategy and Resources,Leeds Building Services,Supplies and Services,Operational Materials,205,19/05/2023,2305-00149,0.00,391.85,R,ABI GARAGE DOORS LTD,No
Http://opendatacommunities.org/id/metropolitan-district-council/leeds,Leeds City Council,31/05/2023,Strategy and Resources,Leeds Building Services,Supplies and Services,Operational Materials,205,19/05/2023,2305-00150,0.00,455.00,R,ABI GARAGE DOORS LTD,No
Http://opendatacommunities.org/id/metropolitan-district-council/leeds,Leeds City Council,31/05/2023,Strategy and Resources,Leeds Building Services,Supplies and Services,Operational Materials,205,19/05/2023,2305-00151,0.00,390.88,R,ABI GARAGE DOORS LTD,No
Http://opendatacommunities.org/id/metropolitan-district-council/leeds,Leeds City Council,31/05/2023,Strategy and Resources,Leeds Building Services,Supplies and Services,Operational Materials,205,19/05/2023,2305-00152,0.00,455.00,R,ABI GARAGE DOORS LTD,No
Http://opendatacommunities.org/id/metropolitan-district-council/leeds,Leeds City Council,31/05/2023,Strategy and Resources,Leeds Building Services,Supplies and Services,Operational Materials,205,19/05/2023,2305-00153,0.00,391.85,R,ABI GARAGE DOORS LTD,No
Http://opendatacommunities.org/id/metropolitan-district-council/leeds,Leeds City Council,31/05/2023,Strategy and Resources,Leeds Building Services,Supplies and Services,Operational Materials,205,19/05/2023,2305-00154,0.00,390.88,R,ABI GARAGE DOORS LTD,No
Http://opendatacommunities.org/id/metropolitan-district-council/leeds,Leeds City Council,31/05/2023,Strategy and Resources,Leeds Building Services,Supplies and Services,Operational Materials,205,25/05/2023,2305-00155,0.00,38.00,R,ABI GARAGE DOORS LTD,No
Http://opendatacommunities.org/id/metropolitan-district-council/leeds,Leeds City Council,31/05/2023,Strategy and Resources,Leeds Building Services,Supplies and Services,Operational Materials,205,26/05/2023,2305-00156,0.00,25.42,R,ABI GARAGE DOORS LTD,No
Http://opendatacommunities.org/id/metropolitan-district-council/leeds,Leeds City Council,31/05/2023,Strategy and Resources,Leeds Building Services,Supplies and Services,Operational Materials,205,30/05/2023,2305-00157,0.00,10.83,R,ABI GARAGE DOORS LTD,No
Http://opendatacommunities.org/id/metropolitan-district-council/leeds,Leeds City Council,31/05/2023,Children and Families,Social Care,Agency Payments,Placement Support,550,19/05/2023,2305-00158,0.00,35.00,R,REDACTED PERSONAL DATA,No
Http://opendatacommunities.org/id/metropolitan-district-council/leeds,Leeds City Council,31/05/2023,Children and Families,Social Care,Agency Payments,Placement Support,550,19/05/2023,2305-00159,0.00,20.00,R,REDACTED PERSONAL DATA,No
Http://opendatacommunities.org/id/metropolitan-district-council/leeds,Leeds City Council,31/05/2023,Communities Housing and Environment,Benefits Wlefare and Poverty,Supplies and Services,Grant Related Expenditure,290,22/05/2023,2305-00160,0.00,50.00,R,REDACTED PERSONAL DATA,No
Http://opendatacommunities.org/id/metropolitan-district-council/leeds,Leeds City Council,31/05/2023,Communities Housing and Environment,Benefits Wlefare and Poverty,Supplies and Services,Grant Related Expenditure,290,22/05/2023,2305-00161,0.00,70.00,R,REDACTED PERSONAL DATA,No
Http://opendatacommunities.org/id/metropolitan-district-council/leeds,Leeds City Council,31/05/2023,Strategy and Resources,Technology,Supplies and Services,Computer Software & Equipment,214,19/05/2023,2305-00162,0.00,2760.00,R,ABM Critical Solutions Ltd,No
Http://opendatacommunities.org/id/metropolitan-district-council/leeds,Leeds City Council,31/05/2023,Children and Families,Social Care,Agency Payments,General External Residential Placements,507,26/05/2023,2305-00163,0.00,17121.30,R,Absolute Children's Services Ltd,No
Http://opendatacommunities.org/id/metropolitan-district-council/leeds,Leeds City Council,31/05/2023,Children and Families,Social Care ,Appropriations,Leaving Care Allowances,634,13/04/2023,2305-00164,0.00,1.00,R,Abu Bakr Supermarket,Yes
Http://opendatacommunities.org/id/metropolitan-district-council/leeds,Leeds City Council,31/05/2023,Communities Housing and Environment,Strategic Housing Partnership & Support,Supplies and Services,Other Hired And Contracted Services,265,19/05/2023,2305-00165,0.00,733.63,R,Accent Foundation Ltd,No
Http://opendatacommunities.org/id/metropolitan-district-council/leeds,Leeds City Council,31/05/2023,Communities Housing and Environment,Strategic Housing Partnership & Support,Supplies and Services,Other Hired And Contracted Services,265,23/05/2023,2305-00166,0.00,561.79,R,Accent Foundation Ltd,No
Http://opendatacommunities.org/id/metropolitan-district-council/leeds,Leeds City Council,31/05/2023,Resources,Technology,Supplies and Services,Computer Software & Equipment,214,04/05/2023,2305-00167,0.00,-24758.00,R,Access Uk Ltd,No
Http://opendatacommunities.org/id/metropolitan-district-council/leeds,Leeds City Council,31/05/2023,Resources,Technology,Supplies and Services,Computer Software & Equipment,214,04/05/2023,2305-00168,0.00,58180.09,R,Access Uk Ltd,No
Http://opendatacommunities.org/id/metropolitan-district-council/leeds,Leeds City Council,31/05/2023,Insurance,Insurance,Supplies and Services,Insurance Claims,248,10/05/2023,2305-00169,0.00,5062.12,R,Accident Exchange Ltd,No
Http://opendatacommunities.org/id/metropolitan-district-council/leeds,Leeds City Council,31/05/2023,City Development,Recreation,Transport,External Hire -Occasional,304,04/05/2023,2305-00170,0.00,124.50,R,ACE CONTAINER SERVICES LIMITED,No
Http://opendatacommunities.org/id/metropolitan-district-council/leeds,Leeds City Council,31/05/2023,Resources,Corporate Property Management,Capital,CONSTRUCTION,3,03/05/2023,2305-00171,0.00,10400.00,C,Ace Elevators Limited,No
Http://opendatacommunities.org/id/metropolitan-district-council/leeds,Leeds City Council,31/05/2023,Communities Housing and Environment,Parks and Countryside ,Supplies and Services,Other Hired And Contracted Services,265,17/04/2023,2305-00172,0.00,1141.78,R,Acme Facilities Group,Yes
Http://opendatacommunities.org/id/metropolitan-district-council/leeds,Leeds City Council,31/05/2023,Strategy and Resources,Leeds Building Services,Supplies and Services,Other Hired And Contracted Services,265,26/05/2023,2305-00173,0.00,123.50,R,Acorn Analytical Services Limited,No
Http://opendatacommunities.org/id/metropolitan-district-council/leeds,Leeds City Council as Accountable Body ,31/05/2023,Social Services Pooled Budgets,Jcs For People With Learning Disabilitie,Agency Payments,Residential,580,24/05/2023,2305-00174,0.00,55436.00,R,Acorn Care & Education Limited,No
Http://opendatacommunities.org/id/metropolitan-district-council/leeds,Leeds City Council as Accountable Body ,31/05/2023,Social Services Pooled Budgets,Jcs For People With Learning Disabilitie,Agency Payments,Residential,580,24/05/2023,2305-00175,0.00,103912.96,R,Acorn Care & Education Limited,No
Http://opendatacommunities.org/id/metropolitan-district-council/leeds,Leeds City Council,31/05/2023,Children and Families,Social Care,Agency Payments,General External Residential Placements,507,12/05/2023,2305-00176,0.00,18865.71,R,Acorn Care & Education Ltd (Sales),No
Http://opendatacommunities.org/id/metropolitan-district-council/leeds,Leeds City Council,31/05/2023,Adults and Health,Services For Older People Under 65 P/Dis,Agency Payments,Nursing Home,570,24/05/2023,2305-00177,0.00,3500.00,R,Acorn Care Home,No
Http://opendatacommunities.org/id/metropolitan-district-council/leeds,Leeds City Council,31/05/2023,Children and Families,Social Care,Agency Payments,Services Rendered By Other Organisations,511,03/05/2023,2305-00178,0.00,457.86,R,ACORNS NURSERY,No
Http://opendatacommunities.org/id/metropolitan-district-council/leeds,Leeds City Council,31/05/2023,Children and Families,Social Care,Agency Payments,Services Rendered By Other Organisations,511,05/05/2023,2305-00179,0.00,11129.04,R,ACORNS NURSERY,No
Http://opendatacommunities.org/id/metropolitan-district-council/leeds,Leeds City Council,31/05/2023,Adults and Health,Services For Older People - 65 And Over,Agency Payments,Nursing Home,570,24/05/2023,2305-00180,0.00,38268.12,R,Acre Green,No
Http://opendatacommunities.org/id/metropolitan-district-council/leeds,Leeds City Council,31/05/2023,Adults and Health,Services For Older People - 65 And Over,Agency Payments,Residential,580,24/05/2023,2305-00181,0.00,4548.80,R,Acre Green,No
Http://opendatacommunities.org/id/metropolitan-district-council/leeds,Leeds City Council,31/05/2023,Adults and Health,Services For Older People Under 65 P/Dis,Agency Payments,Residential,580,24/05/2023,2305-00182,0.00,2071.00,R,Acre Green,No
Http://opendatacommunities.org/id/metropolitan-district-council/leeds,Leeds City Council,31/05/2023,Children and Families,Social Care,Agency Payments,Services Rendered By Other Organisations,511,03/05/2023,2305-00183,0.00,915.72,R,Acre Wood Day Nursery,No
Http://opendatacommunities.org/id/metropolitan-district-council/leeds,Leeds City Council,31/05/2023,Children and Families,Social Care,Agency Payments,Services Rendered By Other Organisations,511,05/05/2023,2305-00184,0.00,13239.72,R,Acre Wood Day Nursery,No
Http://opendatacommunities.org/id/metropolitan-district-council/leeds,Leeds City Council,31/05/2023,Children and Families,Learning,Agency Payments,SEN Placements,566,17/05/2023,2305-00185,0.00,1905.33,R,Act Fast NL Ltd,No
Http://opendatacommunities.org/id/metropolitan-district-council/leeds,Leeds City Council,31/05/2023,Children and Families,Learning,Agency Payments,SEN Placements,566,17/05/2023,2305-00186,0.00,3538.47,R,Act Fast NL Ltd,No
Http://opendatacommunities.org/id/metropolitan-district-council/leeds,Leeds City Council,31/05/2023,Children and Families,Learning,Agency Payments,SEN Placements,566,17/05/2023,2305-00187,0.00,1633.14,R,Act Fast NL Ltd,No
Http://opendatacommunities.org/id/metropolitan-district-council/leeds,Leeds City Council,31/05/2023,Children and Families,Learning,Agency Payments,SEN Placements,566,17/05/2023,2305-00188,0.00,2994.09,R,Act Fast NL Ltd,No
Http://opendatacommunities.org/id/metropolitan-district-council/leeds,Leeds City Council,31/05/2023,Children and Families,Learning,Agency Payments,SEN Placements,566,17/05/2023,2305-00189,0.00,1905.33,R,Act Fast NL Ltd,No
Http://opendatacommunities.org/id/metropolitan-district-council/leeds,Leeds City Council,31/05/2023,Children and Families,Learning,Agency Payments,SEN Placements,566,17/05/2023,2305-00190,0.00,3810.66,R,Act Fast NL Ltd,No
Http://opendatacommunities.org/id/metropolitan-district-council/leeds,Leeds City Council,31/05/2023,Adults and Health,Services For Adults Under 65 Mental/Dis,Agency Payments,Fees - Level 4,520,04/05/2023,2305-00191,0.00,360.00,R,Action First Assessments Ltd,No
Http://opendatacommunities.org/id/metropolitan-district-council/leeds,Leeds City Council as Accountable Body ,31/05/2023,Social Services Pooled Budgets,Jcs For People With Learning Disabilitie,Agency Payments,Residential,580,24/05/2023,2305-00192,0.00,10702.60,R,Action For Care Contracts Limited,No
Http://opendatacommunities.org/id/metropolitan-district-council/leeds,Leeds City Council,31/05/2023,Children and Families,Social Care,Agency Payments,Services Rendered By Other Organisations,511,03/05/2023,2305-00193,0.00,915.72,R,ACTIVE KIDS YEADON LLP,No
Http://opendatacommunities.org/id/metropolitan-district-council/leeds,Leeds City Council,31/05/2023,Children and Families,Social Care,Agency Payments,Services Rendered By Other Organisations,511,05/05/2023,2305-00194,0.00,7214.69,R,ACTIVE KIDS YEADON LLP,No
Http://opendatacommunities.org/id/metropolitan-district-council/leeds,Leeds City Council,31/05/2023,Children and Families,Social Care ,Supplies and Services,Other Hired And Contracted Services,265,11/04/2023,2305-00195,0.00,3.75,R,Active Leeds,Yes
Http://opendatacommunities.org/id/metropolitan-district-council/leeds,Leeds City Council,31/05/2023,City Development,Recreation ,Supplies and Services,Other Hired And Contracted Services,265,25/04/2023,2305-00196,0.00,4.00,R,Active Leeds,Yes
Http://opendatacommunities.org/id/metropolitan-district-council/leeds,Leeds City Council,31/05/2023,Adults and Health,Services For Adults Under 65 Mental/Dis,Agency Payments,Sheltered Accommodation,569,24/05/2023,2305-00197,0.00,37838.98,R,Active Pathways,No
Http://opendatacommunities.org/id/metropolitan-district-council/leeds,Leeds City Council,31/05/2023,Adults and Health,Services For Older People - 65 And Over,Agency Payments,Sheltered Accommodation,569,24/05/2023,2305-00198,0.00,4150.84,R,Active Pathways,No
Http://opendatacommunities.org/id/metropolitan-district-council/leeds,Leeds City Council as Accountable Body ,31/05/2023,Social Services Pooled Budgets,Jcs For People With Learning Disabilitie,Agency Payments,Sheltered Accommodation,569,24/05/2023,2305-00199,0.00,8301.68,R,Active Pathways,No
Http://opendatacommunities.org/id/metropolitan-district-council/leeds,Leeds City Council,31/05/2023,Adults and Health,Services For Adults Under 65 Mental/Dis,Agency Payments,Residential,580,24/05/2023,2305-00200,0.00,12973.80,R,Active Pathways Limited,No
Http://opendatacommunities.org/id/metropolitan-district-council/leeds,Leeds City Council,31/05/2023,City Development,Economic Development,Supplies and Services,Grants To Businesses,243,17/05/2023,2305-00201,0.00,3595.03,R,Acume UK LImited,No
Http://opendatacommunities.org/id/metropolitan-district-council/leeds,Leeds City Council,31/05/2023,Communities Housing and Environment,Waste Management,Supplies and Services,Recycling & Reuse Charges,234,03/05/2023,2305-00202,0.00,4985.28,R,Acumen Waste Services Ltd,No
Http://opendatacommunities.org/id/metropolitan-district-council/leeds,Leeds City Council,31/05/2023,Communities Housing and Environment,Waste Management,Supplies and Services,Recycling & Reuse Charges,234,12/05/2023,2305-00203,0.00,6963.84,R,Acumen Waste Services Ltd,No
Http://opendatacommunities.org/id/metropolitan-district-council/leeds,Leeds City Council,31/05/2023,Communities Housing and Environment,Waste Management,Supplies and Services,Recycling & Reuse Charges,234,17/05/2023,2305-00204,0.00,8669.52,R,Acumen Waste Services Ltd,No
Http://opendatacommunities.org/id/metropolitan-district-council/leeds,Leeds City Council,31/05/2023,Communities Housing and Environment,Waste Management,Supplies and Services,Waste Disposal Charges,236,19/05/2023,2305-00205,0.00,275.00,R,Acumen Waste Services Ltd,No
Http://opendatacommunities.org/id/metropolitan-district-council/leeds,Leeds City Council,31/05/2023,Communities Housing and Environment,Waste Management,Supplies and Services,Waste Disposal Charges,236,19/05/2023,2305-00206,0.00,785.20,R,Acumen Waste Services Ltd,No
Http://opendatacommunities.org/id/metropolitan-district-council/leeds,Leeds City Council,31/05/2023,Communities Housing and Environment,Waste Management,Supplies and Services,Waste Disposal Charges,236,19/05/2023,2305-00207,0.00,330.00,R,Acumen Waste Services Ltd,No
Http://opendatacommunities.org/id/metropolitan-district-council/leeds,Leeds City Council,31/05/2023,Communities Housing and Environment,Waste Management,Supplies and Services,Waste Disposal Charges,236,19/05/2023,2305-00208,0.00,874.50,R,Acumen Waste Services Ltd,No
Http://opendatacommunities.org/id/metropolitan-district-council/leeds,Leeds City Council,31/05/2023,Communities Housing and Environment,Waste Management,Supplies and Services,Waste Disposal Charges,236,19/05/2023,2305-00209,0.00,275.00,R,Acumen Waste Services Ltd,No
Http://opendatacommunities.org/id/metropolitan-district-council/leeds,Leeds City Council,31/05/2023,Communities Housing and Environment,Waste Management,Supplies and Services,Waste Disposal Charges,236,19/05/2023,2305-00210,0.00,811.30,R,Acumen Waste Services Ltd,No
Http://opendatacommunities.org/id/metropolitan-district-council/leeds,Leeds City Council,31/05/2023,Communities Housing and Environment,Waste Management,Supplies and Services,Waste Disposal Charges,236,19/05/2023,2305-00211,0.00,945.80,R,Acumen Waste Services Ltd,No
Http://opendatacommunities.org/id/metropolitan-district-council/leeds,Leeds City Council,31/05/2023,Communities Housing and Environment,Waste Management,Supplies and Services,Waste Disposal Charges,236,19/05/2023,2305-00212,0.00,396.40,R,Acumen Waste Services Ltd,No
Http://opendatacommunities.org/id/metropolitan-district-council/leeds,Leeds City Council,31/05/2023,Communities Housing and Environment,Waste Management,Supplies and Services,Recycling & Reuse Charges,234,19/05/2023,2305-00213,0.00,3998.16,R,Acumen Waste Services Ltd,No
Http://opendatacommunities.org/id/metropolitan-district-council/leeds,Leeds City Council,31/05/2023,Communities Housing and Environment,Waste Management,Supplies and Services,Waste Disposal Charges,236,26/05/2023,2305-00214,0.00,8218.60,R,Acumen Waste Services Ltd,No
Http://opendatacommunities.org/id/metropolitan-district-council/leeds,Leeds City Council,31/05/2023,Communities Housing and Environment,Waste Management,Supplies and Services,Waste Disposal Charges,236,26/05/2023,2305-00215,0.00,11912.70,R,Acumen Waste Services Ltd,No
Http://opendatacommunities.org/id/metropolitan-district-council/leeds,Leeds City Council,31/05/2023,Resources,Shared Services,Supplies and Services,Other Hired And Contracted Services,265,05/05/2023,2305-00216,0.00,305.25,R,AD3 Envelope Printers Limited,No
Http://opendatacommunities.org/id/metropolitan-district-council/leeds,Leeds City Council,31/05/2023,Resources,Shared Services,Supplies and Services,Operational Materials,205,05/05/2023,2305-00217,0.00,1497.00,R,AD3 Envelope Printers Limited,No
Http://opendatacommunities.org/id/metropolitan-district-council/leeds,Leeds City Council,31/05/2023,Resources,Shared Services,Supplies and Services,Other Hired And Contracted Services,265,05/05/2023,2305-00218,0.00,218.32,R,AD3 Envelope Printers Limited,No
Http://opendatacommunities.org/id/metropolitan-district-council/leeds,Leeds City Council,31/05/2023,Strategy and Resources,Shared Services,Supplies and Services,Other Hired And Contracted Services,265,12/05/2023,2305-00219,0.00,353.25,R,AD3 Envelope Printers Limited,No
Http://opendatacommunities.org/id/metropolitan-district-council/leeds,Leeds City Council,31/05/2023,City Development,Highways,Internal Recharges,Legal Disbursements,411,03/05/2023,2305-00220,0.00,24472.50,R,Adam Aldred,No
Http://opendatacommunities.org/id/metropolitan-district-council/leeds,Leeds City Council,31/05/2023,Strategic Landlord,Housing Management,Supplies and Services,Compensation Claims,200,24/05/2023,2305-00221,0.00,50.00,R,REDACTED PERSONAL DATA,No
Http://opendatacommunities.org/id/metropolitan-district-council/leeds,Leeds City Council,31/05/2023,Children and Families,Social Care,Agency Payments, Direct Work,549,30/05/2023,2305-00222,0.00,4.59,R,REDACTED PERSONAL DATA,No
Http://opendatacommunities.org/id/metropolitan-district-council/leeds,Leeds City Council,31/05/2023,Children and Families,Social Care,Agency Payments, Direct Work,549,30/05/2023,2305-00223,0.00,9.00,R,REDACTED PERSONAL DATA,No
Http://opendatacommunities.org/id/metropolitan-district-council/leeds,Leeds City Council,31/05/2023,City Development,Recreation,Supplies and Services,Other Hired And Contracted Services,265,11/05/2023,2305-00224,0.00,150.00,R,REDACTED PERSONAL DATA,No
Http://opendatacommunities.org/id/metropolitan-district-council/leeds,Leeds City Council,31/05/2023,Adults and Health,Services For Older People - 65 And Over,Agency Payments,Residential,580,24/05/2023,2305-00225,0.00,1992.20,R,Adel Manor Care Centre,No
Http://opendatacommunities.org/id/metropolitan-district-council/leeds,Leeds City Council,31/05/2023,Communities Housing and Environment,Elections Licensing and Registration,Premises,Rents,141,15/05/2023,2305-00226,0.00,380.00,R,Adel Methodist Church Trustees,No
Http://opendatacommunities.org/id/metropolitan-district-council/leeds,Leeds City Council,31/05/2023,Children and Families,Social Care,Agency Payments,Services Rendered By Voluntary Sector,505,03/05/2023,2305-00227,0.00,1373.58,R,ADEL PRE SCHOOL,No
Http://opendatacommunities.org/id/metropolitan-district-council/leeds,Leeds City Council,31/05/2023,Children and Families,Social Care,Agency Payments,Services Rendered By Voluntary Sector,505,05/05/2023,2305-00228,0.00,3453.84,R,ADEL PRE SCHOOL,No
Http://opendatacommunities.org/id/metropolitan-district-council/leeds,Leeds City Council,31/05/2023,Children and Families,Social Care,Agency Payments,Services Rendered By Voluntary Sector,505,24/05/2023,2305-00229,0.00,1500.00,R,ADEL PRE SCHOOL,No
Http://opendatacommunities.org/id/metropolitan-district-council/leeds,Leeds City Council,31/05/2023,City Development,Recreation,Supplies and Services,Bought In Professional Services,277,26/05/2023,2305-00230,0.00,120.00,R,Adele Battersby,No
Http://opendatacommunities.org/id/metropolitan-district-council/leeds,Leeds City Council,31/05/2023,City Development,Recreation,Supplies and Services,Bought In Professional Services,277,26/05/2023,2305-00231,0.00,200.00,R,Adele Battersby,No
Http://opendatacommunities.org/id/metropolitan-district-council/leeds,Leeds City Council,31/05/2023,City Development,Recreation,Supplies and Services,Bought In Professional Services,277,26/05/2023,2305-00232,0.00,20.00,R,Adele Battersby,No
Http://opendatacommunities.org/id/metropolitan-district-council/leeds,Leeds City Council,31/05/2023,Children and Families,Social Care,Agency Payments,Services Rendered By Other Organisations,511,03/05/2023,2305-00233,0.00,228.93,R,REDACTED PERSONAL DATA,No
Http://opendatacommunities.org/id/metropolitan-district-council/leeds,Leeds City Council,31/05/2023,Children and Families,Social Care,Agency Payments,Services Rendered By Other Organisations,511,05/05/2023,2305-00234,0.00,1343.16,R,REDACTED PERSONAL DATA,No
Http://opendatacommunities.org/id/metropolitan-district-council/leeds,Leeds City Council,31/05/2023,Strategy and Resources,Commercial Services,Supplies and Services,Other Hired And Contracted Services,265,18/05/2023,2305-00235,0.00,102.69,R,REDACTED PERSONAL DATA,No
Http://opendatacommunities.org/id/metropolitan-district-council/leeds,Leeds City Council,31/05/2023,Strategy and Resources,Commercial Services,Supplies and Services,Other Hired And Contracted Services,265,18/05/2023,2305-00236,0.00,67.81,R,REDACTED PERSONAL DATA,No
Http://opendatacommunities.org/id/metropolitan-district-council/leeds,Leeds City Council,31/05/2023,Strategy and Resources,Commercial Services,Supplies and Services,Compensation Claims,200,11/05/2023,2305-00237,0.00,820.00,R,REDACTED PERSONAL DATA,No
Http://opendatacommunities.org/id/metropolitan-district-council/leeds,Leeds City Council,31/05/2023,City Development,Libraries Arts & Heritage,Supplies and Services,Licences,266,26/05/2023,2305-00238,0.00,466.00,R,ADI UK LTD,No
Http://opendatacommunities.org/id/metropolitan-district-council/leeds,Leeds City Council,31/05/2023,Strategy and Resources,Leeds Building Services,Supplies and Services,Operational Materials,205,03/05/2023,2305-00239,0.00,23.39,R,ADI-Gardiner Ltd,No
Http://opendatacommunities.org/id/metropolitan-district-council/leeds,Leeds City Council,31/05/2023,Strategy and Resources,Leeds Building Services,Supplies and Services,Operational Materials,205,03/05/2023,2305-00240,0.00,23.39,R,ADI-Gardiner Ltd,No
Http://opendatacommunities.org/id/metropolitan-district-council/leeds,Leeds City Council,31/05/2023,Strategy and Resources,Leeds Building Services,Supplies and Services,Operational Materials,205,03/05/2023,2305-00241,0.00,782.44,R,ADI-Gardiner Ltd,No
Http://opendatacommunities.org/id/metropolitan-district-council/leeds,Leeds City Council,31/05/2023,Strategy and Resources,Leeds Building Services,Supplies and Services,Operational Materials,205,03/05/2023,2305-00242,0.00,90.62,R,ADI-Gardiner Ltd,No
Http://opendatacommunities.org/id/metropolitan-district-council/leeds,Leeds City Council,31/05/2023,Strategy and Resources,Leeds Building Services,Supplies and Services,Operational Materials,205,05/05/2023,2305-00243,0.00,94.60,R,ADI-Gardiner Ltd,No
Http://opendatacommunities.org/id/metropolitan-district-council/leeds,Leeds City Council,31/05/2023,Strategy and Resources,Leeds Building Services,Supplies and Services,Operational Materials,205,05/05/2023,2305-00244,0.00,38.99,R,ADI-Gardiner Ltd,No
Http://opendatacommunities.org/id/metropolitan-district-council/leeds,Leeds City Council,31/05/2023,Strategy and Resources,Leeds Building Services,Supplies and Services,Operational Materials,205,11/05/2023,2305-00245,0.00,36.90,R,ADI-Gardiner Ltd,No
Http://opendatacommunities.org/id/metropolitan-district-council/leeds,Leeds City Council,31/05/2023,Strategy and Resources,Leeds Building Services,Supplies and Services,Operational Materials,205,11/05/2023,2305-00246,0.00,144.34,R,ADI-Gardiner Ltd,No
Http://opendatacommunities.org/id/metropolitan-district-council/leeds,Leeds City Council,31/05/2023,Strategy and Resources,Leeds Building Services,Supplies and Services,Operational Materials,205,11/05/2023,2305-00247,0.00,92.95,R,ADI-Gardiner Ltd,No
Http://opendatacommunities.org/id/metropolitan-district-council/leeds,Leeds City Council,31/05/2023,Strategy and Resources,Leeds Building Services,Supplies and Services,Operational Materials,205,12/05/2023,2305-00248,0.00,139.99,R,ADI-Gardiner Ltd,No
Http://opendatacommunities.org/id/metropolitan-district-council/leeds,Leeds City Council,31/05/2023,Strategy and Resources,Leeds Building Services,Supplies and Services,Operational Materials,205,12/05/2023,2305-00249,0.00,16.10,R,ADI-Gardiner Ltd,No
Http://opendatacommunities.org/id/metropolitan-district-council/leeds,Leeds City Council,31/05/2023,Strategy and Resources,Leeds Building Services,Supplies and Services,Operational Materials,205,17/05/2023,2305-00250,0.00,45.05,R,ADI-Gardiner Ltd,No
Http://opendatacommunities.org/id/metropolitan-district-council/leeds,Leeds City Council,31/05/2023,Strategy and Resources,Leeds Building Services,Supplies and Services,Operational Materials,205,17/05/2023,2305-00251,0.00,28.04,R,ADI-Gardiner Ltd,No
Http://opendatacommunities.org/id/metropolitan-district-council/leeds,Leeds City Council,31/05/2023,Strategy and Resources,Leeds Building Services,Supplies and Services,Operational Materials,205,17/05/2023,2305-00252,0.00,28.04,R,ADI-Gardiner Ltd,No
Http://opendatacommunities.org/id/metropolitan-district-council/leeds,Leeds City Council,31/05/2023,Strategy and Resources,Leeds Building Services,Supplies and Services,Operational Materials,205,17/05/2023,2305-00253,0.00,9.96,R,ADI-Gardiner Ltd,No
Http://opendatacommunities.org/id/metropolitan-district-council/leeds,Leeds City Council,31/05/2023,Strategy and Resources,Leeds Building Services,Supplies and Services,Operational Materials,205,19/05/2023,2305-00254,0.00,-30.40,R,ADI-Gardiner Ltd,No
Http://opendatacommunities.org/id/metropolitan-district-council/leeds,Leeds City Council,31/05/2023,Strategy and Resources,Leeds Building Services,Supplies and Services,Operational Materials,205,19/05/2023,2305-00255,0.00,-6.50,R,ADI-Gardiner Ltd,No
Http://opendatacommunities.org/id/metropolitan-district-council/leeds,Leeds City Council,31/05/2023,Strategy and Resources,Leeds Building Services,Supplies and Services,Operational Materials,205,19/05/2023,2305-00256,0.00,52.28,R,ADI-Gardiner Ltd,No
Http://opendatacommunities.org/id/metropolitan-district-council/leeds,Leeds City Council,31/05/2023,Strategy and Resources,Leeds Building Services,Supplies and Services,Operational Materials,205,19/05/2023,2305-00257,0.00,67.13,R,ADI-Gardiner Ltd,No
Http://opendatacommunities.org/id/metropolitan-district-council/leeds,Leeds City Council,31/05/2023,Strategy and Resources,Leeds Building Services,Supplies and Services,Operational Materials,205,19/05/2023,2305-00258,0.00,37.96,R,ADI-Gardiner Ltd,No
Http://opendatacommunities.org/id/metropolitan-district-council/leeds,Leeds City Council,31/05/2023,Strategy and Resources,Leeds Building Services,Supplies and Services,Operational Materials,205,19/05/2023,2305-00259,0.00,19.36,R,ADI-Gardiner Ltd,No
Http://opendatacommunities.org/id/metropolitan-district-council/leeds,Leeds City Council,31/05/2023,Communities Housing and Environment,Community Safety,Supplies and Services,Other Hired And Contracted Services,265,23/05/2023,2305-00260,0.00,6090.40,R,ADI-Gardiner Ltd,No
Http://opendatacommunities.org/id/metropolitan-district-council/leeds,Leeds City Council,31/05/2023,Communities Housing and Environment,Community Safety,Supplies and Services,Other Hired And Contracted Services,265,23/05/2023,2305-00261,0.00,605.05,R,ADI-Gardiner Ltd,No
Http://opendatacommunities.org/id/metropolitan-district-council/leeds,Leeds City Council,31/05/2023,Strategy and Resources,Leeds Building Services,Supplies and Services,Operational Materials,205,23/05/2023,2305-00262,0.00,171.20,R,ADI-Gardiner Ltd,No
Http://opendatacommunities.org/id/metropolitan-district-council/leeds,Leeds City Council,31/05/2023,Strategy and Resources,Leeds Building Services,Supplies and Services,Operational Materials,205,25/05/2023,2305-00263,0.00,484.67,R,ADI-Gardiner Ltd,No
Http://opendatacommunities.org/id/metropolitan-district-council/leeds,Leeds City Council,31/05/2023,City Development,Libraries Arts & Heritage ,Supplies and Services,Publication And Promotion,267,07/04/2023,2305-00264,0.00,43.32,R,Adobe Creative Cloud,Yes
Http://opendatacommunities.org/id/metropolitan-district-council/leeds,Leeds City Council,31/05/2023,Children and Families,Social Care,Agency Payments,Independent Fostering Agencies,509,04/05/2023,2305-00265,0.00,3565.00,R,Adolescent And Childrens Trust,No
Http://opendatacommunities.org/id/metropolitan-district-council/leeds,Leeds City Council,31/05/2023,Children and Families,Social Care,Agency Payments,Independent Fostering Agencies,509,04/05/2023,2305-00266,0.00,3565.00,R,Adolescent And Childrens Trust,No
Http://opendatacommunities.org/id/metropolitan-district-council/leeds,Leeds City Council,31/05/2023,Children and Families,Social Care,Agency Payments,Independent Fostering Agencies,509,04/05/2023,2305-00267,0.00,3751.00,R,Adolescent And Childrens Trust,No
Http://opendatacommunities.org/id/metropolitan-district-council/leeds,Leeds City Council,31/05/2023,Children and Families,Social Care,Agency Payments,Independent Fostering Agencies,509,04/05/2023,2305-00268,0.00,3751.00,R,Adolescent And Childrens Trust,No
Http://opendatacommunities.org/id/metropolitan-district-council/leeds,Leeds City Council,31/05/2023,Children and Families,Social Care,Agency Payments,Independent Fostering Agencies,509,04/05/2023,2305-00269,0.00,3658.00,R,Adolescent And Childrens Trust,No
Http://opendatacommunities.org/id/metropolitan-district-council/leeds,Leeds City Council,31/05/2023,Children and Families,Social Care,Agency Payments,Independent Fostering Agencies,509,04/05/2023,2305-00270,0.00,3658.00,R,Adolescent And Childrens Trust,No
Http://opendatacommunities.org/id/metropolitan-district-council/leeds,Leeds City Council,31/05/2023,Children and Families,Social Care,Agency Payments,Independent Fostering Agencies,509,04/05/2023,2305-00271,0.00,3534.00,R,Adolescent And Childrens Trust,No
Http://opendatacommunities.org/id/metropolitan-district-council/leeds,Leeds City Council,31/05/2023,Children and Families,Social Care,Agency Payments,Independent Fostering Agencies,509,04/05/2023,2305-00272,0.00,3583.53,R,Adolescent And Childrens Trust,No
Http://opendatacommunities.org/id/metropolitan-district-council/leeds,Leeds City Council,31/05/2023,Children and Families,Social Care,Agency Payments,Independent Fostering Agencies,509,04/05/2023,2305-00273,0.00,3583.53,R,Adolescent And Childrens Trust,No
Http://opendatacommunities.org/id/metropolitan-district-council/leeds,Leeds City Council,31/05/2023,Children and Families,Social Care,Agency Payments,Independent Fostering Agencies,509,04/05/2023,2305-00274,0.00,3422.00,R,Adolescent And Childrens Trust,No
Http://opendatacommunities.org/id/metropolitan-district-council/leeds,Leeds City Council,31/05/2023,Children and Families,Social Care,Agency Payments,Independent Fostering Agencies,509,04/05/2023,2305-00275,0.00,3534.00,R,Adolescent And Childrens Trust,No
Http://opendatacommunities.org/id/metropolitan-district-council/leeds,Leeds City Council,31/05/2023,Adults and Health,Services For Adults Under 65 Mental/Dis,Agency Payments,Home Care,568,04/05/2023,2305-00276,0.00,681.66,R,Adopt Healthcare Ltd,No
Http://opendatacommunities.org/id/metropolitan-district-council/leeds,Leeds City Council,31/05/2023,Adults and Health,Services For Adults Under 65 Mental/Dis,Agency Payments,Home Care,568,04/05/2023,2305-00277,0.00,201.15,R,Adopt Healthcare Ltd,No
Http://opendatacommunities.org/id/metropolitan-district-council/leeds,Leeds City Council,31/05/2023,Adults and Health,Services For Adults Under 65 Mental/Dis,Agency Payments,Home Care,568,11/05/2023,2305-00278,0.00,681.66,R,Adopt Healthcare Ltd,No
Http://opendatacommunities.org/id/metropolitan-district-council/leeds,Leeds City Council,31/05/2023,Adults and Health,Services For Adults Under 65 Mental/Dis,Agency Payments,Home Care,568,11/05/2023,2305-00279,0.00,201.15,R,Adopt Healthcare Ltd,No
Http://opendatacommunities.org/id/metropolitan-district-council/leeds,Leeds City Council,31/05/2023,Adults and Health,Services For Adults Under 65 Mental/Dis,Agency Payments,Home Care,568,17/05/2023,2305-00280,0.00,681.66,R,Adopt Healthcare Ltd,No
Http://opendatacommunities.org/id/metropolitan-district-council/leeds,Leeds City Council,31/05/2023,Adults and Health,Services For Adults Under 65 Mental/Dis,Agency Payments,Home Care,568,17/05/2023,2305-00281,0.00,201.15,R,Adopt Healthcare Ltd,No
Http://opendatacommunities.org/id/metropolitan-district-council/leeds,Leeds City Council,31/05/2023,Adults and Health,Services For Adults Under 65 Mental/Dis,Agency Payments,Home Care,568,23/05/2023,2305-00282,0.00,681.66,R,Adopt Healthcare Ltd,No
Http://opendatacommunities.org/id/metropolitan-district-council/leeds,Leeds City Council,31/05/2023,Adults and Health,Services For Adults Under 65 Mental/Dis,Agency Payments,Home Care,568,23/05/2023,2305-00283,0.00,201.15,R,Adopt Healthcare Ltd,No
Http://opendatacommunities.org/id/metropolitan-district-council/leeds,Leeds City Council,31/05/2023,Adults and Health,Services For Adults Under 65 Mental/Dis,Agency Payments,HCAIT Community Support,575,24/05/2023,2305-00284,0.00,3457.85,R,Adopt Healthcare Ltd,No
Http://opendatacommunities.org/id/metropolitan-district-council/leeds,Leeds City Council,31/05/2023,Adults and Health,Services For Adults Under 65 Mental/Dis,Agency Payments,Home Care,568,31/05/2023,2305-00285,0.00,681.66,R,Adopt Healthcare Ltd,No
Http://opendatacommunities.org/id/metropolitan-district-council/leeds,Leeds City Council,31/05/2023,Adults and Health,Services For Adults Under 65 Mental/Dis,Agency Payments,Home Care,568,31/05/2023,2305-00286,0.00,201.15,R,Adopt Healthcare Ltd,No
Http://opendatacommunities.org/id/metropolitan-district-council/leeds,Leeds City Council,31/05/2023,Children and Families,Social Care ,Agency Payments,Contact,548,03/04/2023,2305-00287,0.00,3.75,R,Adrenaline,Yes
Http://opendatacommunities.org/id/metropolitan-district-council/leeds,Leeds City Council as Accountable Body ,31/05/2023,Social Services Pooled Budgets,Jcs For People With Learning Disabilitie,Agency Payments,Residential,580,24/05/2023,2305-00288,0.00,2609.36,R,ADRIAN HOUSE,No
Http://opendatacommunities.org/id/metropolitan-district-council/leeds,Leeds City Council,31/05/2023,Strategic Landlord,HRA Housing Leeds,Capital,OTHER COSTS,7,02/05/2023,2305-00289,0.00,80.00,C,REDACTED PERSONAL DATA,No
Http://opendatacommunities.org/id/metropolitan-district-council/leeds,Leeds City Council,31/05/2023,Resources,Facilities Management ,Premises,Premises Security Services,162,24/04/2023,2305-00290,0.00,325.01,R,Adt Fire And Security,Yes
Http://opendatacommunities.org/id/metropolitan-district-council/leeds,Leeds City Council,31/05/2023,Resources,Facilities Management ,Premises,Premises Security Services,162,24/04/2023,2305-00291,0.00,325.01,R,Adt Fire And Security,Yes
Http://opendatacommunities.org/id/metropolitan-district-council/leeds,Leeds City Council,31/05/2023,Resources,Facilities Management ,Premises,Premises Security Services,162,24/04/2023,2305-00292,0.00,582.38,R,Adt Fire And Security,Yes
Http://opendatacommunities.org/id/metropolitan-district-council/leeds,Leeds City Council,31/05/2023,City Development,Libraries Arts & Heritage,Supplies and Services,Food & Drink,231,11/05/2023,2305-00293,0.00,100.00,R,ADVANCE STOCKS LTD,No
Http://opendatacommunities.org/id/metropolitan-district-council/leeds,Leeds City Council,31/05/2023,City Development,Recreation,Supplies and Services,External Audit Fees,261,11/05/2023,2305-00294,0.00,140.00,R,ADVANCE STOCKS LTD,No
Http://opendatacommunities.org/id/metropolitan-district-council/leeds,Leeds City Council,31/05/2023,Children and Families,Social Care,Internal Recharges,Legal Disbursements,411,18/05/2023,2305-00295,0.00,825.00,R,ADVANCED CHILD CARE ASSESSMENTS LTD,No
Http://opendatacommunities.org/id/metropolitan-district-council/leeds,Leeds City Council,31/05/2023,Children and Families,Social Care,Internal Recharges,Legal Disbursements,411,19/05/2023,2305-00296,0.00,1339.15,R,ADVANCED CHILD CARE ASSESSMENTS LTD,No
Http://opendatacommunities.org/id/metropolitan-district-council/leeds,Leeds City Council,31/05/2023,Adults and Health,Services For Older People - 65 And Over,Agency Payments,Home Care,568,03/05/2023,2305-00297,0.00,30074.17,R,Advanced Medcare Ltd,No
Http://opendatacommunities.org/id/metropolitan-district-council/leeds,Leeds City Council,31/05/2023,Adults and Health,Services For Older People - 65 And Over,Agency Payments,HCAIT Community Support,575,03/05/2023,2305-00298,0.00,450.80,R,Advanced Medcare Ltd,No
Http://opendatacommunities.org/id/metropolitan-district-council/leeds,Leeds City Council,31/05/2023,Adults and Health,Services For Older People Under 65 P/Dis,Agency Payments,Home Care,568,03/05/2023,2305-00299,0.00,7734.99,R,Advanced Medcare Ltd,No
Http://opendatacommunities.org/id/metropolitan-district-council/leeds,Leeds City Council,31/05/2023,Adults and Health,Assessment And Care Management,Agency Payments,Home Care,568,17/05/2023,2305-00300,0.00,573.72,R,Advanced Medcare Ltd,No
Http://opendatacommunities.org/id/metropolitan-district-council/leeds,Leeds City Council,31/05/2023,Adults and Health,Services For Adults Under 65 Learn/Dis,Agency Payments,Home Care,568,17/05/2023,2305-00301,0.00,573.72,R,Advanced Medcare Ltd,No
Http://opendatacommunities.org/id/metropolitan-district-council/leeds,Leeds City Council,31/05/2023,Adults and Health,Services For Older People - 65 And Over,Agency Payments,Home Care,568,17/05/2023,2305-00302,0.00,11976.32,R,Advanced Medcare Ltd,No
Http://opendatacommunities.org/id/metropolitan-district-council/leeds,Leeds City Council,31/05/2023,Adults and Health,Services For Older People - 65 And Over,Agency Payments,HCAIT Community Support,575,17/05/2023,2305-00303,0.00,655.68,R,Advanced Medcare Ltd,No
Http://opendatacommunities.org/id/metropolitan-district-council/leeds,Leeds City Council,31/05/2023,Adults and Health,Services For Older People Under 65 P/Dis,Agency Payments,Home Care,568,17/05/2023,2305-00304,0.00,4625.67,R,Advanced Medcare Ltd,No
Http://opendatacommunities.org/id/metropolitan-district-council/leeds,Leeds City Council,31/05/2023,Adults and Health,Services For Older People Under 65 P/Dis,Agency Payments,Home Care,568,24/05/2023,2305-00305,0.00,13733.42,R,Advanced Medcare Ltd,No
Http://opendatacommunities.org/id/metropolitan-district-council/leeds,Leeds City Council,31/05/2023,Adults and Health,Assessment And Care Management,Agency Payments,Home Care,568,24/05/2023,2305-00306,0.00,590.44,R,Advanced Medcare Ltd,No
Http://opendatacommunities.org/id/metropolitan-district-council/leeds,Leeds City Council,31/05/2023,Adults and Health,Services For Older People - 65 And Over,Agency Payments,Home Care,568,24/05/2023,2305-00307,0.00,38177.57,R,Advanced Medcare Ltd,No
Http://opendatacommunities.org/id/metropolitan-district-council/leeds,Leeds City Council,31/05/2023,Adults and Health,Services For Older People - 65 And Over,Agency Payments,HCAIT Community Support,575,24/05/2023,2305-00308,0.00,977.40,R,Advanced Medcare Ltd,No
Http://opendatacommunities.org/id/metropolitan-district-council/leeds,Leeds City Council,31/05/2023,Adults and Health,Services For Older People Under 65 P/Dis,Agency Payments,Home Care,568,24/05/2023,2305-00309,0.00,24891.25,R,Advanced Medcare Ltd,No
Http://opendatacommunities.org/id/metropolitan-district-council/leeds,Leeds City Council as Accountable Body ,31/05/2023,Social Services Pooled Budgets,Jcs For People With Learning Disabilitie,Agency Payments,Home Care,568,12/05/2023,2305-00310,0.00,5182.80,R,Advantage Healthcare Ltd,No
Http://opendatacommunities.org/id/metropolitan-district-council/leeds,Leeds City Council,31/05/2023,Adults and Health,Services For Adults Under 65 Mental/Dis,Agency Payments,Home Care,568,04/05/2023,2305-00311,0.00,112.50,R,Advonet,No
Http://opendatacommunities.org/id/metropolitan-district-council/leeds,Leeds City Council as Accountable Body ,31/05/2023,Social Services Pooled Budgets,Jcs For People With Learning Disabilitie,Supplies and Services,Other Hired And Contracted Services,265,04/05/2023,2305-00312,0.00,90.00,R,Advonet,No
Http://opendatacommunities.org/id/metropolitan-district-council/leeds,Leeds City Council as Accountable Body ,31/05/2023,Social Services Pooled Budgets,Jcs For People With Learning Disabilitie,Supplies and Services,Other Hired And Contracted Services,265,04/05/2023,2305-00313,0.00,37.50,R,Advonet,No
Http://opendatacommunities.org/id/metropolitan-district-council/leeds,Leeds City Council as Accountable Body ,31/05/2023,Social Services Pooled Budgets,Jcs For People With Learning Disabilitie,Supplies and Services,Other Hired And Contracted Services,265,04/05/2023,2305-00314,0.00,40.50,R,Advonet,No
Http://opendatacommunities.org/id/metropolitan-district-council/leeds,Leeds City Council as Accountable Body ,31/05/2023,Social Services Pooled Budgets,Jcs For People With Learning Disabilitie,Supplies and Services,Other Hired And Contracted Services,265,04/05/2023,2305-00315,0.00,83.10,R,Advonet,No
Http://opendatacommunities.org/id/metropolitan-district-council/leeds,Leeds City Council as Accountable Body ,31/05/2023,Social Services Pooled Budgets,Jcs For People With Learning Disabilitie,Supplies and Services,Other Hired And Contracted Services,265,04/05/2023,2305-00316,0.00,18.60,R,Advonet,No
Http://opendatacommunities.org/id/metropolitan-district-council/leeds,Leeds City Council,31/05/2023,Adults and Health,Services For Adults Under 65 Mental/Dis,Agency Payments,Home Care,568,04/05/2023,2305-00317,0.00,15.00,R,Advonet,No
Http://opendatacommunities.org/id/metropolitan-district-council/leeds,Leeds City Council as Accountable Body ,31/05/2023,Social Services Pooled Budgets,Jcs For People With Learning Disabilitie,Supplies and Services,Other Hired And Contracted Services,265,04/05/2023,2305-00318,0.00,90.00,R,Advonet,No
Http://opendatacommunities.org/id/metropolitan-district-council/leeds,Leeds City Council as Accountable Body ,31/05/2023,Social Services Pooled Budgets,Jcs For People With Learning Disabilitie,Supplies and Services,Other Hired And Contracted Services,265,04/05/2023,2305-00319,0.00,41.40,R,Advonet,No
Http://opendatacommunities.org/id/metropolitan-district-council/leeds,Leeds City Council,31/05/2023,Adults and Health,Services For Adults Under 65 Mental/Dis,Agency Payments,Home Care,568,04/05/2023,2305-00320,0.00,42.60,R,Advonet,No
Http://opendatacommunities.org/id/metropolitan-district-council/leeds,Leeds City Council,31/05/2023,Adults and Health,Services For Adults Under 65 Mental/Dis,Agency Payments,Home Care,568,04/05/2023,2305-00321,0.00,30.00,R,Advonet,No
Http://opendatacommunities.org/id/metropolitan-district-council/leeds,Leeds City Council as Accountable Body ,31/05/2023,Social Services Pooled Budgets,Jcs For People With Learning Disabilitie,Supplies and Services,Other Hired And Contracted Services,265,04/05/2023,2305-00322,0.00,27.60,R,Advonet,No
Http://opendatacommunities.org/id/metropolitan-district-council/leeds,Leeds City Council as Accountable Body ,31/05/2023,Social Services Pooled Budgets,Jcs For People With Learning Disabilitie,Supplies and Services,Other Hired And Contracted Services,265,04/05/2023,2305-00323,0.00,9.90,R,Advonet,No
Http://opendatacommunities.org/id/metropolitan-district-council/leeds,Leeds City Council as Accountable Body ,31/05/2023,Social Services Pooled Budgets,Jcs For People With Learning Disabilitie,Supplies and Services,Other Hired And Contracted Services,265,04/05/2023,2305-00324,0.00,20.10,R,Advonet,No
Http://opendatacommunities.org/id/metropolitan-district-council/leeds,Leeds City Council as Accountable Body ,31/05/2023,Social Services Pooled Budgets,Jcs For People With Learning Disabilitie,Supplies and Services,Other Hired And Contracted Services,265,04/05/2023,2305-00325,0.00,17.40,R,Advonet,No
Http://opendatacommunities.org/id/metropolitan-district-council/leeds,Leeds City Council as Accountable Body ,31/05/2023,Social Services Pooled Budgets,Jcs For People With Learning Disabilitie,Supplies and Services,Other Hired And Contracted Services,265,04/05/2023,2305-00326,0.00,27.60,R,Advonet,No
Http://opendatacommunities.org/id/metropolitan-district-council/leeds,Leeds City Council as Accountable Body ,31/05/2023,Social Services Pooled Budgets,Jcs For People With Learning Disabilitie,Supplies and Services,Other Hired And Contracted Services,265,04/05/2023,2305-00327,0.00,92.40,R,Advonet,No
Http://opendatacommunities.org/id/metropolitan-district-council/leeds,Leeds City Council as Accountable Body ,31/05/2023,Social Services Pooled Budgets,Jcs For People With Learning Disabilitie,Supplies and Services,Other Hired And Contracted Services,265,04/05/2023,2305-00328,0.00,62.40,R,Advonet,No
Http://opendatacommunities.org/id/metropolitan-district-council/leeds,Leeds City Council as Accountable Body ,31/05/2023,Social Services Pooled Budgets,Jcs For People With Learning Disabilitie,Supplies and Services,Other Hired And Contracted Services,265,04/05/2023,2305-00329,0.00,182.40,R,Advonet,No
Http://opendatacommunities.org/id/metropolitan-district-council/leeds,Leeds City Council as Accountable Body ,31/05/2023,Social Services Pooled Budgets,Jcs For People With Learning Disabilitie,Supplies and Services,Other Hired And Contracted Services,265,04/05/2023,2305-00330,0.00,23.40,R,Advonet,No
Http://opendatacommunities.org/id/metropolitan-district-council/leeds,Leeds City Council,31/05/2023,Adults and Health,Services For Adults Under 65 Mental/Dis,Agency Payments,Home Care,568,04/05/2023,2305-00331,0.00,82.20,R,Advonet,No
Http://opendatacommunities.org/id/metropolitan-district-council/leeds,Leeds City Council as Accountable Body ,31/05/2023,Social Services Pooled Budgets,Jcs For People With Learning Disabilitie,Supplies and Services,Other Hired And Contracted Services,265,04/05/2023,2305-00332,0.00,65.10,R,Advonet,No
Http://opendatacommunities.org/id/metropolitan-district-council/leeds,Leeds City Council as Accountable Body ,31/05/2023,Social Services Pooled Budgets,Jcs For People With Learning Disabilitie,Supplies and Services,Other Hired And Contracted Services,265,04/05/2023,2305-00333,0.00,9.90,R,Advonet,No
Http://opendatacommunities.org/id/metropolitan-district-council/leeds,Leeds City Council as Accountable Body ,31/05/2023,Social Services Pooled Budgets,Jcs For People With Learning Disabilitie,Supplies and Services,Other Hired And Contracted Services,265,04/05/2023,2305-00334,0.00,20.10,R,Advonet,No
Http://opendatacommunities.org/id/metropolitan-district-council/leeds,Leeds City Council as Accountable Body ,31/05/2023,Social Services Pooled Budgets,Jcs For People With Learning Disabilitie,Supplies and Services,Other Hired And Contracted Services,265,04/05/2023,2305-00335,0.00,7.50,R,Advonet,No
Http://opendatacommunities.org/id/metropolitan-district-council/leeds,Leeds City Council,31/05/2023,City Development,Asset Management,Capital,OTHER COSTS,7,02/05/2023,2305-00336,0.00,773.64,C,Aecom Limited,No
Http://opendatacommunities.org/id/metropolitan-district-council/leeds,Leeds City Council,31/05/2023,City Development,Highways,Capital,OTHER COSTS,7,03/05/2023,2305-00337,0.00,84029.09,C,Aecom Limited,No
Http://opendatacommunities.org/id/metropolitan-district-council/leeds,Leeds City Council,31/05/2023,City Development,Highways,Capital,OTHER COSTS,7,04/05/2023,2305-00338,0.00,124953.68,C,Aecom Limited,No
Http://opendatacommunities.org/id/metropolitan-district-council/leeds,Leeds City Council,31/05/2023,City Development,Asset Management,Capital,OTHER COSTS,7,23/05/2023,2305-00339,0.00,4457.40,C,Aecom Limited,No
Http://opendatacommunities.org/id/metropolitan-district-council/leeds,Leeds City Council,31/05/2023,City Development,Highways,Capital,OTHER COSTS,7,24/05/2023,2305-00340,0.00,42128.91,C,Aecom Limited,No
Http://opendatacommunities.org/id/metropolitan-district-council/leeds,Leeds City Council,31/05/2023,City Development,Highways,Capital,OTHER COSTS,7,26/05/2023,2305-00341,0.00,66313.73,C,Aecom Limited,No
Http://opendatacommunities.org/id/metropolitan-district-council/leeds,Leeds City Council,31/05/2023,City Development,Highways,Capital,OTHER COSTS,7,30/05/2023,2305-00342,0.00,86115.81,C,Aecom Limited,No
Http://opendatacommunities.org/id/metropolitan-district-council/leeds,Leeds City Council,31/05/2023,Adults and Health,Services For Adults Under 65 Mental/Dis,Agency Payments,Home Care,568,05/05/2023,2305-00343,0.00,640.80,R,Aegis Care Solutions Ltd,No
Http://opendatacommunities.org/id/metropolitan-district-council/leeds,Leeds City Council,31/05/2023,Adults and Health,Services For Adults Under 65 Mental/Dis,Agency Payments,Home Care,568,05/05/2023,2305-00344,0.00,475.20,R,Aegis Care Solutions Ltd,No
Http://opendatacommunities.org/id/metropolitan-district-council/leeds,Leeds City Council,31/05/2023,Adults and Health,Services For Adults Under 65 Mental/Dis,Agency Payments,Home Care,568,05/05/2023,2305-00345,0.00,1269.30,R,Aegis Care Solutions Ltd,No
Http://opendatacommunities.org/id/metropolitan-district-council/leeds,Leeds City Council,31/05/2023,Adults and Health,Services For Adults Under 65 Mental/Dis,Agency Payments,Home Care,568,05/05/2023,2305-00346,0.00,4542.40,R,Aegis Care Solutions Ltd,No
Http://opendatacommunities.org/id/metropolitan-district-council/leeds,Leeds City Council,31/05/2023,Adults and Health,Services For Adults Under 65 Mental/Dis,Agency Payments,Home Care,568,05/05/2023,2305-00347,0.00,1195.50,R,Aegis Care Solutions Ltd,No
Http://opendatacommunities.org/id/metropolitan-district-council/leeds,Leeds City Council,31/05/2023,Adults and Health,Services For Adults Under 65 Mental/Dis,Agency Payments,Home Care,568,05/05/2023,2305-00348,0.00,2213.45,R,Aegis Care Solutions Ltd,No
Http://opendatacommunities.org/id/metropolitan-district-council/leeds,Leeds City Council,31/05/2023,Adults and Health,Services For Adults Under 65 Mental/Dis,Agency Payments,Home Care,568,05/05/2023,2305-00349,0.00,1655.35,R,Aegis Care Solutions Ltd,No
Http://opendatacommunities.org/id/metropolitan-district-council/leeds,Leeds City Council,31/05/2023,Adults and Health,Services For Adults Under 65 Mental/Dis,Agency Payments,Home Care,568,05/05/2023,2305-00350,0.00,1396.90,R,Aegis Care Solutions Ltd,No
Http://opendatacommunities.org/id/metropolitan-district-council/leeds,Leeds City Council,31/05/2023,Adults and Health,Services For Adults Under 65 Mental/Dis,Agency Payments,Home Care,568,05/05/2023,2305-00351,0.00,1135.60,R,Aegis Care Solutions Ltd,No
Http://opendatacommunities.org/id/metropolitan-district-council/leeds,Leeds City Council,31/05/2023,Adults and Health,Services For Adults Under 65 Mental/Dis,Agency Payments,Home Care,568,05/05/2023,2305-00352,0.00,320.40,R,Aegis Care Solutions Ltd,No
Http://opendatacommunities.org/id/metropolitan-district-council/leeds,Leeds City Council,31/05/2023,Adults and Health,Services For Adults Under 65 Mental/Dis,Agency Payments,Home Care,568,05/05/2023,2305-00353,0.00,373.80,R,Aegis Care Solutions Ltd,No
Http://opendatacommunities.org/id/metropolitan-district-council/leeds,Leeds City Council as Accountable Body ,31/05/2023,Social Services Pooled Budgets,Jcs For People With Learning Disabilitie,Agency Payments,Home Care,568,05/05/2023,2305-00354,0.00,1188.10,R,Aegis Care Solutions Ltd,No
Http://opendatacommunities.org/id/metropolitan-district-council/leeds,Leeds City Council,31/05/2023,Children and Families,Social Care,Agency Payments,Placement Support,550,19/05/2023,2305-00355,0.00,1150.00,R,Affinity Funeral Care,No
Http://opendatacommunities.org/id/metropolitan-district-council/leeds,Leeds City Council,31/05/2023,Adults and Health,Assessment And Care Management,Agency Payments,Home Care,568,17/05/2023,2305-00356,0.00,70.96,R,Affinity Trust,No
Http://opendatacommunities.org/id/metropolitan-district-council/leeds,Leeds City Council,31/05/2023,Adults and Health,Services For Adults Under 65 Mental/Dis,Agency Payments,Home Care,568,17/05/2023,2305-00357,0.00,283.84,R,Affinity Trust,No
Http://opendatacommunities.org/id/metropolitan-district-council/leeds,Leeds City Council,31/05/2023,Adults and Health,Services For Adults Under 65 Mental/Dis,Agency Payments,HCAIT Community Support,575,17/05/2023,2305-00358,0.00,177.40,R,Affinity Trust,No
Http://opendatacommunities.org/id/metropolitan-district-council/leeds,Leeds City Council,31/05/2023,Adults and Health,Services For Older People - 65 And Over,Agency Payments,HCAIT Community Support,575,17/05/2023,2305-00359,0.00,319.32,R,Affinity Trust,No
Http://opendatacommunities.org/id/metropolitan-district-council/leeds,Leeds City Council,31/05/2023,Adults and Health,Services For Older People Under 65 P/Dis,Agency Payments,Home Care,568,17/05/2023,2305-00360,0.00,425.76,R,Affinity Trust,No
Http://opendatacommunities.org/id/metropolitan-district-council/leeds,Leeds City Council,31/05/2023,Adults and Health,Services For Older People Under 65 P/Dis,Agency Payments,HCAIT Community Support,575,17/05/2023,2305-00361,0.00,390.28,R,Affinity Trust,No
Http://opendatacommunities.org/id/metropolitan-district-council/leeds,Leeds City Council,31/05/2023,Adults and Health,Assessment And Care Management,Agency Payments,Home Care,568,17/05/2023,2305-00362,0.00,141.92,R,Affinity Trust,No
Http://opendatacommunities.org/id/metropolitan-district-council/leeds,Leeds City Council,31/05/2023,Adults and Health,Services For Adults Under 65 Mental/Dis,Agency Payments,Home Care,568,17/05/2023,2305-00363,0.00,567.68,R,Affinity Trust,No
Http://opendatacommunities.org/id/metropolitan-district-council/leeds,Leeds City Council,31/05/2023,Adults and Health,Services For Adults Under 65 Mental/Dis,Agency Payments,HCAIT Community Support,575,17/05/2023,2305-00364,0.00,354.80,R,Affinity Trust,No
Http://opendatacommunities.org/id/metropolitan-district-council/leeds,Leeds City Council,31/05/2023,Adults and Health,Services For Older People - 65 And Over,Agency Payments,HCAIT Community Support,575,17/05/2023,2305-00365,0.00,638.64,R,Affinity Trust,No
Http://opendatacommunities.org/id/metropolitan-district-council/leeds,Leeds City Council,31/05/2023,Adults and Health,Services For Older People Under 65 P/Dis,Agency Payments,Home Care,568,17/05/2023,2305-00366,0.00,851.52,R,Affinity Trust,No
Http://opendatacommunities.org/id/metropolitan-district-council/leeds,Leeds City Council,31/05/2023,Adults and Health,Services For Older People Under 65 P/Dis,Agency Payments,HCAIT Community Support,575,17/05/2023,2305-00367,0.00,780.56,R,Affinity Trust,No
Http://opendatacommunities.org/id/metropolitan-district-council/leeds,Leeds City Council as Accountable Body ,31/05/2023,Social Services Pooled Budgets,Jcs For People With Learning Disabilitie,Agency Payments,Sheltered Accommodation,569,24/05/2023,2305-00368,0.00,116933.60,R,Affinity Trust North Divisional Office,No
Http://opendatacommunities.org/id/metropolitan-district-council/leeds,Leeds City Council,31/05/2023,Communities Housing and Environment,Parks and Countryside ,Transport,Hire Of Movable Plant & Machinery,315,19/04/2023,2305-00369,0.00,4750.00,R,Afi Uplift,Yes
Http://opendatacommunities.org/id/metropolitan-district-council/leeds,Leeds City Council,31/05/2023,Strategy and Resources,Commercial Services,Supplies and Services,Compensation Claims,200,12/05/2023,2305-00370,0.00,582.40,R,REDACTED PERSONAL DATA,No
Http://opendatacommunities.org/id/metropolitan-district-council/leeds,Leeds City Council,31/05/2023,Adults and Health,Social Services Support Services,Employees,Training & Development,70,22/05/2023,2305-00371,0.00,13.00,R,REDACTED PERSONAL DATA,No
Http://opendatacommunities.org/id/metropolitan-district-council/leeds,Leeds City Council,31/05/2023,Communities Housing and Environment,Communities,Supplies and Services,Other Hired And Contracted Services,265,04/05/2023,2305-00372,0.00,100.00,R,Age Uk Leeds,No
Http://opendatacommunities.org/id/metropolitan-district-council/leeds,Leeds City Council,31/05/2023,City Development,Highways,Capital,CONSTRUCTION,3,19/05/2023,2305-00373,0.00,135291.66,C,AGGREGATE INDUSTRIES UK LTD,No
Http://opendatacommunities.org/id/metropolitan-district-council/leeds,Leeds City Council,31/05/2023,City Development,Highways,Capital,CONSTRUCTION,3,19/05/2023,2305-00374,0.00,256996.38,C,AGGREGATE INDUSTRIES UK LTD,No
Http://opendatacommunities.org/id/metropolitan-district-council/leeds,Leeds City Council,31/05/2023,City Development,Highways,Supplies and Services,Operational Materials,205,19/05/2023,2305-00375,0.00,101.20,R,AGGREGATE INDUSTRIES UK LTD,No
Http://opendatacommunities.org/id/metropolitan-district-council/leeds,Leeds City Council,31/05/2023,Communities Housing and Environment,Customer Access,Supplies and Services,Bought In Professional Services,277,11/05/2023,2305-00376,0.00,18.00,R,Agnieszka J Collier,No
Http://opendatacommunities.org/id/metropolitan-district-council/leeds,Leeds City Council,31/05/2023,Communities Housing and Environment,Customer Access,Supplies and Services,Bought In Professional Services,277,17/05/2023,2305-00377,0.00,18.00,R,Agnieszka J Collier,No
Http://opendatacommunities.org/id/metropolitan-district-council/leeds,Leeds City Council,31/05/2023,Communities Housing and Environment,Parks and Countryside ,Supplies and Services,Other Hired And Contracted Services,265,06/04/2023,2305-00378,0.00,180.00,R,Agridirect,Yes
Http://opendatacommunities.org/id/metropolitan-district-council/leeds,Leeds City Council,31/05/2023,Communities Housing and Environment,Parks and Countryside ,Supplies and Services,Other Hired And Contracted Services,265,06/04/2023,2305-00379,0.00,95.00,R,Agridirect,Yes
Http://opendatacommunities.org/id/metropolitan-district-council/leeds,Leeds City Council,31/05/2023,Communities Housing and Environment,Customer Access,Supplies and Services,Bought In Professional Services,277,11/05/2023,2305-00380,0.00,27.00,R,Ahamat Hassan,No
Http://opendatacommunities.org/id/metropolitan-district-council/leeds,Leeds City Council,31/05/2023,Communities Housing and Environment,Customer Access,Supplies and Services,Bought In Professional Services,277,11/05/2023,2305-00381,0.00,18.00,R,Ahamat Hassan,No
Http://opendatacommunities.org/id/metropolitan-district-council/leeds,Leeds City Council,31/05/2023,City Development,Libraries Arts & Heritage ,Supplies and Services,Conference Meetings,253,24/04/2023,2305-00382,0.00,45.00,R,Ahi.Org.Uk,Yes
Http://opendatacommunities.org/id/metropolitan-district-council/leeds,Leeds City Council,31/05/2023,Communities Housing and Environment,Customer Access,Supplies and Services,Bought In Professional Services,277,11/05/2023,2305-00383,0.00,22.50,R,Ahmed T. Al-Hamdi,No
Http://opendatacommunities.org/id/metropolitan-district-council/leeds,Leeds City Council as Accountable Body ,31/05/2023,Social Services Pooled Budgets,Leeds Community Equip Store Pooled Budgt,Supplies and Services,Other Equipment,203,04/05/2023,2305-00384,0.00,1300.00,R,AIDAPT BATHROOMS LTD,No
Http://opendatacommunities.org/id/metropolitan-district-council/leeds,Leeds City Council as Accountable Body ,31/05/2023,Social Services Pooled Budgets,Leeds Community Equip Store Pooled Budgt,Supplies and Services,Other Equipment,203,05/05/2023,2305-00385,0.00,1080.00,R,AIDAPT BATHROOMS LTD,No
Http://opendatacommunities.org/id/metropolitan-district-council/leeds,Leeds City Council as Accountable Body ,31/05/2023,Social Services Pooled Budgets,Leeds Community Equip Store Pooled Budgt,Supplies and Services,Other Equipment,203,05/05/2023,2305-00386,0.00,798.00,R,AIDAPT BATHROOMS LTD,No
Http://opendatacommunities.org/id/metropolitan-district-council/leeds,Leeds City Council as Accountable Body ,31/05/2023,Social Services Pooled Budgets,Leeds Community Equip Store Pooled Budgt,Supplies and Services,Other Equipment,203,12/05/2023,2305-00387,0.00,643.00,R,AIDAPT BATHROOMS LTD,No
Http://opendatacommunities.org/id/metropolitan-district-council/leeds,Leeds City Council as Accountable Body ,31/05/2023,Social Services Pooled Budgets,Leeds Community Equip Store Pooled Budgt,Supplies and Services,Other Equipment,203,12/05/2023,2305-00388,0.00,1530.00,R,AIDAPT BATHROOMS LTD,No
Http://opendatacommunities.org/id/metropolitan-district-council/leeds,Leeds City Council as Accountable Body ,31/05/2023,Social Services Pooled Budgets,Leeds Community Equip Store Pooled Budgt,Supplies and Services,Other Equipment,203,12/05/2023,2305-00389,0.00,463.00,R,AIDAPT BATHROOMS LTD,No
Http://opendatacommunities.org/id/metropolitan-district-council/leeds,Leeds City Council as Accountable Body ,31/05/2023,Social Services Pooled Budgets,Leeds Community Equip Store Pooled Budgt,Supplies and Services,Other Equipment,203,18/05/2023,2305-00390,0.00,3600.00,R,AIDAPT BATHROOMS LTD,No
Http://opendatacommunities.org/id/metropolitan-district-council/leeds,Leeds City Council as Accountable Body ,31/05/2023,Social Services Pooled Budgets,Leeds Community Equip Store Pooled Budgt,Supplies and Services,Other Equipment,203,18/05/2023,2305-00391,0.00,360.00,R,AIDAPT BATHROOMS LTD,No
Http://opendatacommunities.org/id/metropolitan-district-council/leeds,Leeds City Council as Accountable Body ,31/05/2023,Social Services Pooled Budgets,Leeds Community Equip Store Pooled Budgt,Supplies and Services,Other Equipment,203,18/05/2023,2305-00392,0.00,750.00,R,AIDAPT BATHROOMS LTD,No
Http://opendatacommunities.org/id/metropolitan-district-council/leeds,Leeds City Council as Accountable Body ,31/05/2023,Social Services Pooled Budgets,Leeds Community Equip Store Pooled Budgt,Supplies and Services,Other Equipment,203,19/05/2023,2305-00393,0.00,3600.00,R,AIDAPT BATHROOMS LTD,No
Http://opendatacommunities.org/id/metropolitan-district-council/leeds,Leeds City Council,31/05/2023,Children and Families,Social Care,Agency Payments,Placement Support,550,05/05/2023,2305-00394,0.00,15.00,R,REDACTED PERSONAL DATA,No
Http://opendatacommunities.org/id/metropolitan-district-council/leeds,Leeds City Council,31/05/2023,Children and Families,Social Care ,Appropriations,Leaving Care Allowances,634,06/04/2023,2305-00395,0.00,10.06,R,Ainsworth Arms,Yes
Http://opendatacommunities.org/id/metropolitan-district-council/leeds,Leeds City Council,31/05/2023,Resources,Commercial Services ,Supplies and Services,Operational Materials,205,25/04/2023,2305-00396,0.00,304.50,R,Air Force Pneumatics And,Yes
Http://opendatacommunities.org/id/metropolitan-district-council/leeds,Leeds City Council,31/05/2023,Resources,Commercial Services ,Supplies and Services,Operational Materials,205,27/04/2023,2305-00397,0.00,26.16,R,Air Force Pneumatics And,Yes
Http://opendatacommunities.org/id/metropolitan-district-council/leeds,Leeds City Council,31/05/2023,Communities Housing and Environment,Environmental Health,Supplies and Services,Other Hired And Contracted Services,265,04/05/2023,2305-00398,0.00,11.75,R,AIR LIQUIDE UK,No
Http://opendatacommunities.org/id/metropolitan-district-council/leeds,Leeds City Council,31/05/2023,Communities Housing and Environment,Environmental Health,Supplies and Services,Other Hired And Contracted Services,265,04/05/2023,2305-00399,0.00,11.75,R,AIR LIQUIDE UK,No
Http://opendatacommunities.org/id/metropolitan-district-council/leeds,Leeds City Council,31/05/2023,Communities Housing and Environment,Environmental Health,Supplies and Services,Other Hired And Contracted Services,265,04/05/2023,2305-00400,0.00,11.75,R,AIR LIQUIDE UK,No
Http://opendatacommunities.org/id/metropolitan-district-council/leeds,Leeds City Council,31/05/2023,Communities Housing and Environment,Environmental Health,Supplies and Services,Other Hired And Contracted Services,265,04/05/2023,2305-00401,0.00,94.00,R,AIR LIQUIDE UK,No
Http://opendatacommunities.org/id/metropolitan-district-council/leeds,Leeds City Council,31/05/2023,Communities Housing and Environment,Climate Energy & Greenspaces,Transport,Repair & Maintenance of  Plant,342,18/05/2023,2305-00402,0.00,1705.10,R,Air Solutions (Leeds) Ltd,No
Http://opendatacommunities.org/id/metropolitan-district-council/leeds,Leeds City Council,31/05/2023,City Development,Libraries Arts & Heritage ,Transport,Public Transport Expenses,310,24/04/2023,2305-00403,0.00,478.75,R,Airbnb * Hm2zbmweqw,Yes
Http://opendatacommunities.org/id/metropolitan-district-council/leeds,Leeds City Council,31/05/2023,Children and Families,Social Care ,Supplies and Services,Holidays-  Service Users,284,05/04/2023,2305-00404,0.00,1680.00,R,Airbnb * Hm3z5y8z48,Yes
Http://opendatacommunities.org/id/metropolitan-district-council/leeds,Leeds City Council,31/05/2023,Children and Families,Social Care ,Transport,Public Transport Expenses,310,06/04/2023,2305-00405,0.00,1556.80,R,Airbnb * Hmbehqp35y,Yes
Http://opendatacommunities.org/id/metropolitan-district-council/leeds,Leeds City Council,31/05/2023,Children and Families,Social Care ,Transport,Public Transport Expenses,310,06/04/2023,2305-00406,0.00,2161.07,R,Airbnb * Hmhtfdyazd,Yes
Http://opendatacommunities.org/id/metropolitan-district-council/leeds,Leeds City Council,31/05/2023,Adults and Health,Public Health,Agency Payments,Public Health Commissioned Services,526,03/05/2023,2305-00407,0.00,2201.32,R,Aire Valley Surgery,No
Http://opendatacommunities.org/id/metropolitan-district-council/leeds,Leeds City Council,31/05/2023,Adults and Health,Services For Older People - 65 And Over,Agency Payments,Residential Care Dementia,571,24/05/2023,2305-00408,0.00,65923.72,R,Aire View Residential Home,No
Http://opendatacommunities.org/id/metropolitan-district-council/leeds,Leeds City Council,31/05/2023,Adults and Health,Services For Older People - 65 And Over,Agency Payments,Residential,580,24/05/2023,2305-00409,0.00,11879.40,R,Aire View Residential Home,No
Http://opendatacommunities.org/id/metropolitan-district-council/leeds,Leeds City Council,31/05/2023,Adults and Health,Public Health,Agency Payments,Public Health Commissioned Services,526,03/05/2023,2305-00410,0.00,1246.48,R,Aireborough Family Practice,No
Http://opendatacommunities.org/id/metropolitan-district-council/leeds,Leeds City Council,31/05/2023,City Development,Recreation ,Supplies and Services,Hospitality,255,11/04/2023,2305-00411,0.00,4.67,R,Aireborough Leisure Centr,Yes
Http://opendatacommunities.org/id/metropolitan-district-council/leeds,Leeds City Council,31/05/2023,Strategy and Resources,Leeds Building Services,Supplies and Services,Operational Materials,205,03/05/2023,2305-00412,0.00,1249.00,R,AIREDALE CATERING EQUIPMENT LTD,No
Http://opendatacommunities.org/id/metropolitan-district-council/leeds,Leeds City Council,31/05/2023,Strategy and Resources,Commercial Services,Premises,Fixtures & Fittings,131,19/05/2023,2305-00413,0.00,16355.00,R,AIREDALE CATERING EQUIPMENT LTD,No
Http://opendatacommunities.org/id/metropolitan-district-council/leeds,Leeds City Council,31/05/2023,Adults and Health,Services For Older People - 65 And Over,Agency Payments,Residential Care Dementia,571,24/05/2023,2305-00414,0.00,56024.09,R,Airedale Residential Home,No
Http://opendatacommunities.org/id/metropolitan-district-council/leeds,Leeds City Council,31/05/2023,Adults and Health,Services For Older People - 65 And Over,Agency Payments,Residential,580,24/05/2023,2305-00415,0.00,26827.53,R,Airedale Residential Home,No
Http://opendatacommunities.org/id/metropolitan-district-council/leeds,Leeds City Council,31/05/2023,Adults and Health,Services For Older People Under 65 P/Dis,Agency Payments,Residential Care Dementia,571,24/05/2023,2305-00416,0.00,1727.56,R,Airedale Residential Home,No
Http://opendatacommunities.org/id/metropolitan-district-council/leeds,Leeds City Council,31/05/2023,Children and Families,Social Care ,Agency Payments,Contact,548,11/04/2023,2305-00417,0.00,51.00,R,Airhop Bristol,Yes
Http://opendatacommunities.org/id/metropolitan-district-council/leeds,Leeds City Council,31/05/2023,Strategic Landlord,Housing Management ,Transport,Public Transport Expenses,310,03/04/2023,2305-00418,0.00,8.95,R,Airpay 41983031-Roadrunne,Yes
Http://opendatacommunities.org/id/metropolitan-district-council/leeds,Leeds City Council,31/05/2023,Strategic Landlord,Housing Management ,Transport,Public Transport Expenses,310,03/04/2023,2305-00419,0.00,28.95,R,Airpay 41985684-Roadrunne,Yes
Http://opendatacommunities.org/id/metropolitan-district-council/leeds,Leeds City Council,31/05/2023,Children and Families,Social Care ,Agency Payments,Placement Support,550,31/03/2023,2305-00420,0.00,12.65,R,Airpay 46069257-Amber Car,Yes
Http://opendatacommunities.org/id/metropolitan-district-council/leeds,Leeds City Council,31/05/2023,Children and Families,Social Care ,Agency Payments,Placement Support,550,31/03/2023,2305-00421,0.00,12.35,R,Airpay 46069258-Amber Car,Yes
Http://opendatacommunities.org/id/metropolitan-district-council/leeds,Leeds City Council,31/05/2023,Children and Families,Social Care ,Transport,Public Transport Expenses,310,31/03/2023,2305-00422,0.00,15.87,R,Airpay 46079407-Amber Car,Yes
Http://opendatacommunities.org/id/metropolitan-district-council/leeds,Leeds City Council,31/05/2023,Children and Families,Social Care ,Agency Payments,Placement Support,550,31/03/2023,2305-00423,0.00,25.35,R,Airpay 46083070-Amber Car,Yes
Http://opendatacommunities.org/id/metropolitan-district-council/leeds,Leeds City Council,31/05/2023,Children and Families,Social Care ,Agency Payments,Placement Support,550,31/03/2023,2305-00424,0.00,19.95,R,Airpay 46086554-Amber Car,Yes
Http://opendatacommunities.org/id/metropolitan-district-council/leeds,Leeds City Council,31/05/2023,Children and Families,Social Care ,Agency Payments,Placement Support,550,03/04/2023,2305-00425,0.00,13.05,R,Airpay 46087845-Amber Car,Yes
Http://opendatacommunities.org/id/metropolitan-district-council/leeds,Leeds City Council,31/05/2023,Children and Families,Social Care ,Appropriations,Young Peoples Activities,652,02/04/2023,2305-00426,0.00,12.65,R,Airpay 46113328-Amber Car,Yes
Http://opendatacommunities.org/id/metropolitan-district-council/leeds,Leeds City Council,31/05/2023,Children and Families,Social Care ,Appropriations,Young Peoples Activities,652,02/04/2023,2305-00427,0.00,12.35,R,Airpay 46115578-Amber Car,Yes
Http://opendatacommunities.org/id/metropolitan-district-council/leeds,Leeds City Council,31/05/2023,Children and Families,Social Care ,Agency Payments,Placement Support,550,04/04/2023,2305-00428,0.00,4.45,R,Airpay 46139047-Amber Car,Yes
Http://opendatacommunities.org/id/metropolitan-district-council/leeds,Leeds City Council,31/05/2023,Children and Families,Social Care ,Agency Payments,Contact,548,06/04/2023,2305-00429,0.00,36.65,R,Airpay 46156827-Amber Car,Yes
Http://opendatacommunities.org/id/metropolitan-district-council/leeds,Leeds City Council,31/05/2023,Children and Families,Social Care ,Agency Payments,Contact,548,06/04/2023,2305-00430,0.00,37.45,R,Airpay 46156829-Amber Car,Yes
Http://opendatacommunities.org/id/metropolitan-district-council/leeds,Leeds City Council,31/05/2023,Children and Families,Social Care ,Agency Payments,Section 17,551,06/04/2023,2305-00431,0.00,7.85,R,Airpay 46159771-Amber Car,Yes
Http://opendatacommunities.org/id/metropolitan-district-council/leeds,Leeds City Council,31/05/2023,Children and Families,Social Care ,Transport,Public Transport Expenses,310,08/04/2023,2305-00432,0.00,5.62,R,Airpay 46185858-Amber Car,Yes
Http://opendatacommunities.org/id/metropolitan-district-council/leeds,Leeds City Council,31/05/2023,Children and Families,Social Care ,Transport,Public Transport Expenses,310,10/04/2023,2305-00433,0.00,21.75,R,Airpay 46210268-Amber Car,Yes
Http://opendatacommunities.org/id/metropolitan-district-council/leeds,Leeds City Council,31/05/2023,Children and Families,Social Care ,Transport,Public Transport Expenses,310,10/04/2023,2305-00434,0.00,24.85,R,Airpay 46217083-Amber Car,Yes
Http://opendatacommunities.org/id/metropolitan-district-council/leeds,Leeds City Council,31/05/2023,Children and Families,Social Care ,Agency Payments,Placement Support,550,11/04/2023,2305-00435,0.00,9.85,R,Airpay 46219668-Amber Car,Yes
Http://opendatacommunities.org/id/metropolitan-district-council/leeds,Leeds City Council,31/05/2023,Children and Families,Social Care ,Agency Payments,Contact,548,11/04/2023,2305-00436,0.00,33.75,R,Airpay 46220466-Amber Car,Yes
Http://opendatacommunities.org/id/metropolitan-district-council/leeds,Leeds City Council,31/05/2023,Children and Families,Social Care ,Agency Payments,Contact,548,11/04/2023,2305-00437,0.00,37.75,R,Airpay 46220467-Amber Car,Yes
Http://opendatacommunities.org/id/metropolitan-district-council/leeds,Leeds City Council,31/05/2023,Children and Families,Social Care ,Agency Payments,Section 17,551,12/04/2023,2305-00438,0.00,14.45,R,Airpay 46233433-Amber Car,Yes
Http://opendatacommunities.org/id/metropolitan-district-council/leeds,Leeds City Council,31/05/2023,Children and Families,Social Care ,Agency Payments,Section 17,551,12/04/2023,2305-00439,0.00,14.45,R,Airpay 46234490-Amber Car,Yes
Http://opendatacommunities.org/id/metropolitan-district-council/leeds,Leeds City Council,31/05/2023,Children and Families,Social Care ,Agency Payments,Contact,548,14/04/2023,2305-00440,0.00,38.15,R,Airpay 46253360-Amber Car,Yes
Http://opendatacommunities.org/id/metropolitan-district-council/leeds,Leeds City Council,31/05/2023,Children and Families,Social Care ,Agency Payments,Placement Support,550,14/04/2023,2305-00441,0.00,27.65,R,Airpay 46258175-Amber Car,Yes
Http://opendatacommunities.org/id/metropolitan-district-council/leeds,Leeds City Council,31/05/2023,Children and Families,Social Care ,Agency Payments,Placement Support,550,14/04/2023,2305-00442,0.00,27.15,R,Airpay 46258213-Amber Car,Yes
Http://opendatacommunities.org/id/metropolitan-district-council/leeds,Leeds City Council,31/05/2023,Children and Families,Social Care ,Appropriations,Leaving Care Allowances,634,15/04/2023,2305-00443,0.00,30.75,R,Airpay 46265927-Amber Car,Yes
Http://opendatacommunities.org/id/metropolitan-district-council/leeds,Leeds City Council,31/05/2023,Children and Families,Social Care ,Transport,Public Transport Expenses,310,17/04/2023,2305-00444,0.00,11.45,R,Airpay 46302679-Amber Car,Yes
Http://opendatacommunities.org/id/metropolitan-district-council/leeds,Leeds City Council,31/05/2023,Adults and Health,Services For Adults Under 65 Learn/Dis ,Transport,Public Transport Expenses,310,19/04/2023,2305-00445,0.00,10.35,R,Airpay 46323194-Amber Car,Yes
Http://opendatacommunities.org/id/metropolitan-district-council/leeds,Leeds City Council,31/05/2023,Children and Families,Social Care ,Agency Payments,Placement Support,550,20/04/2023,2305-00446,0.00,9.15,R,Airpay 46333043-Amber Car,Yes
Http://opendatacommunities.org/id/metropolitan-district-council/leeds,Leeds City Council,31/05/2023,Adults and Health,Services For Adults Under 65 Learn/Dis ,Transport,Public Transport Expenses,310,20/04/2023,2305-00447,0.00,9.35,R,Airpay 46334134-Amber Car,Yes
Http://opendatacommunities.org/id/metropolitan-district-council/leeds,Leeds City Council,31/05/2023,Children and Families,Social Care ,Agency Payments,Placement Support,550,25/04/2023,2305-00448,0.00,13.05,R,Airpay 46403709-Amber Car,Yes
Http://opendatacommunities.org/id/metropolitan-district-council/leeds,Leeds City Council,31/05/2023,Children and Families,Social Care ,Agency Payments,Placement Support,550,25/04/2023,2305-00449,0.00,15.15,R,Airpay 46403733-Amber Car,Yes
Http://opendatacommunities.org/id/metropolitan-district-council/leeds,Leeds City Council,31/05/2023,Adults and Health,Services For Adults Under 65 Learn/Dis ,Transport,Public Transport Expenses,310,26/04/2023,2305-00450,0.00,9.65,R,Airpay 46417174-Amber Car,Yes
Http://opendatacommunities.org/id/metropolitan-district-council/leeds,Leeds City Council,31/05/2023,Children and Families,Social Care ,Agency Payments,Contact,548,27/04/2023,2305-00451,0.00,7.25,R,Airpay 46424760-Amber Car,Yes
Http://opendatacommunities.org/id/metropolitan-district-council/leeds,Leeds City Council,31/05/2023,Children and Families,Social Care ,Transport,Public Transport Expenses,310,27/04/2023,2305-00452,0.00,9.79,R,Airpay 46425280-Amber Car,Yes
Http://opendatacommunities.org/id/metropolitan-district-council/leeds,Leeds City Council,31/05/2023,Adults and Health,Services For Adults Under 65 Learn/Dis ,Transport,Public Transport Expenses,310,27/04/2023,2305-00453,0.00,9.85,R,Airpay 46429472-Amber Car,Yes
Http://opendatacommunities.org/id/metropolitan-district-council/leeds,Leeds City Council,31/05/2023,City Development,Recreation,Supplies and Services,Operational Furniture And Equipment,203,19/05/2023,2305-00454,0.00,4324.00,R,Airquee Ltd,No
Http://opendatacommunities.org/id/metropolitan-district-council/leeds,Leeds City Council,31/05/2023,Adults and Health,Services For Adults Under 65 Mental/Dis,Agency Payments,Fees - Level 4,520,05/05/2023,2305-00455,0.00,175.00,R,AIT Mitra Limited,No
Http://opendatacommunities.org/id/metropolitan-district-council/leeds,Leeds City Council,31/05/2023,Adults and Health,Services For Adults Under 65 Mental/Dis,Agency Payments,Fees - Level 4,520,15/05/2023,2305-00456,0.00,175.00,R,AIT Mitra Limited,No
Http://opendatacommunities.org/id/metropolitan-district-council/leeds,Leeds City Council,31/05/2023,Adults and Health,Services For Adults Under 65 Mental/Dis,Agency Payments,Fees - Level 4,520,15/05/2023,2305-00457,0.00,175.00,R,AIT Mitra Limited,No
Http://opendatacommunities.org/id/metropolitan-district-council/leeds,Leeds City Council as Accountable Body ,31/05/2023,Social Services Pooled Budgets,Jcs For People With Learning Disabilitie,Agency Payments,Residential,580,24/05/2023,2305-00458,0.00,7037.80,R,AITCH care homes,No
Http://opendatacommunities.org/id/metropolitan-district-council/leeds,Leeds City Council,31/05/2023,Strategy and Resources,Leeds Building Services,Supplies and Services,Operational Furniture And Equipment,203,05/05/2023,2305-00459,0.00,1407.24,R,AJM FIXINGS & POWER TOOLS LTD,No
Http://opendatacommunities.org/id/metropolitan-district-council/leeds,Leeds City Council,31/05/2023,Strategy and Resources,Leeds Building Services,Supplies and Services,Operational Furniture And Equipment,203,05/05/2023,2305-00460,0.00,31.56,R,AJM FIXINGS & POWER TOOLS LTD,No
Http://opendatacommunities.org/id/metropolitan-district-council/leeds,Leeds City Council,31/05/2023,Strategy and Resources,Leeds Building Services,Supplies and Services,Operational Furniture And Equipment,203,05/05/2023,2305-00461,0.00,46.20,R,AJM FIXINGS & POWER TOOLS LTD,No
Http://opendatacommunities.org/id/metropolitan-district-council/leeds,Leeds City Council,31/05/2023,Strategy and Resources,Leeds Building Services,Supplies and Services,Operational Furniture And Equipment,203,11/05/2023,2305-00462,0.00,369.16,R,AJM FIXINGS & POWER TOOLS LTD,No
Http://opendatacommunities.org/id/metropolitan-district-council/leeds,Leeds City Council,31/05/2023,Strategy and Resources,Leeds Building Services,Supplies and Services,Operational Furniture And Equipment,203,11/05/2023,2305-00463,0.00,98.32,R,AJM FIXINGS & POWER TOOLS LTD,No
Http://opendatacommunities.org/id/metropolitan-district-council/leeds,Leeds City Council,31/05/2023,Strategy and Resources,Leeds Building Services,Supplies and Services,Operational Furniture And Equipment,203,11/05/2023,2305-00464,0.00,214.95,R,AJM FIXINGS & POWER TOOLS LTD,No
Http://opendatacommunities.org/id/metropolitan-district-council/leeds,Leeds City Council,31/05/2023,Strategy and Resources,Leeds Building Services,Supplies and Services,Operational Furniture And Equipment,203,11/05/2023,2305-00465,0.00,359.16,R,AJM FIXINGS & POWER TOOLS LTD,No
Http://opendatacommunities.org/id/metropolitan-district-council/leeds,Leeds City Council,31/05/2023,Strategy and Resources,Leeds Building Services,Supplies and Services,Operational Furniture And Equipment,203,11/05/2023,2305-00466,0.00,84.99,R,AJM FIXINGS & POWER TOOLS LTD,No
Http://opendatacommunities.org/id/metropolitan-district-council/leeds,Leeds City Council,31/05/2023,Strategy and Resources,Leeds Building Services,Supplies and Services,Operational Furniture And Equipment,203,12/05/2023,2305-00467,0.00,1307.40,R,AJM FIXINGS & POWER TOOLS LTD,No
Http://opendatacommunities.org/id/metropolitan-district-council/leeds,Leeds City Council,31/05/2023,Strategy and Resources,Leeds Building Services,Supplies and Services,Operational Furniture And Equipment,203,12/05/2023,2305-00468,0.00,505.29,R,AJM FIXINGS & POWER TOOLS LTD,No
Http://opendatacommunities.org/id/metropolitan-district-council/leeds,Leeds City Council,31/05/2023,Strategy and Resources,Leeds Building Services,Supplies and Services,Operational Furniture And Equipment,203,12/05/2023,2305-00469,0.00,1219.44,R,AJM FIXINGS & POWER TOOLS LTD,No
Http://opendatacommunities.org/id/metropolitan-district-council/leeds,Leeds City Council,31/05/2023,Strategy and Resources,Leeds Building Services,Supplies and Services,Operational Furniture And Equipment,203,12/05/2023,2305-00470,0.00,178.18,R,AJM FIXINGS & POWER TOOLS LTD,No
Http://opendatacommunities.org/id/metropolitan-district-council/leeds,Leeds City Council,31/05/2023,Strategy and Resources,Leeds Building Services,Supplies and Services,Operational Furniture And Equipment,203,12/05/2023,2305-00471,0.00,303.33,R,AJM FIXINGS & POWER TOOLS LTD,No
Http://opendatacommunities.org/id/metropolitan-district-council/leeds,Leeds City Council,31/05/2023,Strategy and Resources,Leeds Building Services,Supplies and Services,Operational Furniture And Equipment,203,12/05/2023,2305-00472,0.00,438.40,R,AJM FIXINGS & POWER TOOLS LTD,No
Http://opendatacommunities.org/id/metropolitan-district-council/leeds,Leeds City Council,31/05/2023,Strategy and Resources,Leeds Building Services,Supplies and Services,Operational Furniture And Equipment,203,12/05/2023,2305-00473,0.00,519.00,R,AJM FIXINGS & POWER TOOLS LTD,No
Http://opendatacommunities.org/id/metropolitan-district-council/leeds,Leeds City Council,31/05/2023,Strategy and Resources,Leeds Building Services,Supplies and Services,Operational Furniture And Equipment,203,17/05/2023,2305-00474,0.00,1710.57,R,AJM FIXINGS & POWER TOOLS LTD,No
Http://opendatacommunities.org/id/metropolitan-district-council/leeds,Leeds City Council,31/05/2023,Strategy and Resources,Leeds Building Services,Supplies and Services,Operational Furniture And Equipment,203,17/05/2023,2305-00475,0.00,170.61,R,AJM FIXINGS & POWER TOOLS LTD,No
Http://opendatacommunities.org/id/metropolitan-district-council/leeds,Leeds City Council,31/05/2023,Strategy and Resources,Leeds Building Services,Premises,Cleaning Maintenance & Toiletries,127,18/05/2023,2305-00476,0.00,60.90,R,AJM FIXINGS & POWER TOOLS LTD,No
Http://opendatacommunities.org/id/metropolitan-district-council/leeds,Leeds City Council,31/05/2023,Strategy and Resources,Leeds Building Services,Supplies and Services,Operational Furniture And Equipment,203,18/05/2023,2305-00477,0.00,260.00,R,AJM FIXINGS & POWER TOOLS LTD,No
Http://opendatacommunities.org/id/metropolitan-district-council/leeds,Leeds City Council,31/05/2023,Strategy and Resources,Leeds Building Services,Premises,Cleaning Maintenance & Toiletries,127,18/05/2023,2305-00478,0.00,197.00,R,AJM FIXINGS & POWER TOOLS LTD,No
Http://opendatacommunities.org/id/metropolitan-district-council/leeds,Leeds City Council,31/05/2023,Strategy and Resources,Leeds Building Services,Supplies and Services,Operational Furniture And Equipment,203,18/05/2023,2305-00479,0.00,195.00,R,AJM FIXINGS & POWER TOOLS LTD,No
Http://opendatacommunities.org/id/metropolitan-district-council/leeds,Leeds City Council,31/05/2023,Strategy and Resources,Leeds Building Services,Premises,Cleaning Maintenance & Toiletries,127,18/05/2023,2305-00480,0.00,914.40,R,AJM FIXINGS & POWER TOOLS LTD,No
Http://opendatacommunities.org/id/metropolitan-district-council/leeds,Leeds City Council,31/05/2023,Strategy and Resources,Leeds Building Services,Supplies and Services,Operational Furniture And Equipment,203,18/05/2023,2305-00481,0.00,247.50,R,AJM FIXINGS & POWER TOOLS LTD,No
Http://opendatacommunities.org/id/metropolitan-district-council/leeds,Leeds City Council,31/05/2023,Strategy and Resources,Leeds Building Services,Premises,Cleaning Maintenance & Toiletries,127,18/05/2023,2305-00482,0.00,799.00,R,AJM FIXINGS & POWER TOOLS LTD,No
Http://opendatacommunities.org/id/metropolitan-district-council/leeds,Leeds City Council,31/05/2023,Strategy and Resources,Leeds Building Services,Supplies and Services,Operational Furniture And Equipment,203,18/05/2023,2305-00483,0.00,67.00,R,AJM FIXINGS & POWER TOOLS LTD,No
Http://opendatacommunities.org/id/metropolitan-district-council/leeds,Leeds City Council,31/05/2023,Strategy and Resources,Leeds Building Services,Premises,Cleaning Maintenance & Toiletries,127,18/05/2023,2305-00484,0.00,1688.40,R,AJM FIXINGS & POWER TOOLS LTD,No
Http://opendatacommunities.org/id/metropolitan-district-council/leeds,Leeds City Council,31/05/2023,Strategy and Resources,Leeds Building Services,Premises,Cleaning Maintenance & Toiletries,127,18/05/2023,2305-00485,0.00,620.50,R,AJM FIXINGS & POWER TOOLS LTD,No
Http://opendatacommunities.org/id/metropolitan-district-council/leeds,Leeds City Council,31/05/2023,Strategy and Resources,Leeds Building Services,Supplies and Services,Operational Furniture And Equipment,203,18/05/2023,2305-00486,0.00,103.00,R,AJM FIXINGS & POWER TOOLS LTD,No
Http://opendatacommunities.org/id/metropolitan-district-council/leeds,Leeds City Council,31/05/2023,Strategy and Resources,Leeds Building Services,Supplies and Services,Operational Furniture And Equipment,203,18/05/2023,2305-00487,0.00,67.00,R,AJM FIXINGS & POWER TOOLS LTD,No
Http://opendatacommunities.org/id/metropolitan-district-council/leeds,Leeds City Council,31/05/2023,Strategy and Resources,Leeds Building Services,Supplies and Services,Operational Furniture And Equipment,203,19/05/2023,2305-00488,0.00,8740.00,R,AJM FIXINGS & POWER TOOLS LTD,No
Http://opendatacommunities.org/id/metropolitan-district-council/leeds,Leeds City Council,31/05/2023,Strategy and Resources,Leeds Building Services,Supplies and Services,Operational Furniture And Equipment,203,19/05/2023,2305-00489,0.00,24.52,R,AJM FIXINGS & POWER TOOLS LTD,No
Http://opendatacommunities.org/id/metropolitan-district-council/leeds,Leeds City Council,31/05/2023,Strategy and Resources,Leeds Building Services,Supplies and Services,Operational Furniture And Equipment,203,19/05/2023,2305-00490,0.00,23.98,R,AJM FIXINGS & POWER TOOLS LTD,No
Http://opendatacommunities.org/id/metropolitan-district-council/leeds,Leeds City Council,31/05/2023,Strategy and Resources,Leeds Building Services,Supplies and Services,Operational Furniture And Equipment,203,24/05/2023,2305-00491,0.00,23.29,R,AJM FIXINGS & POWER TOOLS LTD,No
Http://opendatacommunities.org/id/metropolitan-district-council/leeds,Leeds City Council,31/05/2023,Strategy and Resources,Leeds Building Services,Supplies and Services,Operational Furniture And Equipment,203,26/05/2023,2305-00492,0.00,201.05,R,AJM FIXINGS & POWER TOOLS LTD,No
Http://opendatacommunities.org/id/metropolitan-district-council/leeds,Leeds City Council,31/05/2023,Strategy and Resources,Leeds Building Services,Supplies and Services,Operational Furniture And Equipment,203,26/05/2023,2305-00493,0.00,1120.00,R,AJM FIXINGS & POWER TOOLS LTD,No
Http://opendatacommunities.org/id/metropolitan-district-council/leeds,Leeds City Council,31/05/2023,Strategy and Resources,Leeds Building Services,Supplies and Services,Operational Furniture And Equipment,203,26/05/2023,2305-00494,0.00,359.19,R,AJM FIXINGS & POWER TOOLS LTD,No
Http://opendatacommunities.org/id/metropolitan-district-council/leeds,Leeds City Council,31/05/2023,Strategy and Resources,Leeds Building Services,Supplies and Services,Operational Furniture And Equipment,203,26/05/2023,2305-00495,0.00,324.95,R,AJM FIXINGS & POWER TOOLS LTD,No
Http://opendatacommunities.org/id/metropolitan-district-council/leeds,Leeds City Council,31/05/2023,Strategy and Resources,Leeds Building Services,Supplies and Services,Operational Furniture And Equipment,203,26/05/2023,2305-00496,0.00,175.64,R,AJM FIXINGS & POWER TOOLS LTD,No
Http://opendatacommunities.org/id/metropolitan-district-council/leeds,Leeds City Council,31/05/2023,Strategy and Resources,Leeds Building Services,Supplies and Services,Operational Furniture And Equipment,203,26/05/2023,2305-00497,0.00,84.00,R,AJM FIXINGS & POWER TOOLS LTD,No
Http://opendatacommunities.org/id/metropolitan-district-council/leeds,Leeds City Council,31/05/2023,Strategy and Resources,Leeds Building Services,Supplies and Services,Operational Furniture And Equipment,203,26/05/2023,2305-00498,0.00,43.00,R,AJM FIXINGS & POWER TOOLS LTD,No
Http://opendatacommunities.org/id/metropolitan-district-council/leeds,Leeds City Council,31/05/2023,Strategy and Resources,Leeds Building Services,Supplies and Services,Operational Furniture And Equipment,203,26/05/2023,2305-00499,0.00,67.00,R,AJM FIXINGS & POWER TOOLS LTD,No
Http://opendatacommunities.org/id/metropolitan-district-council/leeds,Leeds City Council,31/05/2023,Strategy and Resources,Leeds Building Services,Supplies and Services,Operational Furniture And Equipment,203,26/05/2023,2305-00500,0.00,67.00,R,AJM FIXINGS & POWER TOOLS LTD,No
Http://opendatacommunities.org/id/metropolitan-district-council/leeds,Leeds City Council,31/05/2023,Strategy and Resources,Leeds Building Services,Supplies and Services,Operational Furniture And Equipment,203,26/05/2023,2305-00501,0.00,811.37,R,AJM FIXINGS & POWER TOOLS LTD,No
Http://opendatacommunities.org/id/metropolitan-district-council/leeds,Leeds City Council,31/05/2023,Strategy and Resources,Leeds Building Services,Supplies and Services,Operational Materials,205,26/05/2023,2305-00502,0.00,785.00,R,AJM FIXINGS & POWER TOOLS LTD,No
Http://opendatacommunities.org/id/metropolitan-district-council/leeds,Leeds City Council,31/05/2023,Strategy and Resources,Leeds Building Services,Supplies and Services,Operational Furniture And Equipment,203,26/05/2023,2305-00503,0.00,618.19,R,AJM FIXINGS & POWER TOOLS LTD,No
Http://opendatacommunities.org/id/metropolitan-district-council/leeds,Leeds City Council,31/05/2023,Strategy and Resources,Leeds Building Services,Premises,Cleaning Maintenance & Toiletries,127,26/05/2023,2305-00504,0.00,361.30,R,AJM FIXINGS & POWER TOOLS LTD,No
Http://opendatacommunities.org/id/metropolitan-district-council/leeds,Leeds City Council,31/05/2023,Strategy and Resources,Leeds Building Services,Supplies and Services,Operational Furniture And Equipment,203,26/05/2023,2305-00505,0.00,1122.00,R,AJM FIXINGS & POWER TOOLS LTD,No
Http://opendatacommunities.org/id/metropolitan-district-council/leeds,Leeds City Council,31/05/2023,Strategy and Resources,Leeds Building Services,Supplies and Services,Operational Furniture And Equipment,203,30/05/2023,2305-00506,0.00,144.00,R,AJM FIXINGS & POWER TOOLS LTD,No
Http://opendatacommunities.org/id/metropolitan-district-council/leeds,Leeds City Council,31/05/2023,Strategy and Resources,Leeds Building Services,Supplies and Services,Operational Furniture And Equipment,203,30/05/2023,2305-00507,0.00,115.80,R,AJM FIXINGS & POWER TOOLS LTD,No
Http://opendatacommunities.org/id/metropolitan-district-council/leeds,Leeds City Council,31/05/2023,Strategy and Resources,Leeds Building Services,Supplies and Services,Operational Furniture And Equipment,203,30/05/2023,2305-00508,0.00,92.58,R,AJM FIXINGS & POWER TOOLS LTD,No
Http://opendatacommunities.org/id/metropolitan-district-council/leeds,Leeds City Council,31/05/2023,Strategy and Resources,Leeds Building Services,Supplies and Services,Operational Furniture And Equipment,203,30/05/2023,2305-00509,0.00,1949.90,R,AJM FIXINGS & POWER TOOLS LTD,No
Http://opendatacommunities.org/id/metropolitan-district-council/leeds,Leeds City Council,31/05/2023,Strategy and Resources,Leeds Building Services,Premises,Cleaning Maintenance & Toiletries,127,30/05/2023,2305-00510,0.00,209.50,R,AJM FIXINGS & POWER TOOLS LTD,No
Http://opendatacommunities.org/id/metropolitan-district-council/leeds,Leeds City Council,31/05/2023,Strategy and Resources,Leeds Building Services,Supplies and Services,Operational Furniture And Equipment,203,30/05/2023,2305-00511,0.00,142.00,R,AJM FIXINGS & POWER TOOLS LTD,No
Http://opendatacommunities.org/id/metropolitan-district-council/leeds,Leeds City Council,31/05/2023,Strategy and Resources,Leeds Building Services,Supplies and Services,Operational Furniture And Equipment,203,30/05/2023,2305-00512,0.00,54.99,R,AJM FIXINGS & POWER TOOLS LTD,No
Http://opendatacommunities.org/id/metropolitan-district-council/leeds,Leeds City Council,31/05/2023,Strategy and Resources,Leeds Building Services,Supplies and Services,Operational Furniture And Equipment,203,30/05/2023,2305-00513,0.00,73.00,R,AJM FIXINGS & POWER TOOLS LTD,No
Http://opendatacommunities.org/id/metropolitan-district-council/leeds,Leeds City Council,31/05/2023,Strategy and Resources,Leeds Building Services,Supplies and Services,Operational Furniture And Equipment,203,30/05/2023,2305-00514,0.00,97.00,R,AJM FIXINGS & POWER TOOLS LTD,No
Http://opendatacommunities.org/id/metropolitan-district-council/leeds,Leeds City Council,31/05/2023,Strategy and Resources,Leeds Building Services,Premises,Cleaning Maintenance & Toiletries,127,30/05/2023,2305-00515,0.00,871.60,R,AJM FIXINGS & POWER TOOLS LTD,No
Http://opendatacommunities.org/id/metropolitan-district-council/leeds,Leeds City Council,31/05/2023,Strategy and Resources,Leeds Building Services,Supplies and Services,Operational Furniture And Equipment,203,30/05/2023,2305-00516,0.00,859.57,R,AJM FIXINGS & POWER TOOLS LTD,No
Http://opendatacommunities.org/id/metropolitan-district-council/leeds,Leeds City Council,31/05/2023,Strategy and Resources,Leeds Building Services,Premises,Cleaning Maintenance & Toiletries,127,30/05/2023,2305-00517,0.00,79.20,R,AJM FIXINGS & POWER TOOLS LTD,No
Http://opendatacommunities.org/id/metropolitan-district-council/leeds,Leeds City Council,31/05/2023,Strategy and Resources,Leeds Building Services,Premises,Cleaning Maintenance & Toiletries,127,30/05/2023,2305-00518,0.00,957.85,R,AJM FIXINGS & POWER TOOLS LTD,No
Http://opendatacommunities.org/id/metropolitan-district-council/leeds,Leeds City Council,31/05/2023,Strategy and Resources,Leeds Building Services,Premises,Cleaning Maintenance & Toiletries,127,30/05/2023,2305-00519,0.00,148.36,R,AJM FIXINGS & POWER TOOLS LTD,No
Http://opendatacommunities.org/id/metropolitan-district-council/leeds,Leeds City Council,31/05/2023,Strategy and Resources,Leeds Building Services,Supplies and Services,Operational Furniture And Equipment,203,30/05/2023,2305-00520,0.00,359.96,R,AJM FIXINGS & POWER TOOLS LTD,No
Http://opendatacommunities.org/id/metropolitan-district-council/leeds,Leeds City Council,31/05/2023,Strategy and Resources,Leeds Building Services,Supplies and Services,Operational Materials,205,30/05/2023,2305-00521,0.00,364.80,R,AJM FIXINGS & POWER TOOLS LTD,No
Http://opendatacommunities.org/id/metropolitan-district-council/leeds,Leeds City Council,31/05/2023,Strategy and Resources,Leeds Building Services,Supplies and Services,Operational Furniture And Equipment,203,30/05/2023,2305-00522,0.00,181.00,R,AJM FIXINGS & POWER TOOLS LTD,No
Http://opendatacommunities.org/id/metropolitan-district-council/leeds,Leeds City Council,31/05/2023,Strategy and Resources,Leeds Building Services,Premises,Cleaning Maintenance & Toiletries,127,30/05/2023,2305-00523,0.00,57.00,R,AJM FIXINGS & POWER TOOLS LTD,No
Http://opendatacommunities.org/id/metropolitan-district-council/leeds,Leeds City Council,31/05/2023,Strategy and Resources,Leeds Building Services,Supplies and Services,Operational Materials,205,30/05/2023,2305-00524,0.00,159.98,R,AJM FIXINGS & POWER TOOLS LTD,No
Http://opendatacommunities.org/id/metropolitan-district-council/leeds,Leeds City Council,31/05/2023,Strategy and Resources,Leeds Building Services,Supplies and Services,Operational Furniture And Equipment,203,30/05/2023,2305-00525,0.00,242.71,R,AJM FIXINGS & POWER TOOLS LTD,No
Http://opendatacommunities.org/id/metropolitan-district-council/leeds,Leeds City Council,31/05/2023,Strategy and Resources,Leeds Building Services,Supplies and Services,Operational Materials,205,30/05/2023,2305-00526,0.00,2023.20,R,AJM FIXINGS & POWER TOOLS LTD,No
Http://opendatacommunities.org/id/metropolitan-district-council/leeds,Leeds City Council,31/05/2023,Strategy and Resources,Leeds Building Services,Premises,Cleaning Maintenance & Toiletries,127,30/05/2023,2305-00527,0.00,23.52,R,AJM FIXINGS & POWER TOOLS LTD,No
Http://opendatacommunities.org/id/metropolitan-district-council/leeds,Leeds City Council,31/05/2023,Strategy and Resources,Leeds Building Services,Supplies and Services,Operational Furniture And Equipment,203,30/05/2023,2305-00528,0.00,45.30,R,AJM FIXINGS & POWER TOOLS LTD,No
Http://opendatacommunities.org/id/metropolitan-district-council/leeds,Leeds City Council,31/05/2023,Strategy and Resources,Leeds Building Services,Supplies and Services,Operational Furniture And Equipment,203,30/05/2023,2305-00529,0.00,112.80,R,AJM FIXINGS & POWER TOOLS LTD,No
Http://opendatacommunities.org/id/metropolitan-district-council/leeds,Leeds City Council,31/05/2023,Strategy and Resources,Leeds Building Services,Premises,Cleaning Maintenance & Toiletries,127,30/05/2023,2305-00530,0.00,206.90,R,AJM FIXINGS & POWER TOOLS LTD,No
Http://opendatacommunities.org/id/metropolitan-district-council/leeds,Leeds City Council,31/05/2023,Strategy and Resources,Leeds Building Services,Supplies and Services,Operational Furniture And Equipment,203,30/05/2023,2305-00531,0.00,28.92,R,AJM FIXINGS & POWER TOOLS LTD,No
Http://opendatacommunities.org/id/metropolitan-district-council/leeds,Leeds City Council,31/05/2023,Strategy and Resources,Leeds Building Services,Supplies and Services,Operational Materials,205,30/05/2023,2305-00532,0.00,827.49,R,AJM FIXINGS & POWER TOOLS LTD,No
Http://opendatacommunities.org/id/metropolitan-district-council/leeds,Leeds City Council,31/05/2023,Strategy and Resources,Leeds Building Services,Supplies and Services,Operational Materials,205,30/05/2023,2305-00533,0.00,339.97,R,AJM FIXINGS & POWER TOOLS LTD,No
Http://opendatacommunities.org/id/metropolitan-district-council/leeds,Leeds City Council,31/05/2023,Strategy and Resources,Leeds Building Services,Supplies and Services,Operational Furniture And Equipment,203,30/05/2023,2305-00534,0.00,277.20,R,AJM FIXINGS & POWER TOOLS LTD,No
Http://opendatacommunities.org/id/metropolitan-district-council/leeds,Leeds City Council,31/05/2023,Strategy and Resources,Leeds Building Services,Supplies and Services,Operational Furniture And Equipment,203,30/05/2023,2305-00535,0.00,1490.00,R,AJM FIXINGS & POWER TOOLS LTD,No
Http://opendatacommunities.org/id/metropolitan-district-council/leeds,Leeds City Council,31/05/2023,Children and Families,Social Care,Supplies and Services,General Amenity For Clients/Residents,285,10/05/2023,2305-00536,0.00,20.00,R,REDACTED PERSONAL DATA,No
Http://opendatacommunities.org/id/metropolitan-district-council/leeds,Leeds City Council,31/05/2023,Children and Families,Social Care,Transport,Public Transport Expenses,310,10/05/2023,2305-00537,0.00,4.00,R,REDACTED PERSONAL DATA,No
Http://opendatacommunities.org/id/metropolitan-district-council/leeds,Leeds City Council,31/05/2023,Communities Housing and Environment,Strategic Housing Partnership & Support,Capital,CONSTRUCTION,3,12/05/2023,2305-00538,0.00,3500.00,C,AKR Construction Ltd,No
Http://opendatacommunities.org/id/metropolitan-district-council/leeds,Leeds City Council,31/05/2023,Children and Families,Social Care ,Appropriations,Leaving Care Grants,635,12/04/2023,2305-00539,0.00,28.47,R,Al Murad,Yes
Http://opendatacommunities.org/id/metropolitan-district-council/leeds,Leeds City Council,31/05/2023,Children and Families,Social Care ,Appropriations,Leaving Care Grants,635,05/04/2023,2305-00540,0.00,538.17,R,Al Murad Diy Ltd,Yes
Http://opendatacommunities.org/id/metropolitan-district-council/leeds,Leeds City Council,31/05/2023,Children and Families,Social Care ,Appropriations,Leaving Care Grants,635,12/04/2023,2305-00541,0.00,-86.20,R,Al Murad Diy Ltd,Yes
Http://opendatacommunities.org/id/metropolitan-district-council/leeds,Leeds City Council,31/05/2023,Resources,Human Resources ,Supplies and Services,Conference Meetings,253,11/04/2023,2305-00542,0.00,58.33,R,Alan Brown Flowers,Yes
Http://opendatacommunities.org/id/metropolitan-district-council/leeds,Leeds City Council,31/05/2023,Children and Families,Social Care,Supplies and Services,Food & Drink,231,04/05/2023,2305-00543,0.00,33.58,R,REDACTED PERSONAL DATA,No
Http://opendatacommunities.org/id/metropolitan-district-council/leeds,Leeds City Council,31/05/2023,Children and Families,Social Care,Agency Payments,Services Rendered By Other Organisations,511,05/05/2023,2305-00544,0.00,959.40,R,REDACTED PERSONAL DATA,No
Http://opendatacommunities.org/id/metropolitan-district-council/leeds,Leeds City Council,31/05/2023,Children and Families,Social Care,Supplies and Services,Operational Furniture And Equipment,203,12/05/2023,2305-00545,0.00,419.68,R,Alarm Radio Monitoring Ltd,No
Http://opendatacommunities.org/id/metropolitan-district-council/leeds,Leeds City Council,31/05/2023,Children and Families,Social Care,Supplies and Services,Operational Furniture And Equipment,203,18/05/2023,2305-00546,0.00,175.42,R,Alarm Radio Monitoring Ltd,No
Http://opendatacommunities.org/id/metropolitan-district-council/leeds,Leeds City Council,31/05/2023,Children and Families,Social Care,Supplies and Services,Operational Furniture And Equipment,203,26/05/2023,2305-00547,0.00,289.18,R,Alarm Radio Monitoring Ltd,No
Http://opendatacommunities.org/id/metropolitan-district-council/leeds,Leeds City Council,31/05/2023,City Development,Economic Development,Supplies and Services,Grants To Businesses,243,12/05/2023,2305-00548,0.00,3981.81,R,Alcedo Selection Limited,No
Http://opendatacommunities.org/id/metropolitan-district-council/leeds,Leeds City Council,31/05/2023,Communities Housing and Environment,Communities,Supplies and Services,Computer Software & Equipment,214,19/05/2023,2305-00549,0.00,1228.33,R,Alcium Software Ltd,No
Http://opendatacommunities.org/id/metropolitan-district-council/leeds,Leeds City Council,31/05/2023,Children and Families,Social Care,Appropriations,Leaving Care Allowances,634,31/05/2023,2305-00550,0.00,228.00,R,Alda Verala,No
Http://opendatacommunities.org/id/metropolitan-district-council/leeds,Leeds City Council,31/05/2023,Children and Families,Social Care ,Supplies and Services,Office Consumables,210,21/04/2023,2305-00551,0.00,0.25,R,Aldi,Yes
Http://opendatacommunities.org/id/metropolitan-district-council/leeds,Leeds City Council,31/05/2023,Children and Families,Social Care ,Supplies and Services,Food & Drink,231,21/04/2023,2305-00552,0.00,18.35,R,Aldi,Yes
Http://opendatacommunities.org/id/metropolitan-district-council/leeds,Leeds City Council,31/05/2023,Children and Families,Social Care ,Supplies and Services,Food & Drink,231,13/04/2023,2305-00553,0.00,65.76,R,Aldi 103 779,Yes
Http://opendatacommunities.org/id/metropolitan-district-council/leeds,Leeds City Council,31/05/2023,Children and Families,Social Care ,Supplies and Services,Food & Drink,231,03/04/2023,2305-00554,0.00,99.33,R,Aldi 40 779,Yes
Http://opendatacommunities.org/id/metropolitan-district-council/leeds,Leeds City Council,31/05/2023,Communities Housing and Environment,Communities ,Supplies and Services,Operational Materials,205,03/04/2023,2305-00555,0.00,15.33,R,Aldi 40 779,Yes
Http://opendatacommunities.org/id/metropolitan-district-council/leeds,Leeds City Council,31/05/2023,Children and Families,Social Care ,Supplies and Services,Food & Drink,231,20/04/2023,2305-00556,0.00,11.33,R,Aldi 40 779,Yes
Http://opendatacommunities.org/id/metropolitan-district-council/leeds,Leeds City Council,31/05/2023,Adults and Health,Assessment And Care Management ,Supplies and Services,Subsistence,256,06/04/2023,2305-00557,0.00,31.29,R,Aldi 49 779,Yes
Http://opendatacommunities.org/id/metropolitan-district-council/leeds,Leeds City Council,31/05/2023,Children and Families,Social Care ,Agency Payments,Section 17,551,31/03/2023,2305-00558,0.00,20.97,R,Aldi 71 779,Yes
Http://opendatacommunities.org/id/metropolitan-district-council/leeds,Leeds City Council,31/05/2023,City Development,Recreation ,Supplies and Services,Other Hired And Contracted Services,265,04/04/2023,2305-00559,0.00,8.22,R,Aldi 71 779,Yes
Http://opendatacommunities.org/id/metropolitan-district-council/leeds,Leeds City Council,31/05/2023,Children and Families,Social Care ,Agency Payments,Section 17,551,05/04/2023,2305-00560,0.00,12.36,R,Aldi 71 779,Yes
Http://opendatacommunities.org/id/metropolitan-district-council/leeds,Leeds City Council,31/05/2023,Children and Families,Social Care ,Agency Payments,Section 17,551,21/04/2023,2305-00561,0.00,17.70,R,Aldi 71 779,Yes
Http://opendatacommunities.org/id/metropolitan-district-council/leeds,Leeds City Council,31/05/2023,Children and Families,Social Care ,Agency Payments, Direct Work,549,11/04/2023,2305-00562,0.00,1.89,R,Aldi 779117,Yes
Http://opendatacommunities.org/id/metropolitan-district-council/leeds,Leeds City Council,31/05/2023,Children and Families,Social Care ,Supplies and Services,Food & Drink,231,06/04/2023,2305-00563,0.00,2.66,R,Aldi 779-126,Yes
Http://opendatacommunities.org/id/metropolitan-district-council/leeds,Leeds City Council,31/05/2023,Children and Families,Social Care ,Agency Payments,Section 17,551,31/03/2023,2305-00564,0.00,19.79,R,Aldi 85 779,Yes
Http://opendatacommunities.org/id/metropolitan-district-council/leeds,Leeds City Council,31/05/2023,Children and Families,Social Care ,Supplies and Services,Food & Drink,231,18/04/2023,2305-00565,0.00,2.65,R,Aldi 85 779,Yes
Http://opendatacommunities.org/id/metropolitan-district-council/leeds,Leeds City Council,31/05/2023,Children and Families,Social Care ,Supplies and Services,Food & Drink,231,17/04/2023,2305-00566,0.00,16.42,R,Aldi 88 779,Yes
Http://opendatacommunities.org/id/metropolitan-district-council/leeds,Leeds City Council,31/05/2023,Children and Families,Social Care ,Supplies and Services,Food & Drink,231,17/04/2023,2305-00567,0.00,11.67,R,Aldi 88 779,Yes
Http://opendatacommunities.org/id/metropolitan-district-council/leeds,Leeds City Council,31/05/2023,Children and Families,Social Care ,Supplies and Services,Food & Drink,231,05/04/2023,2305-00568,0.00,11.83,R,Aldi 89 779,Yes
Http://opendatacommunities.org/id/metropolitan-district-council/leeds,Leeds City Council,31/05/2023,Children and Families,Social Care ,Supplies and Services,Food & Drink,231,11/04/2023,2305-00569,0.00,8.33,R,Aldi 89 779,Yes
Http://opendatacommunities.org/id/metropolitan-district-council/leeds,Leeds City Council,31/05/2023,Children and Families,Social Care ,Supplies and Services,Food & Drink,231,18/04/2023,2305-00570,0.00,24.26,R,Aldi 89 779,Yes
Http://opendatacommunities.org/id/metropolitan-district-council/leeds,Leeds City Council,31/05/2023,Children and Families,Social Care ,Agency Payments,Section 17,551,05/04/2023,2305-00571,0.00,23.37,R,Aldi Stores,Yes
Http://opendatacommunities.org/id/metropolitan-district-council/leeds,Leeds City Council,31/05/2023,Children and Families,Social Care ,Supplies and Services,Food & Drink,231,13/04/2023,2305-00572,0.00,9.91,R,Aldi Stores,Yes
Http://opendatacommunities.org/id/metropolitan-district-council/leeds,Leeds City Council,31/05/2023,Children and Families,Social Care ,Supplies and Services,Food & Drink,231,14/04/2023,2305-00573,0.00,15.40,R,Aldi Stores,Yes
Http://opendatacommunities.org/id/metropolitan-district-council/leeds,Leeds City Council,31/05/2023,Children and Families,Social Care,Supplies and Services,General Amenity For Clients/Residents,285,18/05/2023,2305-00574,0.00,30.00,R,REDACTED PERSONAL DATA,No
Http://opendatacommunities.org/id/metropolitan-district-council/leeds,Leeds City Council,31/05/2023,Communities Housing and Environment,Customer Access,Transport,Public Transport Expenses,310,11/05/2023,2305-00575,0.00,4.00,R,REDACTED PERSONAL DATA,No
Http://opendatacommunities.org/id/metropolitan-district-council/leeds,Leeds City Council,31/05/2023,Strategy and Resources,Commercial Services,Supplies and Services,Other Hired And Contracted Services,265,11/05/2023,2305-00576,0.00,420.00,R,ALEX WAGG,No
Http://opendatacommunities.org/id/metropolitan-district-council/leeds,Leeds City Council,31/05/2023,Strategy and Resources,Commercial Services,Supplies and Services,Other Hired And Contracted Services,265,11/05/2023,2305-00577,0.00,490.00,R,ALEX WAGG,No
Http://opendatacommunities.org/id/metropolitan-district-council/leeds,Leeds City Council,31/05/2023,Strategy and Resources,Commercial Services,Supplies and Services,Other Hired And Contracted Services,265,19/05/2023,2305-00578,0.00,415.00,R,ALEX WAGG,No
Http://opendatacommunities.org/id/metropolitan-district-council/leeds,Leeds City Council,31/05/2023,Strategy and Resources,Commercial Services,Supplies and Services,Other Hired And Contracted Services,265,19/05/2023,2305-00579,0.00,560.00,R,ALEX WAGG,No
Http://opendatacommunities.org/id/metropolitan-district-council/leeds,Leeds City Council,31/05/2023,Strategy and Resources,Commercial Services,Supplies and Services,Other Hired And Contracted Services,265,19/05/2023,2305-00580,0.00,370.00,R,ALEX WAGG,No
Http://opendatacommunities.org/id/metropolitan-district-council/leeds,Leeds City Council,31/05/2023,Strategy and Resources,Commercial Services,Supplies and Services,Other Hired And Contracted Services,265,19/05/2023,2305-00581,0.00,280.00,R,ALEX WAGG,No
Http://opendatacommunities.org/id/metropolitan-district-council/leeds,Leeds City Council,31/05/2023,Strategy and Resources,Commercial Services,Supplies and Services,Other Hired And Contracted Services,265,19/05/2023,2305-00582,0.00,200.00,R,ALEX WAGG,No
Http://opendatacommunities.org/id/metropolitan-district-council/leeds,Leeds City Council,31/05/2023,Adults and Health,Services For Older People - 65 And Over,Agency Payments,Residential Care Dementia,571,24/05/2023,2305-00583,0.00,21291.56,R,ALEXANDER RESIDENTIAL HOME,No
Http://opendatacommunities.org/id/metropolitan-district-council/leeds,Leeds City Council,31/05/2023,Adults and Health,Services For Older People - 65 And Over,Agency Payments,Residential,580,24/05/2023,2305-00584,0.00,30995.56,R,ALEXANDER RESIDENTIAL HOME,No
Http://opendatacommunities.org/id/metropolitan-district-council/leeds,Leeds City Council as Accountable Body ,31/05/2023,Social Services Pooled Budgets,Jcs For People With Learning Disabilitie,Agency Payments,Residential,580,24/05/2023,2305-00585,0.00,3096.00,R,ALEXANDER RESIDENTIAL HOME,No
Http://opendatacommunities.org/id/metropolitan-district-council/leeds,Leeds City Council,31/05/2023,Children and Families,Social Care,Appropriations,Leaving Care Allowances,634,02/05/2023,2305-00586,0.00,188.95,R,REDACTED PERSONAL DATA,No
Http://opendatacommunities.org/id/metropolitan-district-council/leeds,Leeds City Council,31/05/2023,Children and Families,Social Care,Appropriations,Leaving Care Allowances,634,25/05/2023,2305-00587,0.00,50.00,R,REDACTED PERSONAL DATA,No
Http://opendatacommunities.org/id/metropolitan-district-council/leeds,Leeds City Council,31/05/2023,Communities Housing and Environment,Customer Access,Supplies and Services,Bought In Professional Services,277,11/05/2023,2305-00588,0.00,18.00,R,Alexandra Costenco,No
Http://opendatacommunities.org/id/metropolitan-district-council/leeds,Leeds City Council,31/05/2023,Communities Housing and Environment,Customer Access,Supplies and Services,Bought In Professional Services,277,24/05/2023,2305-00589,0.00,27.00,R,Alexandra Costenco,No
Http://opendatacommunities.org/id/metropolitan-district-council/leeds,Leeds City Council,31/05/2023,Adults and Health,Services For Older People - 65 And Over,Agency Payments,Residential Care Dementia,571,24/05/2023,2305-00590,0.00,5216.16,R,ALEXANDRA COURT,No
Http://opendatacommunities.org/id/metropolitan-district-council/leeds,Leeds City Council,31/05/2023,Adults and Health,Services For Older People - 65 And Over,Agency Payments,Residential,580,24/05/2023,2305-00591,0.00,5744.12,R,ALEXANDRA COURT,No
Http://opendatacommunities.org/id/metropolitan-district-council/leeds,Leeds City Council,31/05/2023,Strategy and Resources,Leeds Building Services,Supplies and Services,Other Hired And Contracted Services,265,12/05/2023,2305-00592,0.00,76.00,R,Alfred Bagnall & Sons (Leeds) Ltd,No
Http://opendatacommunities.org/id/metropolitan-district-council/leeds,Leeds City Council,31/05/2023,Strategy and Resources,Leeds Building Services,Supplies and Services,Other Hired And Contracted Services,265,12/05/2023,2305-00593,0.00,2350.00,R,Alfred Bagnall & Sons (Leeds) Ltd,No
Http://opendatacommunities.org/id/metropolitan-district-council/leeds,Leeds City Council,31/05/2023,Strategy and Resources,Leeds Building Services,Supplies and Services,Other Hired And Contracted Services,265,12/05/2023,2305-00594,0.00,1971.00,R,Alfred Bagnall & Sons (Leeds) Ltd,No
Http://opendatacommunities.org/id/metropolitan-district-council/leeds,Leeds City Council,31/05/2023,Strategy and Resources,Leeds Building Services,Supplies and Services,Other Hired And Contracted Services,265,18/05/2023,2305-00595,0.00,9642.74,R,Alfred Bagnall & Sons (Leeds) Ltd,No
Http://opendatacommunities.org/id/metropolitan-district-council/leeds,Leeds City Council,31/05/2023,Strategy and Resources,Leeds Building Services,Supplies and Services,Other Hired And Contracted Services,265,18/05/2023,2305-00596,0.00,680.00,R,Alfred Bagnall & Sons (Leeds) Ltd,No
Http://opendatacommunities.org/id/metropolitan-district-council/leeds,Leeds City Council,31/05/2023,Communities Housing and Environment,Parks and Countryside,Transport,Hire Of Movable Plant & Machinery,315,03/05/2023,2305-00597,0.00,165.49,R,ALGECO UK LIMITED,No
Http://opendatacommunities.org/id/metropolitan-district-council/leeds,Leeds City Council,31/05/2023,City Development,Libraries Arts & Heritage ,Supplies and Services,Computer Software & Equipment,214,02/04/2023,2305-00598,0.00,431.98,R,Algolia 2s2304262052,Yes
Http://opendatacommunities.org/id/metropolitan-district-council/leeds,Leeds City Council,31/05/2023,Communities Housing and Environment,Customer Access,Supplies and Services,Bought In Professional Services,277,04/05/2023,2305-00599,0.00,31.50,R,Ali Pourakaberian,No
Http://opendatacommunities.org/id/metropolitan-district-council/leeds,Leeds City Council,31/05/2023,Communities Housing and Environment,Customer Access,Supplies and Services,Bought In Professional Services,277,04/05/2023,2305-00600,0.00,31.50,R,Ali Pourakaberian,No
Http://opendatacommunities.org/id/metropolitan-district-council/leeds,Leeds City Council,31/05/2023,Communities Housing and Environment,Customer Access,Supplies and Services,Bought In Professional Services,277,04/05/2023,2305-00601,0.00,18.00,R,Ali Pourakaberian,No
Http://opendatacommunities.org/id/metropolitan-district-council/leeds,Leeds City Council,31/05/2023,Communities Housing and Environment,Customer Access,Supplies and Services,Bought In Professional Services,277,04/05/2023,2305-00602,0.00,22.50,R,Ali Pourakaberian,No
Http://opendatacommunities.org/id/metropolitan-district-council/leeds,Leeds City Council,31/05/2023,Communities Housing and Environment,Customer Access,Supplies and Services,Bought In Professional Services,277,04/05/2023,2305-00603,0.00,31.50,R,Ali Pourakaberian,No
Http://opendatacommunities.org/id/metropolitan-district-council/leeds,Leeds City Council,31/05/2023,Communities Housing and Environment,Customer Access,Supplies and Services,Bought In Professional Services,277,11/05/2023,2305-00604,0.00,12.10,R,Ali Pourakaberian,No
Http://opendatacommunities.org/id/metropolitan-district-council/leeds,Leeds City Council,31/05/2023,Communities Housing and Environment,Customer Access,Supplies and Services,Bought In Professional Services,277,11/05/2023,2305-00605,0.00,31.50,R,Ali Pourakaberian,No
Http://opendatacommunities.org/id/metropolitan-district-council/leeds,Leeds City Council,31/05/2023,Communities Housing and Environment,Customer Access,Supplies and Services,Bought In Professional Services,277,11/05/2023,2305-00606,0.00,31.50,R,Ali Pourakaberian,No
Http://opendatacommunities.org/id/metropolitan-district-council/leeds,Leeds City Council,31/05/2023,Communities Housing and Environment,Customer Access,Supplies and Services,Bought In Professional Services,277,11/05/2023,2305-00607,0.00,18.00,R,Ali Pourakaberian,No
Http://opendatacommunities.org/id/metropolitan-district-council/leeds,Leeds City Council,31/05/2023,Communities Housing and Environment,Customer Access,Supplies and Services,Bought In Professional Services,277,11/05/2023,2305-00608,0.00,31.50,R,Ali Pourakaberian,No
Http://opendatacommunities.org/id/metropolitan-district-council/leeds,Leeds City Council,31/05/2023,Communities Housing and Environment,Customer Access,Supplies and Services,Bought In Professional Services,277,11/05/2023,2305-00609,0.00,31.50,R,Ali Pourakaberian,No
Http://opendatacommunities.org/id/metropolitan-district-council/leeds,Leeds City Council,31/05/2023,Communities Housing and Environment,Customer Access,Supplies and Services,Bought In Professional Services,277,17/05/2023,2305-00610,0.00,31.50,R,Ali Pourakaberian,No
Http://opendatacommunities.org/id/metropolitan-district-council/leeds,Leeds City Council,31/05/2023,Communities Housing and Environment,Customer Access,Supplies and Services,Bought In Professional Services,277,17/05/2023,2305-00611,0.00,18.00,R,Ali Pourakaberian,No
Http://opendatacommunities.org/id/metropolitan-district-council/leeds,Leeds City Council,31/05/2023,Communities Housing and Environment,Customer Access,Supplies and Services,Bought In Professional Services,277,17/05/2023,2305-00612,0.00,31.50,R,Ali Pourakaberian,No
Http://opendatacommunities.org/id/metropolitan-district-council/leeds,Leeds City Council,31/05/2023,Communities Housing and Environment,Customer Access,Supplies and Services,Bought In Professional Services,277,17/05/2023,2305-00613,0.00,31.50,R,Ali Pourakaberian,No
Http://opendatacommunities.org/id/metropolitan-district-council/leeds,Leeds City Council,31/05/2023,Communities Housing and Environment,Customer Access,Supplies and Services,Bought In Professional Services,277,24/05/2023,2305-00614,0.00,18.00,R,Ali Pourakaberian,No
Http://opendatacommunities.org/id/metropolitan-district-council/leeds,Leeds City Council,31/05/2023,Communities Housing and Environment,Customer Access,Supplies and Services,Bought In Professional Services,277,24/05/2023,2305-00615,0.00,31.50,R,Ali Pourakaberian,No
Http://opendatacommunities.org/id/metropolitan-district-council/leeds,Leeds City Council,31/05/2023,Communities Housing and Environment,Customer Access,Supplies and Services,Bought In Professional Services,277,24/05/2023,2305-00616,0.00,18.00,R,Ali Pourakaberian,No
Http://opendatacommunities.org/id/metropolitan-district-council/leeds,Leeds City Council,31/05/2023,Communities Housing and Environment,Customer Access,Supplies and Services,Bought In Professional Services,277,24/05/2023,2305-00617,0.00,31.50,R,Ali Pourakaberian,No
Http://opendatacommunities.org/id/metropolitan-district-council/leeds,Leeds City Council,31/05/2023,City Development,Libraries Arts & Heritage,Supplies and Services,Other Hired And Contracted Services,265,19/05/2023,2305-00618,0.00,114.40,R,Alice Jones,No
Http://opendatacommunities.org/id/metropolitan-district-council/leeds,Leeds City Council,31/05/2023,City Development,Recreation,Supplies and Services,Bought In Professional Services,277,26/05/2023,2305-00619,0.00,80.00,R,Alice M Richardson,No
Http://opendatacommunities.org/id/metropolitan-district-council/leeds,Leeds City Council,31/05/2023,City Development,Recreation,Supplies and Services,Bought In Professional Services,277,26/05/2023,2305-00620,0.00,80.00,R,Alice M Richardson,No
Http://opendatacommunities.org/id/metropolitan-district-council/leeds,Leeds City Council,31/05/2023,City Development,Recreation,Supplies and Services,Bought In Professional Services,277,26/05/2023,2305-00621,0.00,20.00,R,Alice M Richardson,No
Http://opendatacommunities.org/id/metropolitan-district-council/leeds,Leeds City Council,31/05/2023,Adults and Health,Assessment And Care Management,Supplies and Services,Other Hired And Contracted Services,265,30/05/2023,2305-00622,0.00,30.97,R,REDACTED PERSONAL DATA,No
Http://opendatacommunities.org/id/metropolitan-district-council/leeds,Leeds City Council,31/05/2023,Children and Families,Social Care,Agency Payments,Contact,548,16/05/2023,2305-00623,0.00,52.00,R,REDACTED PERSONAL DATA,No
Http://opendatacommunities.org/id/metropolitan-district-council/leeds,Leeds City Council,31/05/2023,Children and Families,Social Care,Agency Payments,Contact,548,03/05/2023,2305-00624,0.00,30.00,R,REDACTED PERSONAL DATA,No
Http://opendatacommunities.org/id/metropolitan-district-council/leeds,Leeds City Council,31/05/2023,Children and Families,Social Care,Agency Payments,Contact,548,09/05/2023,2305-00625,0.00,55.00,R,REDACTED PERSONAL DATA,No
Http://opendatacommunities.org/id/metropolitan-district-council/leeds,Leeds City Council,31/05/2023,Children and Families,Social Care,Agency Payments,Contact,548,26/05/2023,2305-00626,0.00,60.00,R,REDACTED PERSONAL DATA,No
Http://opendatacommunities.org/id/metropolitan-district-council/leeds,Leeds City Council,31/05/2023,Children and Families,Social Care,Agency Payments,Services Rendered By Other Organisations,511,05/05/2023,2305-00627,0.00,959.40,R,REDACTED PERSONAL DATA,No
Http://opendatacommunities.org/id/metropolitan-district-council/leeds,Leeds City Council,31/05/2023,Communities Housing and Environment,Car Parking Services,External Income,Penalties Fines & Car Parking Charges,934,25/05/2023,2305-00628,0.00,0.50,R,REDACTED PERSONAL DATA,No
Http://opendatacommunities.org/id/metropolitan-district-council/leeds,Leeds City Council,31/05/2023,Strategic Landlord,Property and Contracts,Supplies and Services,Insurance Claims,248,24/05/2023,2305-00629,0.00,6000.00,R,Alison Law Solicitors,No
Http://opendatacommunities.org/id/metropolitan-district-council/leeds,Leeds City Council,31/05/2023,Strategic Landlord,Property and Contracts,Supplies and Services,Insurance Claims,248,24/05/2023,2305-00630,0.00,5400.00,R,Alison Law Solicitors,No
Http://opendatacommunities.org/id/metropolitan-district-council/leeds,Leeds City Council,31/05/2023,Strategic Landlord,Property and Contracts,Supplies and Services,Insurance Claims,248,24/05/2023,2305-00631,0.00,5750.00,R,Alison Law Solicitors,No
Http://opendatacommunities.org/id/metropolitan-district-council/leeds,Leeds City Council,31/05/2023,Strategic Landlord,Property and Contracts,Supplies and Services,Insurance Claims,248,24/05/2023,2305-00632,0.00,5250.00,R,Alison Law Solicitors,No
Http://opendatacommunities.org/id/metropolitan-district-council/leeds,Leeds City Council,31/05/2023,Strategy and Resources,Commercial Services,Supplies and Services,Other Hired And Contracted Services,265,18/05/2023,2305-00633,0.00,196.00,R,REDACTED PERSONAL DATA,No
Http://opendatacommunities.org/id/metropolitan-district-council/leeds,Leeds City Council,31/05/2023,Communities Housing and Environment,Elections Licensing and Registration,Premises,Rents,141,18/05/2023,2305-00634,0.00,500.00,R,All Souls Church General Account,No
Http://opendatacommunities.org/id/metropolitan-district-council/leeds,Leeds City Council,31/05/2023,Children and Families,Social Care,Agency Payments,Services Rendered By Other Organisations,511,03/05/2023,2305-00635,0.00,1373.58,R,All Stars Childcare,No
Http://opendatacommunities.org/id/metropolitan-district-council/leeds,Leeds City Council,31/05/2023,Children and Families,Social Care,Agency Payments,Services Rendered By Other Organisations,511,05/05/2023,2305-00636,0.00,9146.28,R,All Stars Childcare,No
Http://opendatacommunities.org/id/metropolitan-district-council/leeds,Leeds City Council,31/05/2023,City Development,Economic Development,Supplies and Services,Conference Meetings,253,25/05/2023,2305-00637,0.00,2500.00,R,All Work And Social Leeds Dock Limited,No
Http://opendatacommunities.org/id/metropolitan-district-council/leeds,Leeds City Council,31/05/2023,Communities Housing and Environment,Climate Energy & Greenspaces,Supplies and Services,Books & Audio-Visual Materials,206,04/05/2023,2305-00638,0.00,45.00,R,ALLANSOUND COMMUNICATIONS,No
Http://opendatacommunities.org/id/metropolitan-district-council/leeds,Leeds City Council as Accountable Body ,31/05/2023,Social Services Pooled Budgets,Jcs For People With Learning Disabilitie,Agency Payments,Sheltered Accommodation,569,24/05/2023,2305-00639,0.00,23443.44,R,Allerton Avenue,No
Http://opendatacommunities.org/id/metropolitan-district-council/leeds,Leeds City Council,31/05/2023,Adults and Health,Public Health,Agency Payments,Public Health Commissioned Services,526,03/05/2023,2305-00640,0.00,1481.56,R,Allerton Medical Centre,No
Http://opendatacommunities.org/id/metropolitan-district-council/leeds,Leeds City Council,31/05/2023,Adults and Health,Services For Older People - 65 And Over,Agency Payments,Nursing Care Dementia,574,24/05/2023,2305-00641,0.00,4890.88,R,ALLERTON PARK N H,No
Http://opendatacommunities.org/id/metropolitan-district-council/leeds,Leeds City Council,31/05/2023,Strategy and Resources,Finance,Supplies and Services,Bank Charges,263,04/05/2023,2305-00642,0.00,75.93,R,ALLIANCE & LEICESTER COMMERCIAL BANK,No
Http://opendatacommunities.org/id/metropolitan-district-council/leeds,Leeds City Council,31/05/2023,Strategy and Resources,Commercial Services,Transport,Vehicle Spares,345,04/05/2023,2305-00643,0.00,47.87,R,Alliance Automotive UK CV LTD,No
Http://opendatacommunities.org/id/metropolitan-district-council/leeds,Leeds City Council,31/05/2023,Strategy and Resources,Commercial Services,Transport,Vehicle Spares,345,04/05/2023,2305-00644,0.00,304.99,R,Alliance Automotive UK CV LTD,No
Http://opendatacommunities.org/id/metropolitan-district-council/leeds,Leeds City Council,31/05/2023,Strategy and Resources,Commercial Services,Transport,Vehicle Spares,345,04/05/2023,2305-00645,0.00,363.18,R,Alliance Automotive UK CV LTD,No
Http://opendatacommunities.org/id/metropolitan-district-council/leeds,Leeds City Council,31/05/2023,Strategy and Resources,Commercial Services,Transport,Vehicle Spares,345,04/05/2023,2305-00646,0.00,363.18,R,Alliance Automotive UK CV LTD,No
Http://opendatacommunities.org/id/metropolitan-district-council/leeds,Leeds City Council,31/05/2023,Strategy and Resources,Commercial Services,Transport,Vehicle Spares,345,05/05/2023,2305-00647,0.00,-163.35,R,Alliance Automotive UK CV LTD,No
Http://opendatacommunities.org/id/metropolitan-district-council/leeds,Leeds City Council,31/05/2023,Strategy and Resources,Commercial Services,Transport,Vehicle Spares,345,05/05/2023,2305-00648,0.00,97.03,R,Alliance Automotive UK CV LTD,No
Http://opendatacommunities.org/id/metropolitan-district-council/leeds,Leeds City Council,31/05/2023,Strategy and Resources,Commercial Services,Transport,Vehicle Spares,345,05/05/2023,2305-00649,0.00,197.81,R,Alliance Automotive UK CV LTD,No
Http://opendatacommunities.org/id/metropolitan-district-council/leeds,Leeds City Council,31/05/2023,Strategy and Resources,Commercial Services,Transport,Vehicle Spares,345,05/05/2023,2305-00650,0.00,122.21,R,Alliance Automotive UK CV LTD,No
Http://opendatacommunities.org/id/metropolitan-district-council/leeds,Leeds City Council,31/05/2023,Strategy and Resources,Commercial Services,Transport,Vehicle Spares,345,05/05/2023,2305-00651,0.00,3.44,R,Alliance Automotive UK CV LTD,No
Http://opendatacommunities.org/id/metropolitan-district-council/leeds,Leeds City Council,31/05/2023,Strategy and Resources,Commercial Services,Transport,Vehicle Spares,345,05/05/2023,2305-00652,0.00,34.56,R,Alliance Automotive UK CV LTD,No
Http://opendatacommunities.org/id/metropolitan-district-council/leeds,Leeds City Council,31/05/2023,Strategy and Resources,Commercial Services,Transport,Vehicle Spares,345,05/05/2023,2305-00653,0.00,682.10,R,Alliance Automotive UK CV LTD,No
Http://opendatacommunities.org/id/metropolitan-district-council/leeds,Leeds City Council,31/05/2023,Strategy and Resources,Commercial Services,Transport,Vehicle Spares,345,05/05/2023,2305-00654,0.00,256.41,R,Alliance Automotive UK CV LTD,No
Http://opendatacommunities.org/id/metropolitan-district-council/leeds,Leeds City Council,31/05/2023,Strategy and Resources,Commercial Services,Transport,Vehicle Spares,345,05/05/2023,2305-00655,0.00,291.06,R,Alliance Automotive UK CV LTD,No
Http://opendatacommunities.org/id/metropolitan-district-council/leeds,Leeds City Council,31/05/2023,Strategy and Resources,Commercial Services,Transport,Vehicle Spares,345,05/05/2023,2305-00656,0.00,11.53,R,Alliance Automotive UK CV LTD,No
Http://opendatacommunities.org/id/metropolitan-district-council/leeds,Leeds City Council,31/05/2023,Strategy and Resources,Commercial Services,Transport,Vehicle Spares,345,05/05/2023,2305-00657,0.00,143.05,R,Alliance Automotive UK CV LTD,No
Http://opendatacommunities.org/id/metropolitan-district-council/leeds,Leeds City Council,31/05/2023,Strategy and Resources,Commercial Services,Transport,Vehicle Spares,345,05/05/2023,2305-00658,0.00,58.41,R,Alliance Automotive UK CV LTD,No
Http://opendatacommunities.org/id/metropolitan-district-council/leeds,Leeds City Council,31/05/2023,Strategy and Resources,Commercial Services,Transport,Vehicle Spares,345,05/05/2023,2305-00659,0.00,40.60,R,Alliance Automotive UK CV LTD,No
Http://opendatacommunities.org/id/metropolitan-district-council/leeds,Leeds City Council,31/05/2023,Strategy and Resources,Commercial Services,Transport,Vehicle Spares,345,05/05/2023,2305-00660,0.00,10.49,R,Alliance Automotive UK CV LTD,No
Http://opendatacommunities.org/id/metropolitan-district-council/leeds,Leeds City Council,31/05/2023,Strategy and Resources,Commercial Services,Transport,Vehicle Spares,345,05/05/2023,2305-00661,0.00,28.35,R,Alliance Automotive UK CV LTD,No
Http://opendatacommunities.org/id/metropolitan-district-council/leeds,Leeds City Council,31/05/2023,Strategy and Resources,Commercial Services,Transport,Vehicle Spares,345,05/05/2023,2305-00662,0.00,9.42,R,Alliance Automotive UK CV LTD,No
Http://opendatacommunities.org/id/metropolitan-district-council/leeds,Leeds City Council,31/05/2023,Strategy and Resources,Commercial Services,Transport,Vehicle Spares,345,05/05/2023,2305-00663,0.00,1897.83,R,Alliance Automotive UK CV LTD,No
Http://opendatacommunities.org/id/metropolitan-district-council/leeds,Leeds City Council,31/05/2023,Strategy and Resources,Commercial Services,Transport,Vehicle Spares,345,05/05/2023,2305-00664,0.00,111.87,R,Alliance Automotive UK CV LTD,No
Http://opendatacommunities.org/id/metropolitan-district-council/leeds,Leeds City Council,31/05/2023,Strategy and Resources,Commercial Services,Transport,Vehicle Spares,345,05/05/2023,2305-00665,0.00,549.28,R,Alliance Automotive UK CV LTD,No
Http://opendatacommunities.org/id/metropolitan-district-council/leeds,Leeds City Council,31/05/2023,Strategy and Resources,Commercial Services,Transport,Vehicle Spares,345,05/05/2023,2305-00666,0.00,41.35,R,Alliance Automotive UK CV LTD,No
Http://opendatacommunities.org/id/metropolitan-district-council/leeds,Leeds City Council,31/05/2023,Strategy and Resources,Commercial Services,Transport,Vehicle Spares,345,05/05/2023,2305-00667,0.00,104.67,R,Alliance Automotive UK CV LTD,No
Http://opendatacommunities.org/id/metropolitan-district-council/leeds,Leeds City Council,31/05/2023,Strategy and Resources,Commercial Services,Transport,Vehicle Spares,345,05/05/2023,2305-00668,0.00,173.51,R,Alliance Automotive UK CV LTD,No
Http://opendatacommunities.org/id/metropolitan-district-council/leeds,Leeds City Council,31/05/2023,Strategy and Resources,Commercial Services,Transport,Vehicle Spares,345,05/05/2023,2305-00669,0.00,375.71,R,Alliance Automotive UK CV LTD,No
Http://opendatacommunities.org/id/metropolitan-district-council/leeds,Leeds City Council,31/05/2023,Strategy and Resources,Commercial Services,Transport,Vehicle Spares,345,05/05/2023,2305-00670,0.00,37.10,R,Alliance Automotive UK CV LTD,No
Http://opendatacommunities.org/id/metropolitan-district-council/leeds,Leeds City Council,31/05/2023,Strategy and Resources,Commercial Services,Transport,Vehicle Spares,345,05/05/2023,2305-00671,0.00,420.75,R,Alliance Automotive UK CV LTD,No
Http://opendatacommunities.org/id/metropolitan-district-council/leeds,Leeds City Council,31/05/2023,Strategy and Resources,Commercial Services,Transport,Vehicle Spares,345,05/05/2023,2305-00672,0.00,209.11,R,Alliance Automotive UK CV LTD,No
Http://opendatacommunities.org/id/metropolitan-district-council/leeds,Leeds City Council,31/05/2023,Strategy and Resources,Commercial Services,Transport,Vehicle Spares,345,05/05/2023,2305-00673,0.00,6.92,R,Alliance Automotive UK CV LTD,No
Http://opendatacommunities.org/id/metropolitan-district-council/leeds,Leeds City Council,31/05/2023,Strategy and Resources,Commercial Services,Transport,Vehicle Spares,345,05/05/2023,2305-00674,0.00,138.46,R,Alliance Automotive UK CV LTD,No
Http://opendatacommunities.org/id/metropolitan-district-council/leeds,Leeds City Council,31/05/2023,Strategy and Resources,Commercial Services,Transport,Vehicle Spares,345,05/05/2023,2305-00675,0.00,262.05,R,Alliance Automotive UK CV LTD,No
Http://opendatacommunities.org/id/metropolitan-district-council/leeds,Leeds City Council,31/05/2023,Strategy and Resources,Commercial Services,Transport,Vehicle Spares,345,05/05/2023,2305-00676,0.00,323.12,R,Alliance Automotive UK CV LTD,No
Http://opendatacommunities.org/id/metropolitan-district-council/leeds,Leeds City Council,31/05/2023,Strategy and Resources,Commercial Services,Transport,Vehicle Spares,345,09/05/2023,2305-00677,0.00,68.31,R,Alliance Automotive UK CV LTD,No
Http://opendatacommunities.org/id/metropolitan-district-council/leeds,Leeds City Council,31/05/2023,Strategy and Resources,Commercial Services,Transport,Vehicle Spares,345,09/05/2023,2305-00678,0.00,132.14,R,Alliance Automotive UK CV LTD,No
Http://opendatacommunities.org/id/metropolitan-district-council/leeds,Leeds City Council,31/05/2023,Strategy and Resources,Commercial Services,Transport,Vehicle Spares,345,12/05/2023,2305-00679,0.00,295.02,R,Alliance Automotive UK CV LTD,No
Http://opendatacommunities.org/id/metropolitan-district-council/leeds,Leeds City Council,31/05/2023,Strategy and Resources,Commercial Services,Transport,Vehicle Spares,345,12/05/2023,2305-00680,0.00,48.41,R,Alliance Automotive UK CV LTD,No
Http://opendatacommunities.org/id/metropolitan-district-council/leeds,Leeds City Council,31/05/2023,Strategy and Resources,Commercial Services,Transport,Vehicle Spares,345,12/05/2023,2305-00681,0.00,382.97,R,Alliance Automotive UK CV LTD,No
Http://opendatacommunities.org/id/metropolitan-district-council/leeds,Leeds City Council,31/05/2023,Strategy and Resources,Commercial Services,Transport,Vehicle Spares,345,12/05/2023,2305-00682,0.00,502.93,R,Alliance Automotive UK CV LTD,No
Http://opendatacommunities.org/id/metropolitan-district-council/leeds,Leeds City Council,31/05/2023,Strategy and Resources,Commercial Services,Transport,Vehicle Spares,345,12/05/2023,2305-00683,0.00,23.29,R,Alliance Automotive UK CV LTD,No
Http://opendatacommunities.org/id/metropolitan-district-council/leeds,Leeds City Council,31/05/2023,Strategy and Resources,Commercial Services,Transport,Vehicle Spares,345,12/05/2023,2305-00684,0.00,65.54,R,Alliance Automotive UK CV LTD,No
Http://opendatacommunities.org/id/metropolitan-district-council/leeds,Leeds City Council,31/05/2023,Strategy and Resources,Commercial Services,Transport,Vehicle Spares,345,12/05/2023,2305-00685,0.00,59.39,R,Alliance Automotive UK CV LTD,No
Http://opendatacommunities.org/id/metropolitan-district-council/leeds,Leeds City Council,31/05/2023,Strategy and Resources,Commercial Services,Transport,Vehicle Spares,345,12/05/2023,2305-00686,0.00,554.21,R,Alliance Automotive UK CV LTD,No
Http://opendatacommunities.org/id/metropolitan-district-council/leeds,Leeds City Council,31/05/2023,Strategy and Resources,Commercial Services,Transport,Vehicle Spares,345,12/05/2023,2305-00687,0.00,126.62,R,Alliance Automotive UK CV LTD,No
Http://opendatacommunities.org/id/metropolitan-district-council/leeds,Leeds City Council,31/05/2023,Strategy and Resources,Commercial Services,Transport,Vehicle Spares,345,12/05/2023,2305-00688,0.00,42.20,R,Alliance Automotive UK CV LTD,No
Http://opendatacommunities.org/id/metropolitan-district-council/leeds,Leeds City Council,31/05/2023,Strategy and Resources,Commercial Services,Transport,Vehicle Spares,345,12/05/2023,2305-00689,0.00,28.40,R,Alliance Automotive UK CV LTD,No
Http://opendatacommunities.org/id/metropolitan-district-council/leeds,Leeds City Council,31/05/2023,Strategy and Resources,Commercial Services,Transport,Vehicle Spares,345,12/05/2023,2305-00690,0.00,510.21,R,Alliance Automotive UK CV LTD,No
Http://opendatacommunities.org/id/metropolitan-district-council/leeds,Leeds City Council,31/05/2023,Strategy and Resources,Commercial Services,Transport,Vehicle Spares,345,12/05/2023,2305-00691,0.00,374.92,R,Alliance Automotive UK CV LTD,No
Http://opendatacommunities.org/id/metropolitan-district-council/leeds,Leeds City Council,31/05/2023,Strategy and Resources,Commercial Services,Transport,Vehicle Spares,345,12/05/2023,2305-00692,0.00,230.63,R,Alliance Automotive UK CV LTD,No
Http://opendatacommunities.org/id/metropolitan-district-council/leeds,Leeds City Council,31/05/2023,Strategy and Resources,Commercial Services,Transport,Vehicle Spares,345,12/05/2023,2305-00693,0.00,42.12,R,Alliance Automotive UK CV LTD,No
Http://opendatacommunities.org/id/metropolitan-district-council/leeds,Leeds City Council,31/05/2023,Strategy and Resources,Commercial Services,Transport,Vehicle Spares,345,12/05/2023,2305-00694,0.00,6.92,R,Alliance Automotive UK CV LTD,No
Http://opendatacommunities.org/id/metropolitan-district-council/leeds,Leeds City Council,31/05/2023,Strategy and Resources,Commercial Services,Transport,Vehicle Spares,345,12/05/2023,2305-00695,0.00,5.79,R,Alliance Automotive UK CV LTD,No
Http://opendatacommunities.org/id/metropolitan-district-council/leeds,Leeds City Council,31/05/2023,Strategy and Resources,Commercial Services,Transport,Vehicle Spares,345,12/05/2023,2305-00696,0.00,741.02,R,Alliance Automotive UK CV LTD,No
Http://opendatacommunities.org/id/metropolitan-district-council/leeds,Leeds City Council,31/05/2023,Strategy and Resources,Commercial Services,Transport,Vehicle Spares,345,12/05/2023,2305-00697,0.00,116.74,R,Alliance Automotive UK CV LTD,No
Http://opendatacommunities.org/id/metropolitan-district-council/leeds,Leeds City Council,31/05/2023,Strategy and Resources,Commercial Services,Transport,Vehicle Spares,345,12/05/2023,2305-00698,0.00,706.13,R,Alliance Automotive UK CV LTD,No
Http://opendatacommunities.org/id/metropolitan-district-council/leeds,Leeds City Council,31/05/2023,Strategy and Resources,Commercial Services,Transport,Vehicle Spares,345,12/05/2023,2305-00699,0.00,165.15,R,Alliance Automotive UK CV LTD,No
Http://opendatacommunities.org/id/metropolitan-district-council/leeds,Leeds City Council,31/05/2023,Strategy and Resources,Commercial Services,Transport,Vehicle Spares,345,12/05/2023,2305-00700,0.00,76.09,R,Alliance Automotive UK CV LTD,No
Http://opendatacommunities.org/id/metropolitan-district-council/leeds,Leeds City Council,31/05/2023,Strategy and Resources,Commercial Services,Transport,Vehicle Spares,345,12/05/2023,2305-00701,0.00,256.41,R,Alliance Automotive UK CV LTD,No
Http://opendatacommunities.org/id/metropolitan-district-council/leeds,Leeds City Council,31/05/2023,Strategy and Resources,Commercial Services,Transport,Vehicle Spares,345,12/05/2023,2305-00702,0.00,6.92,R,Alliance Automotive UK CV LTD,No
Http://opendatacommunities.org/id/metropolitan-district-council/leeds,Leeds City Council,31/05/2023,Strategy and Resources,Commercial Services,Transport,Vehicle Spares,345,12/05/2023,2305-00703,0.00,215.82,R,Alliance Automotive UK CV LTD,No
Http://opendatacommunities.org/id/metropolitan-district-council/leeds,Leeds City Council,31/05/2023,Strategy and Resources,Commercial Services,Transport,Vehicle Spares,345,12/05/2023,2305-00704,0.00,112.89,R,Alliance Automotive UK CV LTD,No
Http://opendatacommunities.org/id/metropolitan-district-council/leeds,Leeds City Council,31/05/2023,Strategy and Resources,Commercial Services,Transport,Vehicle Spares,345,12/05/2023,2305-00705,0.00,196.02,R,Alliance Automotive UK CV LTD,No
Http://opendatacommunities.org/id/metropolitan-district-council/leeds,Leeds City Council,31/05/2023,Strategy and Resources,Commercial Services,Transport,Vehicle Spares,345,12/05/2023,2305-00706,0.00,27.90,R,Alliance Automotive UK CV LTD,No
Http://opendatacommunities.org/id/metropolitan-district-council/leeds,Leeds City Council,31/05/2023,Strategy and Resources,Commercial Services,Transport,Vehicle Spares,345,12/05/2023,2305-00707,0.00,37.47,R,Alliance Automotive UK CV LTD,No
Http://opendatacommunities.org/id/metropolitan-district-council/leeds,Leeds City Council,31/05/2023,Strategy and Resources,Commercial Services,Transport,Vehicle Spares,345,12/05/2023,2305-00708,0.00,162.07,R,Alliance Automotive UK CV LTD,No
Http://opendatacommunities.org/id/metropolitan-district-council/leeds,Leeds City Council,31/05/2023,Strategy and Resources,Commercial Services,Transport,Vehicle Spares,345,15/05/2023,2305-00709,0.00,29.21,R,Alliance Automotive UK CV LTD,No
Http://opendatacommunities.org/id/metropolitan-district-council/leeds,Leeds City Council,31/05/2023,Strategy and Resources,Commercial Services,Transport,Vehicle Spares,345,15/05/2023,2305-00710,0.00,277.36,R,Alliance Automotive UK CV LTD,No
Http://opendatacommunities.org/id/metropolitan-district-council/leeds,Leeds City Council,31/05/2023,Strategy and Resources,Commercial Services,Transport,Vehicle Spares,345,15/05/2023,2305-00711,0.00,98.71,R,Alliance Automotive UK CV LTD,No
Http://opendatacommunities.org/id/metropolitan-district-council/leeds,Leeds City Council,31/05/2023,Strategy and Resources,Commercial Services,Transport,Vehicle Spares,345,15/05/2023,2305-00712,0.00,166.42,R,Alliance Automotive UK CV LTD,No
Http://opendatacommunities.org/id/metropolitan-district-council/leeds,Leeds City Council,31/05/2023,Strategy and Resources,Commercial Services,Transport,Vehicle Spares,345,15/05/2023,2305-00713,0.00,233.64,R,Alliance Automotive UK CV LTD,No
Http://opendatacommunities.org/id/metropolitan-district-council/leeds,Leeds City Council,31/05/2023,Strategy and Resources,Commercial Services,Transport,Vehicle Spares,345,19/05/2023,2305-00714,0.00,28.46,R,Alliance Automotive UK CV LTD,No
Http://opendatacommunities.org/id/metropolitan-district-council/leeds,Leeds City Council,31/05/2023,Strategy and Resources,Commercial Services,Transport,Vehicle Spares,345,19/05/2023,2305-00715,0.00,84.16,R,Alliance Automotive UK CV LTD,No
Http://opendatacommunities.org/id/metropolitan-district-council/leeds,Leeds City Council,31/05/2023,Strategy and Resources,Commercial Services,Transport,Vehicle Spares,345,19/05/2023,2305-00716,0.00,168.30,R,Alliance Automotive UK CV LTD,No
Http://opendatacommunities.org/id/metropolitan-district-council/leeds,Leeds City Council,31/05/2023,Strategy and Resources,Commercial Services,Transport,Vehicle Spares,345,19/05/2023,2305-00717,0.00,6.92,R,Alliance Automotive UK CV LTD,No
Http://opendatacommunities.org/id/metropolitan-district-council/leeds,Leeds City Council,31/05/2023,Strategy and Resources,Commercial Services,Transport,Vehicle Spares,345,19/05/2023,2305-00718,0.00,28.46,R,Alliance Automotive UK CV LTD,No
Http://opendatacommunities.org/id/metropolitan-district-council/leeds,Leeds City Council,31/05/2023,Strategy and Resources,Commercial Services,Transport,Vehicle Spares,345,19/05/2023,2305-00719,0.00,16.09,R,Alliance Automotive UK CV LTD,No
Http://opendatacommunities.org/id/metropolitan-district-council/leeds,Leeds City Council,31/05/2023,Strategy and Resources,Commercial Services,Transport,Vehicle Spares,345,19/05/2023,2305-00720,0.00,82.69,R,Alliance Automotive UK CV LTD,No
Http://opendatacommunities.org/id/metropolitan-district-council/leeds,Leeds City Council,31/05/2023,Strategy and Resources,Commercial Services,Transport,Vehicle Spares,345,19/05/2023,2305-00721,0.00,88.61,R,Alliance Automotive UK CV LTD,No
Http://opendatacommunities.org/id/metropolitan-district-council/leeds,Leeds City Council,31/05/2023,Strategy and Resources,Commercial Services,Transport,Vehicle Spares,345,19/05/2023,2305-00722,0.00,656.39,R,Alliance Automotive UK CV LTD,No
Http://opendatacommunities.org/id/metropolitan-district-council/leeds,Leeds City Council,31/05/2023,Strategy and Resources,Commercial Services,Transport,Vehicle Spares,345,19/05/2023,2305-00723,0.00,320.53,R,Alliance Automotive UK CV LTD,No
Http://opendatacommunities.org/id/metropolitan-district-council/leeds,Leeds City Council,31/05/2023,Strategy and Resources,Commercial Services,Transport,Vehicle Spares,345,19/05/2023,2305-00724,0.00,53.96,R,Alliance Automotive UK CV LTD,No
Http://opendatacommunities.org/id/metropolitan-district-council/leeds,Leeds City Council,31/05/2023,Strategy and Resources,Commercial Services,Transport,Vehicle Spares,345,19/05/2023,2305-00725,0.00,39.11,R,Alliance Automotive UK CV LTD,No
Http://opendatacommunities.org/id/metropolitan-district-council/leeds,Leeds City Council,31/05/2023,Strategy and Resources,Commercial Services,Transport,Vehicle Spares,345,19/05/2023,2305-00726,0.00,2168.09,R,Alliance Automotive UK CV LTD,No
Http://opendatacommunities.org/id/metropolitan-district-council/leeds,Leeds City Council,31/05/2023,Strategy and Resources,Commercial Services,Transport,Vehicle Spares,345,19/05/2023,2305-00727,0.00,6.92,R,Alliance Automotive UK CV LTD,No
Http://opendatacommunities.org/id/metropolitan-district-council/leeds,Leeds City Council,31/05/2023,Strategy and Resources,Commercial Services,Transport,Vehicle Spares,345,19/05/2023,2305-00728,0.00,301.06,R,Alliance Automotive UK CV LTD,No
Http://opendatacommunities.org/id/metropolitan-district-council/leeds,Leeds City Council,31/05/2023,Strategy and Resources,Commercial Services,Transport,Vehicle Spares,345,19/05/2023,2305-00729,0.00,15.53,R,Alliance Automotive UK CV LTD,No
Http://opendatacommunities.org/id/metropolitan-district-council/leeds,Leeds City Council,31/05/2023,Strategy and Resources,Commercial Services,Transport,Vehicle Spares,345,19/05/2023,2305-00730,0.00,293.99,R,Alliance Automotive UK CV LTD,No
Http://opendatacommunities.org/id/metropolitan-district-council/leeds,Leeds City Council,31/05/2023,Strategy and Resources,Commercial Services,Transport,Vehicle Spares,345,19/05/2023,2305-00731,0.00,6.92,R,Alliance Automotive UK CV LTD,No
Http://opendatacommunities.org/id/metropolitan-district-council/leeds,Leeds City Council,31/05/2023,Strategy and Resources,Commercial Services,Transport,Vehicle Spares,345,19/05/2023,2305-00732,0.00,295.02,R,Alliance Automotive UK CV LTD,No
Http://opendatacommunities.org/id/metropolitan-district-council/leeds,Leeds City Council,31/05/2023,Strategy and Resources,Commercial Services,Transport,Vehicle Spares,345,19/05/2023,2305-00733,0.00,1722.31,R,Alliance Automotive UK CV LTD,No
Http://opendatacommunities.org/id/metropolitan-district-council/leeds,Leeds City Council,31/05/2023,Strategy and Resources,Commercial Services,Transport,Vehicle Spares,345,19/05/2023,2305-00734,0.00,9.25,R,Alliance Automotive UK CV LTD,No
Http://opendatacommunities.org/id/metropolitan-district-council/leeds,Leeds City Council,31/05/2023,Strategy and Resources,Commercial Services,Transport,Vehicle Spares,345,25/05/2023,2305-00735,0.00,167.81,R,Alliance Automotive UK CV LTD,No
Http://opendatacommunities.org/id/metropolitan-district-council/leeds,Leeds City Council,31/05/2023,Strategy and Resources,Commercial Services,Transport,Vehicle Spares,345,25/05/2023,2305-00736,0.00,528.05,R,Alliance Automotive UK CV LTD,No
Http://opendatacommunities.org/id/metropolitan-district-council/leeds,Leeds City Council,31/05/2023,Strategy and Resources,Commercial Services,Transport,Vehicle Spares,345,25/05/2023,2305-00737,0.00,74.83,R,Alliance Automotive UK CV LTD,No
Http://opendatacommunities.org/id/metropolitan-district-council/leeds,Leeds City Council,31/05/2023,Strategy and Resources,Commercial Services,Transport,Vehicle Spares,345,25/05/2023,2305-00738,0.00,182.41,R,Alliance Automotive UK CV LTD,No
Http://opendatacommunities.org/id/metropolitan-district-council/leeds,Leeds City Council,31/05/2023,Strategy and Resources,Commercial Services,Transport,Vehicle Spares,345,25/05/2023,2305-00739,0.00,24.89,R,Alliance Automotive UK CV LTD,No
Http://opendatacommunities.org/id/metropolitan-district-council/leeds,Leeds City Council,31/05/2023,Strategy and Resources,Commercial Services,Transport,Vehicle Spares,345,25/05/2023,2305-00740,0.00,87.08,R,Alliance Automotive UK CV LTD,No
Http://opendatacommunities.org/id/metropolitan-district-council/leeds,Leeds City Council,31/05/2023,Strategy and Resources,Commercial Services,Transport,Vehicle Spares,345,25/05/2023,2305-00741,0.00,424.71,R,Alliance Automotive UK CV LTD,No
Http://opendatacommunities.org/id/metropolitan-district-council/leeds,Leeds City Council,31/05/2023,Strategy and Resources,Commercial Services,Transport,Vehicle Spares,345,25/05/2023,2305-00742,0.00,1349.85,R,Alliance Automotive UK CV LTD,No
Http://opendatacommunities.org/id/metropolitan-district-council/leeds,Leeds City Council,31/05/2023,Strategy and Resources,Commercial Services,Transport,Vehicle Spares,345,25/05/2023,2305-00743,0.00,94.45,R,Alliance Automotive UK CV LTD,No
Http://opendatacommunities.org/id/metropolitan-district-council/leeds,Leeds City Council,31/05/2023,Strategy and Resources,Commercial Services,Transport,Vehicle Spares,345,25/05/2023,2305-00744,0.00,434.14,R,Alliance Automotive UK CV LTD,No
Http://opendatacommunities.org/id/metropolitan-district-council/leeds,Leeds City Council,31/05/2023,Strategy and Resources,Commercial Services,Transport,Vehicle Spares,345,25/05/2023,2305-00745,0.00,369.06,R,Alliance Automotive UK CV LTD,No
Http://opendatacommunities.org/id/metropolitan-district-council/leeds,Leeds City Council,31/05/2023,Strategy and Resources,Commercial Services,Transport,Vehicle Spares,345,25/05/2023,2305-00746,0.00,647.47,R,Alliance Automotive UK CV LTD,No
Http://opendatacommunities.org/id/metropolitan-district-council/leeds,Leeds City Council,31/05/2023,Strategy and Resources,Commercial Services,Transport,Vehicle Spares,345,26/05/2023,2305-00747,0.00,-392.04,R,Alliance Automotive UK CV LTD,No
Http://opendatacommunities.org/id/metropolitan-district-council/leeds,Leeds City Council,31/05/2023,Strategy and Resources,Commercial Services,Transport,Vehicle Spares,345,26/05/2023,2305-00748,0.00,23.82,R,Alliance Automotive UK CV LTD,No
Http://opendatacommunities.org/id/metropolitan-district-council/leeds,Leeds City Council,31/05/2023,Strategy and Resources,Commercial Services,Transport,Vehicle Spares,345,26/05/2023,2305-00749,0.00,493.02,R,Alliance Automotive UK CV LTD,No
Http://opendatacommunities.org/id/metropolitan-district-council/leeds,Leeds City Council,31/05/2023,Strategy and Resources,Commercial Services,Transport,Vehicle Spares,345,26/05/2023,2305-00750,0.00,58.41,R,Alliance Automotive UK CV LTD,No
Http://opendatacommunities.org/id/metropolitan-district-council/leeds,Leeds City Council,31/05/2023,Strategy and Resources,Commercial Services,Transport,Vehicle Spares,345,26/05/2023,2305-00751,0.00,277.11,R,Alliance Automotive UK CV LTD,No
Http://opendatacommunities.org/id/metropolitan-district-council/leeds,Leeds City Council,31/05/2023,Strategy and Resources,Commercial Services,Transport,Vehicle Spares,345,26/05/2023,2305-00752,0.00,494.02,R,Alliance Automotive UK CV LTD,No
Http://opendatacommunities.org/id/metropolitan-district-council/leeds,Leeds City Council,31/05/2023,Strategy and Resources,Commercial Services,Transport,Vehicle Spares,345,26/05/2023,2305-00753,0.00,157.41,R,Alliance Automotive UK CV LTD,No
Http://opendatacommunities.org/id/metropolitan-district-council/leeds,Leeds City Council,31/05/2023,Strategy and Resources,Commercial Services,Transport,Vehicle Spares,345,26/05/2023,2305-00754,0.00,157.41,R,Alliance Automotive UK CV LTD,No
Http://opendatacommunities.org/id/metropolitan-district-council/leeds,Leeds City Council,31/05/2023,Strategy and Resources,Commercial Services,Transport,Vehicle Spares,345,26/05/2023,2305-00755,0.00,157.41,R,Alliance Automotive UK CV LTD,No
Http://opendatacommunities.org/id/metropolitan-district-council/leeds,Leeds City Council,31/05/2023,Strategy and Resources,Commercial Services,Transport,Vehicle Spares,345,26/05/2023,2305-00756,0.00,137.61,R,Alliance Automotive UK CV LTD,No
Http://opendatacommunities.org/id/metropolitan-district-council/leeds,Leeds City Council,31/05/2023,Strategy and Resources,Commercial Services,Transport,Vehicle Spares,345,26/05/2023,2305-00757,0.00,392.04,R,Alliance Automotive UK CV LTD,No
Http://opendatacommunities.org/id/metropolitan-district-council/leeds,Leeds City Council,31/05/2023,Strategy and Resources,Commercial Services,Transport,Vehicle Spares,345,26/05/2023,2305-00758,0.00,196.02,R,Alliance Automotive UK CV LTD,No
Http://opendatacommunities.org/id/metropolitan-district-council/leeds,Leeds City Council,31/05/2023,Strategy and Resources,Commercial Services,Transport,Vehicle Spares,345,26/05/2023,2305-00759,0.00,196.02,R,Alliance Automotive UK CV LTD,No
Http://opendatacommunities.org/id/metropolitan-district-council/leeds,Leeds City Council,31/05/2023,Strategy and Resources,Commercial Services,Transport,Vehicle Spares,345,26/05/2023,2305-00760,0.00,89.90,R,Alliance Automotive UK CV LTD,No
Http://opendatacommunities.org/id/metropolitan-district-council/leeds,Leeds City Council,31/05/2023,Strategy and Resources,Commercial Services,Transport,Vehicle Spares,345,26/05/2023,2305-00761,0.00,485.38,R,Alliance Automotive UK CV LTD,No
Http://opendatacommunities.org/id/metropolitan-district-council/leeds,Leeds City Council,31/05/2023,Strategy and Resources,Commercial Services,Transport,Vehicle Spares,345,26/05/2023,2305-00762,0.00,68.31,R,Alliance Automotive UK CV LTD,No
Http://opendatacommunities.org/id/metropolitan-district-council/leeds,Leeds City Council,31/05/2023,Strategy and Resources,Commercial Services,Transport,Vehicle Spares,345,26/05/2023,2305-00763,0.00,72.28,R,Alliance Automotive UK CV LTD,No
Http://opendatacommunities.org/id/metropolitan-district-council/leeds,Leeds City Council,31/05/2023,Strategy and Resources,Commercial Services,Transport,Vehicle Spares,345,26/05/2023,2305-00764,0.00,57.42,R,Alliance Automotive UK CV LTD,No
Http://opendatacommunities.org/id/metropolitan-district-council/leeds,Leeds City Council,31/05/2023,Strategy and Resources,Commercial Services,Transport,Vehicle Spares,345,26/05/2023,2305-00765,0.00,81.03,R,Alliance Automotive UK CV LTD,No
Http://opendatacommunities.org/id/metropolitan-district-council/leeds,Leeds City Council,31/05/2023,Strategy and Resources,Commercial Services,Transport,Vehicle Spares,345,26/05/2023,2305-00766,0.00,262.35,R,Alliance Automotive UK CV LTD,No
Http://opendatacommunities.org/id/metropolitan-district-council/leeds,Leeds City Council,31/05/2023,Strategy and Resources,Commercial Services,Transport,Vehicle Spares,345,26/05/2023,2305-00767,0.00,118.71,R,Alliance Automotive UK CV LTD,No
Http://opendatacommunities.org/id/metropolitan-district-council/leeds,Leeds City Council,31/05/2023,Strategy and Resources,Commercial Services,Transport,Vehicle Spares,345,26/05/2023,2305-00768,0.00,503.86,R,Alliance Automotive UK CV LTD,No
Http://opendatacommunities.org/id/metropolitan-district-council/leeds,Leeds City Council,31/05/2023,Strategy and Resources,Commercial Services,Transport,Vehicle Spares,345,26/05/2023,2305-00769,0.00,28.56,R,Alliance Automotive UK CV LTD,No
Http://opendatacommunities.org/id/metropolitan-district-council/leeds,Leeds City Council,31/05/2023,Strategy and Resources,Commercial Services,Transport,Vehicle Spares,345,26/05/2023,2305-00770,0.00,75.05,R,Alliance Automotive UK CV LTD,No
Http://opendatacommunities.org/id/metropolitan-district-council/leeds,Leeds City Council,31/05/2023,Strategy and Resources,Commercial Services,Transport,Vehicle Spares,345,26/05/2023,2305-00771,0.00,449.90,R,Alliance Automotive UK CV LTD,No
Http://opendatacommunities.org/id/metropolitan-district-council/leeds,Leeds City Council,31/05/2023,Strategy and Resources,Commercial Services,Transport,Vehicle Spares,345,26/05/2023,2305-00772,0.00,8.48,R,Alliance Automotive UK CV LTD,No
Http://opendatacommunities.org/id/metropolitan-district-council/leeds,Leeds City Council,31/05/2023,Strategy and Resources,Commercial Services,Transport,Vehicle Spares,345,26/05/2023,2305-00773,0.00,329.74,R,Alliance Automotive UK CV LTD,No
Http://opendatacommunities.org/id/metropolitan-district-council/leeds,Leeds City Council,31/05/2023,Strategy and Resources,Commercial Services,Transport,Vehicle Spares,345,30/05/2023,2305-00774,0.00,-68.31,R,Alliance Automotive UK CV LTD,No
Http://opendatacommunities.org/id/metropolitan-district-council/leeds,Leeds City Council,31/05/2023,Strategy and Resources,Commercial Services,Transport,Vehicle Spares,345,30/05/2023,2305-00775,0.00,207.93,R,Alliance Automotive UK CV LTD,No
Http://opendatacommunities.org/id/metropolitan-district-council/leeds,Leeds City Council,31/05/2023,Strategy and Resources,Commercial Services,Transport,Vehicle Spares,345,30/05/2023,2305-00776,0.00,21.78,R,Alliance Automotive UK CV LTD,No
Http://opendatacommunities.org/id/metropolitan-district-council/leeds,Leeds City Council,31/05/2023,Strategy and Resources,Commercial Services,Transport,Vehicle Spares,345,30/05/2023,2305-00777,0.00,48.36,R,Alliance Automotive UK CV LTD,No
Http://opendatacommunities.org/id/metropolitan-district-council/leeds,Leeds City Council,31/05/2023,Communities Housing and Environment,Parks and Countryside ,Supplies and Services,Operational Materials,205,05/04/2023,2305-00778,0.00,129.06,R,Alliance Disposables,Yes
Http://opendatacommunities.org/id/metropolitan-district-council/leeds,Leeds City Council,31/05/2023,Communities Housing and Environment,Parks and Countryside ,Supplies and Services,Operational Materials,205,11/04/2023,2305-00779,0.00,135.98,R,Alliance Disposables,Yes
Http://opendatacommunities.org/id/metropolitan-district-council/leeds,Leeds City Council,31/05/2023,Communities Housing and Environment,Parks and Countryside ,Supplies and Services,Operational Materials,205,13/04/2023,2305-00780,0.00,92.19,R,Alliance Disposables,Yes
Http://opendatacommunities.org/id/metropolitan-district-council/leeds,Leeds City Council,31/05/2023,Communities Housing and Environment,Parks and Countryside ,Supplies and Services,Operational Materials,205,17/04/2023,2305-00781,0.00,126.97,R,Alliance Disposables,Yes
Http://opendatacommunities.org/id/metropolitan-district-council/leeds,Leeds City Council,31/05/2023,Communities Housing and Environment,Parks and Countryside ,Supplies and Services,Operational Materials,205,20/04/2023,2305-00782,0.00,26.21,R,Alliance Disposables,Yes
Http://opendatacommunities.org/id/metropolitan-district-council/leeds,Leeds City Council,31/05/2023,Communities Housing and Environment,Parks and Countryside ,Supplies and Services,Food & Drink,231,25/04/2023,2305-00783,0.00,380.23,R,Alliance Disposables,Yes
